Workbook

Sheet Open
A2: Clark Real Estate Open
A3: Futurity | B3: WPRA Derby | C3: Der | D3: HS | E3: Age Inct. | F3: Mem | G3: Nom | H3: Av | I3: BBR | J3: WPRA | K3: Draw | L3: Rider Name | M3: Horse Name | N3: Pen | O3: Time | P3: Final Time | Q3: Placing | R3: Money Earned | T3: D Placing | V3: Split
B4: X | D4: X | E4: Y | K4: 82 | L4: Patton Lynch | M4: JJJ Bonnnie Rae | O4: 15.338 | Q4: 1D 1st | R4: 1516.68 | T4: 1D | U4: 15.338
K5: 258 | L5: Maddy Dickins | M5: BB | O5: 15.621 | Q5: 1D 2nd | R5: 1240.92 | T5: 2D | U5: 15.838 | V5: 0.5
E6: A | K6: 226 | L6: Bristan Kennedy | M6: Copies Famous Saint | O6: 15.651 | Q6: 1D 3rd | R6: 919.2 | T6: 3D | U6: 16.338 | V6: 0.5
D7: X | E7: A | K7: 24 | L7: Kara Large | M7: Credit To Fiesta | O7: 15.729 | Q7: 1D 4th/5th | R7: 460 | T7: 4D | U7: 16.838 | V7: 0.5
K8: 166 | L8: Stevi Hillman | M8: Luv My Fame | O8: 15.729 | Q8: 1D 4th/5th | R8: 460 | T8: 5D | U8: 17.338 | V8: 0.5
K9: 146 | L9: Lacy Kimball | M9: Stayabay | O9: 15.879 | Q9: 2D 1st | R9: 919.2
C10: D | K10: 218 | L10: Kassie Mowry | M10: Girls Dig Fame | O10: 15.903 | Q10: 2D 2nd | R10: 766 | T10: # Entered
E11: A | K11: 150 | L11: Sydney Frey | M11: Great Guns On Dakota | O11: 15.927 | Q11: 2D 3rd | R11: 651.1 | T11: =COUNTA(L4:L503) -> 333
I12: 15050 | K12: 164 | L12: Liz Prickett | M12: Streakin Images | O12: 15.959 | Q12: 2D 4th | R12: 497.9
C13: X | K13: 39 | L13: Kelly Valdez | M13: Dashinlikafame | O13: 15.974 | Q13: 2D 5th | R13: 383 | T13: # Ran
K14: 209 | L14: Christi Durfey | M14: Joe Dynamite | O14: 15.981 | Q14: 2D 6th | R14: 268.1 | T14: =COUNTA(O4:O503) -> 333
K15: 237 | L15: Molli Montgomery | M15: Makin Ya Famous | O15: 15.992 | Q15: 2D 7th | R15: 191.5
E16: A | K16: 181 | L16: Sydney Frey | M16: Crystals Got Class | O16: 16.007 | Q16: 2D 8th | R16: 153.2 | T16: # Left
K17: 307 | L17: Erika Ashley | M17: Kiss This Guy | O17: 16.012 | T17: =$T$11-$T$14 -> 0
K18: 105 | L18: Shari Taggart | M18: UX Flit N Fabulous | O18: 16.015
D19: X | E19: A | K19: 83 | L19: Phillip Kenyon | M19: Tillies Hayday | O19: 16.031
K20: 58 | L20: Sherri Barnes | M20: Famous Little Jet | O20: 16.068
B21: X | C21: X | K21: 177 | L21: Sayde Simpson | M21: God Given Fame | O21: 16.081
K22: 257 | L22: Rickie Engesser | M22: Bolt | O22: 16.085
A23: X | E23: A | K23: 91 | L23: Kelly Allen | M23: Miss JB 133 | O23: 16.09
C24: X | K24: 107 | L24: Nisa Berry | M24: VF Look Im Back | O24: 16.096
K25: 195 | L25: Stevi Hillman | M25: Train | O25: 16.101
A26: F | K26: 249 | L26: Kassie Mowry | M26: Heavens Illuminator | O26: 16.102
D27: X | K27: 89 | L27: Shea Lynn Leach | M27: Berthas Dancer | O27: 16.118
C28: X | D28: X | K28: 261 | L28: Danyelle Campbell | M28: AR Dash Ta Fame | O28: 16.122
C29: x | D29: x | E29: A | K29: 243 | L29: Whitney Godinez | M29: Moonshine | O29: 16.132
K30: 118 | L30: Sherri Barnes | M30: Racing For Perks | O30: 16.133
K31: 155 | L31: Kelly Bruner | M31: Fabulous Zone | O31: 16.158
K32: 145 | L32: Sadie Weldon | M32: WB Ranaway Pumpkin | O32: 16.16
E33: S | K33: 245 | L33: Judy Melvin | M33: Famous Kid Rock | O33: 16.163
E34: A | K34: 55 | L34: Tami Semas | M34: Ninnekahs Guy | O34: 16.167
B35: X | C35: X | D35: X | E35: A | K35: 12 | L35: Tami Semas | M35: Colour Me Gone | O35: 16.172
K36: 328 | L36: Jane Melby | M36: H3 | O36: 16.187
E37: A | K37: 299 | L37: Billie Jackson | M37: Frosted Effort | O37: 16.19
K38: 295 | L38: Natalie Kurosky | M38: Dontbeadragbeaqueen | O38: 16.193
K39: 129 | L39: Taryn Parsonage | M39: Jo Fame | O39: 16.218
K40: 147 | L40: Gayle Jones | M40: LS Corona Winsalot | O40: 16.221
K41: 126 | L41: Nicoletta Bean | M41: Famous China Doll | O41: 16.247
K42: 96 | L42: Deborah MacLeod | M42: A Woodsy Cat | O42: 16.249
A43: X | K43: 112 | L43: Lj LaRue | M43: Goin Slow | O43: 16.251
A44: X | E44: A | K44: 53 | L44: Kelly Allen | M44: Miss JB 1315 | O44: 16.257
K45: 240 | L45: Jane Melby | M45: H1 | O45: 16.257
K46: 286 | L46: Rickie Engesser | M46: Sheldon | O46: 16.265
K47: 305 | L47: Dania La Marche | M47: Tangos First Honor | O47: 16.278
K48: 306 | L48: McKenna Wagner | M48: Moonshine | O48: 16.292
A49: X | K49: 65 | L49: Nisa Berry | M49: VF Famous Cowgirl | O49: 16.294
K50: 281 | L50: Jolene Jones | M50: Streakin Louie | O50: 16.308
E51: Y | K51: 84 | L51: Whitley Burns | M51: High Society Gal | O51: 16.31
K52: 331 | L52: Dania La Marche | M52: Heza Dash of Sis | O52: 16.316
K53: 323 | L53: Klete Currie | M53: Wonders Fire Easy | O53: 16.323
K54: 6 | L54: Lylan Corey | M54: Bogies French Gamble | O54: 16.325
B55: X | C55: X | K55: 124 | L55: Ashley Harvey | M55: Wheres My Sox | O55: 16.332
B56: X | C56: X | K56: 205 | L56: Candie Miner | M56: Kitnic | O56: 16.332
E57: S | I57: 8033 | K57: 347 | L57: Martha Smith | M57: Firewatermakemehappy | O57: 16.347 | Q57: 3D 1st | R57: 735.36
E58: A | K58: 136 | L58: Andrea Cline | M58: Ali Money By Six | O58: 16.353 | Q58: 3D 2nd | R58: 612.8
E59: A | K59: 38 | L59: Morgan Buelna | M59: Azoomin Azul | O59: 16.363 | Q59: 3D 3rd | R59: 520.88
K60: 139 | L60: Kathy Muehlen | M60: Fly Away Gal | O60: 16.394 | Q60: 3D 4th | R60: 398.32
K61: 254 | L61: Becky Dillard | M61: Wow Shes Hot | O61: 16.397 | Q61: 3D 5th | R61: 306.4
E62: Y | K62: 154 | L62: Jesse Harris | M62: Running For Honors | O62: 16.4 | Q62: 3D 6th | R62: 214.48
K63: 289 | L63: Cheyenne Baldwin | M63: Sasquasch | O63: 16.402 | Q63: 3D 7th | R63: 153.2
E64: A | K64: 127 | L64: Scamper Cole | M64: DM Streak Aboo | O64: 16.407 | Q64: 3D 8th | R64: 122.56
K65: 138 | L65: Stevi Hillman | M65: Guys R A Mystery | O65: 16.41
F66: Y | K66: 93 | L66: Pattie Mackie | M66: Flitter Fual Lad | O66: 16.411
K67: 102 | L67: Brooke Bingham | M67: Nickie Cash | O67: 16.423
K68: 212 | L68: Becky Dillard | M68: Shesa Hot Loop | O68: 16.424
K69: 37 | L69: Gena Franklin | M69: SS StreakyMe | O69: 16.425
A70: X | K70: 111 | L70: Kyra Boling | M70: Teninas Hayday | O70: 16.427
K71: 27 | L71: Christi Durfey | M71: Banking Ta Fame | O71: 16.428
K72: 287 | L72: Maddy Dickins | M72: Bucky | O72: 16.428
K73: 165 | L73: Doreen Hill | M73: HF Sockitoya | O73: 16.429
K74: 214 | L74: Lisa Flores | M74: Make Me Macho | O74: 16.433
K75: 315 | L75: Kambria McDougal | M75: Shine On Eddie | O75: 16.444
K76: 322 | L76: Clint Sherlin | M76: Bob | O76: 16.448
K77: 114 | L77: Gayle Jones | M77: Cartel Caliente | O77: 16.453
A78: F | K78: 273 | L78: Kassie Mowry | M78: Hallelujah Epic | O78: 16.454
K79: 207 | L79: Callie Jo Surles | M79: FrenchiesLightOn Cash | O79: 16.456
K80: 211 | L80: Katherine Todd | M80: Moons and Myths | O80: 16.471
A81: F | K81: 234 | L81: Kassie Mowry | M81: LLP Silent Prayer | O81: 16.473
K82: 13 | L82: Misty Peek | M82: Amos | O82: 16.475
K83: 246 | L83: Emma Chapman-Abbott | M83: Moonin My Way Ta Fame | O83: 16.48
K84: 80 | L84: Valerie Ford | M84: Hesa Streak Of Fame | O84: 16.484
K85: 47 | L85: Nikki Cain | M85: Shakem Baby Shakem | O85: 16.488
K86: 204 | L86: Kelsey Gordon | M86: Pete | O86: 16.494
E87: S | K87: 152 | L87: Lisa Cotter | M87: Sonitas Shaker | O87: 16.501
A88: X | K88: 230 | L88: Maci Berry | M88: Shezamaximumbugleo | O88: 16.508
K89: 302 | L89: Kathy Warren | M89: Gonnagetluckytonight | O89: 16.523
K90: 263 | L90: Lane Hadley | M90: Watch Ibea Rockstar | O90: 16.527
C91: X | K91: 192 | L91: Natalie Bland | M91: THC OK Fuel | O91: 16.541
K92: 72 | L92: James Commander | M92: Stolis Champion | O92: 16.542
E93: Y | K93: 182 | L93: Emma Nelson | M93: CJ Ratatouille | O93: 16.544
K94: 87 | L94: Claudia Parrott | M94: DL Imahumdinger | O94: 16.552
K95: 135 | L95: Devon Click | M95: Surprise Im Flyin | O95: 16.561
K96: 282 | L96: Jane Melby | M96: H2 | O96: 16.572
K97: 66 | L97: Karen Shelley | M97: Flying Bar Bailey | O97: 16.582
K98: 62 | L98: Trinity Smith | M98: Shes a Keo Lady | O98: 16.589
K99: 186 | L99: Daisy Baird | M99: Elishas Arrow | O99: 16.595
E100: S | K100: 256 | L100: Terry Vogel | M100: BB Boogying Frenchman | O100: 16.612
I101: 10073 | K101: 326 | L101: Reagan Jackson | M101: Silver Snappy Six | O101: 16.618
K102: 167 | L102: Emily Mangione | M102: Wild Rock | O102: 16.624
K103: 235 | L103: Carlie Conaway | M103: Nobodys Fired | O103: 16.629
K104: 278 | L104: Kathy Fields | M104: Regarding Numbers | O104: 16.636
K105: 162 | L105: Kelsey Ornelas | M105: Peanut | O105: 16.649
K106: 253 | L106: Kelly Bruner | M106: No Miss Taken | O106: 16.653
K107: 312 | L107: Lacey Donegan | M107: Guys Bigtime Streker | O107: 16.653
K108: 284 | L108: Bianca Dos Santos | M108: Dashin Quicky | O108: 16.664
A109: F | K109: 7 | L109: Andrea Cline | M109: Freighttrain C | O109: 16.667
A110: X | K110: 163 | L110: Kristi Tuinei | M110: Zippys Cash Ta Fame | O110: 16.676
K111: 98 | L111: Amy Swan | M111: Higis Heather Star | O111: 16.68
K112: 251 | L112: Jane Fambro | M112: Nic Time | O112: 16.689
E113: Y | K113: 217 | L113: Kira Meyers | M113: H | O113: 16.693
E114: S | K114: 189 | L114: Debra Cooper | M114: Rapid Firing Pass | O114: 16.696
K115: 169 | L115: Jessica John | M115: Denali | O115: 16.714
C116: X | E116: A | K116: 175 | L116: Haley Bowen | M116: Sadies Superman | O116: 16.716
B117: X | C117: X | K117: 97 | L117: Ashley Harvey | M117: Leading U Ta Fame | O117: 16.717
K118: 141 | L118: Lisa Wernli | M118: Real Famous Lill | O118: 16.734
E119: S | K119: 200 | L119: Jana Kurosky | M119: Winnie Reds Kai | O119: 16.74
E120: S | K120: 1 | L120: Kathy Minteer | M120: Little Bit | O120: 16.744
E121: S | K121: 161 | L121: Elaine Foreman | M121: Ta Fame Ina Dash | O121: 16.745
K122: 16 | L122: Wyatt Paul | M122: Guns and Romance | O122: 16.75
E123: Y | K123: 143 | L123: Londyn Baker | M123: Six Is Better | O123: 16.755
I124: 11088 | K124: 265 | L124: Carrie Davies | M124: Rebs Rapid Policy | O124: 16.758
K125: 41 | L125: Anna Stark | M125: Poco TwoEyed Cowboy | O125: 16.767
E126: S | K126: 51 | L126: Lynn Saunders | M126: Popcorn | O126: 16.768
B127: X | K127: 215 | L127: Annabelle Martin | M127: DTF Making My Way | O127: 16.77
K128: 73 | L128: Sara Redden | M128: Master Jimmy | O128: 16.774
K129: 317 | L129: Mindy Holloway | M129: Spider | O129: 16.793
K130: 70 | L130: Karen Manning | M130: Dor | O130: 16.799
K131: 108 | L131: Jenae Smith | M131: Pint Sized Pepper | O131: 16.8
K132: 314 | L132: Cody Blakesley | M132: Bucky | O132: 16.805
A133: X | K133: 199 | L133: Crystal Benedict | M133: Smokin Hot Cat Lady | O133: 16.818
E134: Y | K134: 85 | L134: Hadley Durfey | M134: Spark Tie Bar | O134: 16.827
K135: 158 | L135: Jill Petty | M135: Tippin It Guys Way | O135: 16.827
E136: A | K136: 270 | L136: Ashleigh Williams | M136: KB Bigtime Dreamer | O136: 16.827
B137: X | C137: X | K137: 180 | L137: Hanna Forbes | M137: Eye Jess WIn | O137: 16.829
A138: X | K138: 40 | L138: Jeff Amsden | M138: Dez On Firewater | O138: 16.829
K139: 8 | L139: Shannon Black | M139: TS Jets Blazin Lena | O139: 16.835
E140: S | K140: 74 | L140: Diana Cory | M140: JC Swift Sunfrost | O140: 16.839 | Q140: 4D 1st | R140: 551.52
C141: X | E141: A | K141: 20 | L141: Phillip Kenyon | M141: Contagious Charm | O141: 16.842 | Q141: 4D 2nd | R141: 459.6
K142: 95 | L142: Scamper Cole | M142: A Striking Fling | O142: 16.854 | Q142: 4D 3rd/4th | R142: 345
E143: S | I143: 1926 | K143: 267 | L143: Kena Davies | M143: Bruce | O143: 16.854 | Q143: 4D 3rd/4th | R143: 345
K144: 50 | L144: Kelsey Howard | M144: Triple Gold Time | O144: 16.862 | Q144: 4D 5th | R144: 229.8
A145: F | K145: 239 | L145: Danyelle Campbell | M145: JL Tularosa | O145: 16.865 | Q145: 4D 6th | R145: 160.86
K146: 137 | L146: Pattie Mackie | M146: Dunnuts Genuine 007 | O146: 16.868 | Q146: 4D 7th | R146: 114.9
K147: 255 | L147: Camie Widmer | M147: Highbrow Amy | O147: 16.872 | Q147: 4D 8th | R147: 91.92
B148: X | C148: X | K148: 144 | L148: Hanna Forbes | M148: Eyesa Stoli Dream | O148: 16.886
K149: 172 | L149: Sadie Weldon | M149: Boots Classy Perks | O149: 16.887
K150: 178 | L150: Gayle Jones | M150: Cash N Bubbles | O150: 16.907
K151: 123 | L151: Jessica Clifford | M151: Streakin Ombre | O151: 16.909
I152: 2913 | K152: 231 | L152: Holly Pritchard | M152: Bogies French Moon | O152: 16.913
E153: S | K153: 61 | L153: Dana Chaddick | M153: Dr Taylor | O153: 16.948
E154: S | I154: 14588 | K154: 266 | L154: Janet Lehmann | M154: Peace Love and Fame | O154: 16.961
K155: 35 | L155: Tara Woodall | M155: Sixes Eyesa | O155: 16.964
E156: A | K156: 57 | L156: Alisha Todd | M156: Sheza Amarillo Doc | O156: 16.965
K157: 88 | L157: Jeff Amsden | M157: Az I See It | O157: 16.965
K158: 15 | L158: Trinity Smith | M158: Thissmartchicsinvited | O158: 16.98
K159: 202 | L159: Kristin Dorman | M159: Easy | O159: 16.988
K160: 190 | L160: Janee' Ornelas | M160: cordite | O160: 16.989
K161: 185 | L161: Lacy Kimball | M161: Smarty Bits | O161: 17.029
E162: A | K162: 42 | L162: Jennifer Abbott | M162: Blazin Wagon | O162: 17.056
K163: 188 | L163: Tomi Womack | M163: Harley | O163: 17.061
E164: A | K164: 160 | L164: Trudy Holloway | M164: Bear Springs Cat | O164: 17.066
K165: 90 | L165: Lisa Jo Velliquette | M165: Namgis D 44 | O165: 17.069
K166: 238 | L166: Linda Schroedter | M166: Ima Gold Champion | O166: 17.084
K167: 45 | L167: Lylan Corey | M167: HoneyBoon Lilly | O167: 17.087
K168: 4 | L168: Melissa Jones | M168: Threes Royal Derby | O168: 17.091
B169: X | C169: X | D169: X | E169: A | K169: 43 | L169: Andrea Cline | M169: Raising Fame | O169: 17.094
I170: 10073 | K170: 294 | L170: Reagan Jackson | M170: Power To The Moon | O170: 17.118
K171: 210 | L171: Gayle Jones | M171: Credit Me For Hollan | O171: 17.139
K172: 303 | L172: Ashley Davis | M172: Leddy | O172: 17.153
B173: X | K173: 63 | L173: Mandi Cleveland | M173: Little Bit Of Load | O173: 17.167
K174: 260 | L174: Cheyenne Baldwin | M174: Stella | O174: 17.167
K175: 56 | L175: Karen Heward | M175: Runnin Booger | O175: 17.169
K176: 119 | L176: Madison Sullivan | M176: Smokin Fire Dance | O176: 17.183
K177: 109 | L177: Madison Franklin | M177: Mr Cool Garfield | O177: 17.193
K178: 224 | L178: Tassie Munroe | M178: ND Firewater Brandy | O178: 17.202
K179: 120 | L179: Stepheny Womack | M179: Pistol | O179: 17.203
E180: A | K180: 298 | L180: Holly Stormont | M180: Rio Crime | O180: 17.207
K181: 248 | L181: Katherine Todd | M181: Fling the Dirt Around | O181: 17.216
K182: 25 | L182: Jade Martin | M182: DontHateMeCuzUAintme | O182: 17.225
K183: 308 | L183: Lilly Eakes | M183: Peptoboonesfarm | O183: 17.226
E184: S | K184: 99 | L184: Rhonda Souder | M184: Tel Me Sister | O184: 17.228
E185: A | I185: 11026 | K185: 221 | L185: Lorinda Van Newkirk | M185: Birdie | O185: 17.228
E186: S | K186: 3 | L186: Simone Elmore | M186: Badgeraconchadrift | O186: 17.229
K187: 288 | L187: Chayni Chamberlin | M187: RT | O187: 17.229
K188: 79 | L188: Christi Durfey | M188: Brilliant Faith | O188: 17.233
A189: x | E189: A | K189: 206 | L189: Whitney Godinez | M189: So Gals Got Fire | O189: 17.235
I190: 2300 | K190: 232 | L190: Daryll Kessler | M190: Barclosednofirewater | O190: 17.247
E191: S | K191: 115 | L191: Lisa Cotter | M191: Outlaw John Dillinger | O191: 17.265
K192: 216 | L192: Emma Chapman-Abbott | M192: VF Highball | O192: 17.276
E193: S | K193: 68 | L193: Winnie Archer | M193: Powder T | O193: 17.285
E194: A | K194: 71 | L194: Whitney Fisher | M194: BB French N Easy | O194: 17.292
E195: A | K195: 194 | L195: Jane Fambro | M195: Classic Frenchman | O195: 17.292
K196: 193 | L196: Haylie Eakman | M196: BC Hes Quick | O196: 17.295
E197: A | K197: 69 | L197: Karissa Jones | M197: AnitaLotACash | O197: 17.297
K198: 122 | L198: Phyllis Rutland | M198: Montana Easy Jets Win | O198: 17.299
C199: X | E199: A | K199: 14 | L199: Cassidy Rabb | M199: VF Coup Fulla Coins | O199: 17.312
E200: A | K200: 208 | L200: Tiffany Cox | M200: C3 Lacy | O200: 17.329
E201: S | K201: 168 | L201: Dee Dee Jordan | M201: Lil Yella Draw | O201: 17.351 | Q201: 5D 1st | R201: 367.68
... 302 more rows

Sheet Senior
A1: Futurity | B1: Der | C1: Age Inct. | D1: BBR | E1: Draw | F1: Rider Name | G1: Horse Name | H1: Time | I1: Placing | J1: Money Earned
E2: 29 | F2: Judy Melvin | G2: Famous Kid Rock | H2: 16.163 | I2: 1D 1st | J2: 151
E3: 35 | F3: Martha Smith | G3: Firewatermakemehappy | H3: 16.347 | I3: 1D 2nd | J3: 101
E4: 20 | F4: Lisa Cotter | G4: Sonitas Shaker | H4: 16.501
E5: 30 | F5: Terry Vogel | G5: BB Boogying Frenchman | H5: 16.612
E6: 25 | F6: Debra Cooper | G6: Rapid Firing Pass | H6: 16.696 | I6: 2D 1st | J6: 130
E7: 26 | F7: Jana Kurosky | G7: Winnie Reds Kai | H7: 16.74 | I7: 2D 2nd | J7: 86
E8: 36 | F8: Kathy Minteer | G8: Little Bit | H8: 16.744
E9: 21 | F9: Elaine Foreman | G9: Ta Fame Ina Dash | H9: 16.745
E10: 7 | F10: Lynn Saunders | G10: Popcorn | H10: 16.768
E11: 11 | F11: Diana Cory | G11: JC Swift Sunfrost | H11: 16.839
E12: 32 | F12: Kena Davies | G12: Bruce | H12: 16.854
E13: 9 | F13: Dana Chaddick | G13: Dr Taylor | H13: 16.948
E14: 31 | F14: Janet Lehmann | G14: Peace Love and Fame | H14: 16.961
E15: 14 | F15: Rhonda Souder | G15: Tel Me Sister | H15: 17.228 | I15: 3D 1st | J15: 86
E16: 1 | F16: Simone Elmore | G16: Badgeraconchadrift | H16: 17.229 | I16: 3D 2nd | J16: 58
E17: 16 | F17: Lisa Cotter | G17: Outlaw John Dillinger | H17: 17.265
E18: 10 | F18: Winnie Archer | G18: Powder T | H18: 17.285
E19: 22 | F19: Dee Dee Jordan | G19: Lil Yella Draw | H19: 17.351
E20: 18 | F20: Elaine Foreman | G20: Boogies Moon Pie | H20: 17.383
E21: 19 | F21: Raylene Cox | G21: Ya Give Me Fever | H21: 17.478
E22: 15 | F22: Dana Chaddick | G22: Roses N Cash | H22: 17.61
E23: 33 | F23: Paul Humphrey | G23: Cinch | H23: 18.263 | I23: 4D 1st | J23: 65
E24: 13 | F24: Kevin Davis | G24: Gibbs | H24: 18.396 | I24: 4D 2nd | J24: 43
E25: 4 | F25: Terry Vogel | G25: Imablueyedblondbitz | H25: 18.886
E26: 28 | F26: Marj Dahle | G26: Oakie | H26: 22.603
E27: 17 | F27: Austin Doby | H27: 24.597
E28: 12 | F28: Sidney Ryan | G28: Lyndis Sonny Lights | H28: 35.063
E29: 24 | F29: Jill Harbour | G29: Bullit Proof | H29: nt16.152
E30: 23 | F30: Lisa Wernli | G30: Flashs Fine Effort | H30: nt16.205
E31: 34 | F31: Martha Smith | G31: Victory Blue Moon | H31: nt16.431
E32: 27 | F32: Terry Vogel | G32: Super Frosted Bug | H32: nt16.437
E33: 8 | F33: Karen Manning | G33: Shut the Blazin Door | H33: nt16.490
E34: 3 | F34: Sandy Whitt | G34: Firewater Fuel Queen | H34: nt16.536
E35: 6 | F35: Charlie Colella | G35: Dashin Red Charger | H35: nt18.007
E36: 2 | F36: Karen Rego | G36: Echos Runaway Bay | H36: scratch
E37: 5 | F37: Sherrel Burgess | G37: Boomer T Fellers | H37: scratch
E38: 36
E39: 37
E40: 38
E41: 39
E42: 40
E43: 41
E44: 42
E45: 43
E46: 44
E47: 45
E48: 46
E49: 47
E50: 48
E51: 49
E52: 50
E53: 51
E54: 52
E55: 53
E56: 54
E57: 55
E58: 56
E59: 57
E60: 58
E61: 59
E62: 60
E63: 61
E64: 62
E65: 63
E66: 64
E67: 65
E68: 66
E69: 67
E70: 68
E71: 69
E72: 70
E73: 71
E74: 72
E75: 73
E76: 74
E77: 75
E78: 76
E79: 77
E80: 78
E81: 79
E82: 80
E83: 81
E84: 82
E85: 83
E86: 84
E87: 85
E88: 86
E89: 87
E90: 88
E91: 89
E92: 90
E93: 91
E94: 92
E95: 93
E96: 94
E97: 95
E98: 96
E99: 97
E100: 98
E101: 99
E102: 100
E103: 101
E104: 102
E105: 103
E106: 104
E107: 105
E108: 106
E109: 107
E110: 108
E111: 109
E112: 110
E113: 111
E114: 112
E115: 113
E116: 114
E117: 115
E118: 116
E119: 117
E120: 118
E121: 119
E122: 120
E123: 121
E124: 122
E125: 123
E126: 124
E127: 125
E128: 126
E129: 127
E130: 128
E131: 129
E132: 130
E133: 131
E134: 132
E135: 133
E136: 134
E137: 135
E138: 136
E139: 137
E140: 138
E141: 139
E142: 140
E143: 141
E144: 142
E145: 143
E146: 144
E147: 145
E148: 146
E149: 147
E150: 148
E151: 149
E152: 150
E153: 151
E154: 152
E155: 153
E156: 154
E157: 155
E158: 156
E159: 157
E160: 158
E161: 159
E162: 160
E163: 161
E164: 162
E165: 163
E166: 164
E167: 165
E168: 166
E169: 167
E170: 168
E171: 169
E172: 170
E173: 171
E174: 172
E175: 173
E176: 174
E177: 175
E178: 176
E179: 177
E180: 178
E181: 179
E182: 180
E183: 181
E184: 182
E185: 183
E186: 184
E187: 185
E188: 186
E189: 187
E190: 188
E191: 189
E192: 190
E193: 191
E194: 192
E195: 193
E196: 194
E197: 195
E198: 196
E199: 197
E200: 198
... 102 more rows

Sheet Adult
A1: Futurity | B1: Der | C1: Age Inct. | D1: BBR | E1: Draw | F1: Rider Name | G1: Horse Name | H1: Time | I1: Final Time | J1: Placing | K1: Money Earned
E2: 35 | F2: Bristan Kennedy | G2: Copies Famous Saint | H2: 15.651 | J2: 1D 1st | K2: 161
E3: 7 | F3: Kara Large | G3: Credit To Fiesta | H3: 15.729 | J3: 1D 2nd | K3: 97
E4: 25 | F4: Sydney Frey | G4: Great Guns On Dakota | H4: 15.927 | J4: 1D 3rd | K4: 64
E5: 29 | F5: Sydney Frey | G5: Crystals Got Class | H5: 16.007
E6: 18 | F6: Phillip Kenyon | G6: Tillies Hayday | H6: 16.031
E7: 19 | F7: Kelly Allen | G7: Miss JB 133 | H7: 16.09
E8: 36 | F8: Whitney Godinez | G8: Moonshine | H8: 16.132
E9: 13 | F9: Tami Semas | G9: Ninnekahs Guy | H9: 16.167 | J9: 2D 1st | K9: 138
E10: 3 | F10: Tami Semas | G10: Colour Me Gone | H10: 16.172 | J10: 2D 2nd | K10: 83
E11: 42 | F11: Billie Jackson | G11: Frosted Effort | H11: 16.19 | J11: 2D 3rd | K11: 55
E12: 12 | F12: Kelly Allen | G12: Miss JB 1315 | H12: 16.257
E13: 23 | F13: Andrea Cline | G13: Ali Money By Six | H13: 16.353
E14: 8 | F14: Morgan Buelna | G14: Azoomin Azul | H14: 16.363
E15: 22 | F15: Scamper Cole | G15: DM Streak Aboo | H15: 16.407
E16: 45 | F16: Haley Bowen | G16: Sadies Superman | H16: 16.716 | J16: 3D 1st | K16: 92
E17: 37 | F17: Ashleigh Williams | G17: KB Bigtime Dreamer | H17: 16.827 | J17: 3D 2nd | K17: 55
E18: 6 | F18: Phillip Kenyon | G18: Contagious Charm | H18: 16.842 | J18: 3D 3rd | K18: 37
E19: 14 | F19: Alisha Todd | G19: Sheza Amarillo Doc | H19: 16.965
E20: 9 | F20: Jennifer Abbott | G20: Blazin Wagon | H20: 17.056
E21: 28 | F21: Trudy Holloway | G21: Bear Springs Cat | H21: 17.066
E22: 10 | F22: Andrea Cline | G22: Raising Fame | H22: 17.094
E23: 41 | F23: Holly Stormont | G23: Rio Crime | H23: 17.207 | J23: 4D 1st | K23: 69
E24: 34 | F24: Lorinda Van Newkirk | G24: Birdie | H24: 17.228 | J24: 4D 2nd | K24: 41
E25: 31 | F25: Whitney Godinez | G25: So Gals Got Fire | H25: 17.235 | J25: 4D 3rd | K25: 28
E26: 16 | F26: Whitney Fisher | G26: BB French N Easy | H26: 17.292
E27: 30 | F27: Jane Fambro | G27: Classic Frenchman | H27: 17.292
E28: 15 | F28: Karissa Jones | G28: AnitaLotACash | H28: 17.297
E29: 4 | F29: Cassidy Rabb | G29: VF Coup Fulla Coins | H29: 17.312
E30: 32 | F30: Tiffany Cox | G30: C3 Lacy | H30: 17.329
E31: 5 | F31: Kimberly Marshall | G31: Ell Guerrero | H31: 17.383
E32: 40 | F32: Ashleigh Williams | G32: Smokey | H32: 17.427
E33: 46 | F33: Bristan Kennedy | G33: Smart Bayou | H33: 17.458
E34: 1 | F34: Lisa Lageschaar | G34: Just Got Caught | H34: 17.577
E35: 33 | F35: Chelsi McLarty | G35: Sunni | H35: 17.71
E36: 44 | F36: Kaylyn Smith | G36: Pokahawkish | H36: 17.714
E37: 38 | F37: Nicole Buell | G37: Dirty Money | H37: 17.961
E38: 11 | F38: Kellie Autry | G38: Array For First Team | H38: 18.114
E39: 17 | F39: Andrea Cline | G39: Blurry Bug Leo | H39: nt15.666
E40: 24 | F40: Jane Fambro | G40: Spotted Diamond | H40: nt15.889
E41: 43 | F41: Stacey Gates | G41: Johnny On The Rocks | H41: nt15.946
E42: 39 | F42: Emma Chapman-Abbott | G42: VF Chasin Cans | H42: nt15.968
E43: 2 | F43: Denny Ralls | G43: Twitchy | H43: nt17.110
E44: 20 | F44: Kara Large | G44: RSL FirstRoyalEddie | H44: nt23.311
E45: 21 | F45: Trina Murray | G45: Fuel For Dash | H45: scratch
E46: 26 | F46: Catherine Murray | G46: Cinnamon On Top | H46: scratch
E47: 27 | F47: Trina Murray | G47: Say Hello To Goodbye | H47: scratch
E48: 45 | I48: =IF(OR(#REF!=5,#REF!=10,#REF!= 15,#REF!= "BP",#REF!="SCR"),"NT",H48) -> 
E49: 46 | I49: =IF(OR(#REF!=5,#REF!=10,#REF!= 15,#REF!= "BP",#REF!="SCR"),"NT",H49) -> 
E50: 47 | I50: =IF(OR(#REF!=5,#REF!=10,#REF!= 15,#REF!= "BP",#REF!="SCR"),"NT",H50) -> 
E51: 48 | I51: =IF(OR(#REF!=5,#REF!=10,#REF!= 15,#REF!= "BP",#REF!="SCR"),"NT",H51) -> 
E52: 49 | I52: =IF(OR(#REF!=5,#REF!=10,#REF!= 15,#REF!= "BP",#REF!="SCR"),"NT",H52) -> 
E53: 50 | I53: =IF(OR(#REF!=5,#REF!=10,#REF!= 15,#REF!= "BP",#REF!="SCR"),"NT",H53) -> 
E54: 51 | I54: =IF(OR(#REF!=5,#REF!=10,#REF!= 15,#REF!= "BP",#REF!="SCR"),"NT",H54) -> 
E55: 52 | I55: =IF(OR(#REF!=5,#REF!=10,#REF!= 15,#REF!= "BP",#REF!="SCR"),"NT",H55) -> 
E56: 53 | I56: =IF(OR(#REF!=5,#REF!=10,#REF!= 15,#REF!= "BP",#REF!="SCR"),"NT",H56) -> 
E57: 54 | I57: =IF(OR(#REF!=5,#REF!=10,#REF!= 15,#REF!= "BP",#REF!="SCR"),"NT",H57) -> 
E58: 55 | I58: =IF(OR(#REF!=5,#REF!=10,#REF!= 15,#REF!= "BP",#REF!="SCR"),"NT",H58) -> 
E59: 56 | I59: =IF(OR(#REF!=5,#REF!=10,#REF!= 15,#REF!= "BP",#REF!="SCR"),"NT",H59) -> 
E60: 57 | I60: =IF(OR(#REF!=5,#REF!=10,#REF!= 15,#REF!= "BP",#REF!="SCR"),"NT",H60) -> 
E61: 58 | I61: =IF(OR(#REF!=5,#REF!=10,#REF!= 15,#REF!= "BP",#REF!="SCR"),"NT",H61) -> 
E62: 59 | I62: =IF(OR(#REF!=5,#REF!=10,#REF!= 15,#REF!= "BP",#REF!="SCR"),"NT",H62) -> 
E63: 60 | I63: =IF(OR(#REF!=5,#REF!=10,#REF!= 15,#REF!= "BP",#REF!="SCR"),"NT",H63) -> 
E64: 61 | I64: =IF(OR(#REF!=5,#REF!=10,#REF!= 15,#REF!= "BP",#REF!="SCR"),"NT",H64) -> 
E65: 62 | I65: =IF(OR(#REF!=5,#REF!=10,#REF!= 15,#REF!= "BP",#REF!="SCR"),"NT",H65) -> 
E66: 63 | I66: =IF(OR(#REF!=5,#REF!=10,#REF!= 15,#REF!= "BP",#REF!="SCR"),"NT",H66) -> 
E67: 64 | I67: =IF(OR(#REF!=5,#REF!=10,#REF!= 15,#REF!= "BP",#REF!="SCR"),"NT",H67) -> 
E68: 65 | I68: =IF(OR(#REF!=5,#REF!=10,#REF!= 15,#REF!= "BP",#REF!="SCR"),"NT",H68) -> 
E69: 66 | I69: =IF(OR(#REF!=5,#REF!=10,#REF!= 15,#REF!= "BP",#REF!="SCR"),"NT",H69) -> 
E70: 67 | I70: =IF(OR(#REF!=5,#REF!=10,#REF!= 15,#REF!= "BP",#REF!="SCR"),"NT",H70) -> 
E71: 68 | I71: =IF(OR(#REF!=5,#REF!=10,#REF!= 15,#REF!= "BP",#REF!="SCR"),"NT",H71) -> 
E72: 69 | I72: =IF(OR(#REF!=5,#REF!=10,#REF!= 15,#REF!= "BP",#REF!="SCR"),"NT",H72) -> 
E73: 70 | I73: =IF(OR(#REF!=5,#REF!=10,#REF!= 15,#REF!= "BP",#REF!="SCR"),"NT",H73) -> 
E74: 71 | I74: =IF(OR(#REF!=5,#REF!=10,#REF!= 15,#REF!= "BP",#REF!="SCR"),"NT",H74) -> 
E75: 72 | I75: =IF(OR(#REF!=5,#REF!=10,#REF!= 15,#REF!= "BP",#REF!="SCR"),"NT",H75) -> 
E76: 73 | I76: =IF(OR(#REF!=5,#REF!=10,#REF!= 15,#REF!= "BP",#REF!="SCR"),"NT",H76) -> 
E77: 74 | I77: =IF(OR(#REF!=5,#REF!=10,#REF!= 15,#REF!= "BP",#REF!="SCR"),"NT",H77) -> 
E78: 75 | I78: =IF(OR(#REF!=5,#REF!=10,#REF!= 15,#REF!= "BP",#REF!="SCR"),"NT",H78) -> 
E79: 76 | I79: =IF(OR(#REF!=5,#REF!=10,#REF!= 15,#REF!= "BP",#REF!="SCR"),"NT",H79) -> 
E80: 77 | I80: =IF(OR(#REF!=5,#REF!=10,#REF!= 15,#REF!= "BP",#REF!="SCR"),"NT",H80) -> 
E81: 78 | I81: =IF(OR(#REF!=5,#REF!=10,#REF!= 15,#REF!= "BP",#REF!="SCR"),"NT",H81) -> 
E82: 79 | I82: =IF(OR(#REF!=5,#REF!=10,#REF!= 15,#REF!= "BP",#REF!="SCR"),"NT",H82) -> 
E83: 80 | I83: =IF(OR(#REF!=5,#REF!=10,#REF!= 15,#REF!= "BP",#REF!="SCR"),"NT",H83) -> 
E84: 81 | I84: =IF(OR(#REF!=5,#REF!=10,#REF!= 15,#REF!= "BP",#REF!="SCR"),"NT",H84) -> 
E85: 82 | I85: =IF(OR(#REF!=5,#REF!=10,#REF!= 15,#REF!= "BP",#REF!="SCR"),"NT",H85) -> 
E86: 83 | I86: =IF(OR(#REF!=5,#REF!=10,#REF!= 15,#REF!= "BP",#REF!="SCR"),"NT",H86) -> 
E87: 84 | I87: =IF(OR(#REF!=5,#REF!=10,#REF!= 15,#REF!= "BP",#REF!="SCR"),"NT",H87) -> 
E88: 85 | I88: =IF(OR(#REF!=5,#REF!=10,#REF!= 15,#REF!= "BP",#REF!="SCR"),"NT",H88) -> 
E89: 86 | I89: =IF(OR(#REF!=5,#REF!=10,#REF!= 15,#REF!= "BP",#REF!="SCR"),"NT",H89) -> 
E90: 87 | I90: =IF(OR(#REF!=5,#REF!=10,#REF!= 15,#REF!= "BP",#REF!="SCR"),"NT",H90) -> 
E91: 88 | I91: =IF(OR(#REF!=5,#REF!=10,#REF!= 15,#REF!= "BP",#REF!="SCR"),"NT",H91) -> 
E92: 89 | I92: =IF(OR(#REF!=5,#REF!=10,#REF!= 15,#REF!= "BP",#REF!="SCR"),"NT",H92) -> 
E93: 90 | I93: =IF(OR(#REF!=5,#REF!=10,#REF!= 15,#REF!= "BP",#REF!="SCR"),"NT",H93) -> 
E94: 91 | I94: =IF(OR(#REF!=5,#REF!=10,#REF!= 15,#REF!= "BP",#REF!="SCR"),"NT",H94) -> 
E95: 92 | I95: =IF(OR(#REF!=5,#REF!=10,#REF!= 15,#REF!= "BP",#REF!="SCR"),"NT",H95) -> 
E96: 93 | I96: =IF(OR(#REF!=5,#REF!=10,#REF!= 15,#REF!= "BP",#REF!="SCR"),"NT",H96) -> 
E97: 94 | I97: =IF(OR(#REF!=5,#REF!=10,#REF!= 15,#REF!= "BP",#REF!="SCR"),"NT",H97) -> 
E98: 95 | I98: =IF(OR(#REF!=5,#REF!=10,#REF!= 15,#REF!= "BP",#REF!="SCR"),"NT",H98) -> 
E99: 96 | I99: =IF(OR(#REF!=5,#REF!=10,#REF!= 15,#REF!= "BP",#REF!="SCR"),"NT",H99) -> 
E100: 97 | I100: =IF(OR(#REF!=5,#REF!=10,#REF!= 15,#REF!= "BP",#REF!="SCR"),"NT",H100) -> 
E101: 98 | I101: =IF(OR(#REF!=5,#REF!=10,#REF!= 15,#REF!= "BP",#REF!="SCR"),"NT",H101) -> 
E102: 99 | I102: =IF(OR(#REF!=5,#REF!=10,#REF!= 15,#REF!= "BP",#REF!="SCR"),"NT",H102) -> 
E103: 100 | I103: =IF(OR(#REF!=5,#REF!=10,#REF!= 15,#REF!= "BP",#REF!="SCR"),"NT",H103) -> 
E104: 101 | I104: =IF(OR(#REF!=5,#REF!=10,#REF!= 15,#REF!= "BP",#REF!="SCR"),"NT",H104) -> 
E105: 102 | I105: =IF(OR(#REF!=5,#REF!=10,#REF!= 15,#REF!= "BP",#REF!="SCR"),"NT",H105) -> 
E106: 103 | I106: =IF(OR(#REF!=5,#REF!=10,#REF!= 15,#REF!= "BP",#REF!="SCR"),"NT",H106) -> 
E107: 104 | I107: =IF(OR(#REF!=5,#REF!=10,#REF!= 15,#REF!= "BP",#REF!="SCR"),"NT",H107) -> 
E108: 105 | I108: =IF(OR(#REF!=5,#REF!=10,#REF!= 15,#REF!= "BP",#REF!="SCR"),"NT",H108) -> 
E109: 106 | I109: =IF(OR(#REF!=5,#REF!=10,#REF!= 15,#REF!= "BP",#REF!="SCR"),"NT",H109) -> 
E110: 107 | I110: =IF(OR(#REF!=5,#REF!=10,#REF!= 15,#REF!= "BP",#REF!="SCR"),"NT",H110) -> 
E111: 108 | I111: =IF(OR(#REF!=5,#REF!=10,#REF!= 15,#REF!= "BP",#REF!="SCR"),"NT",H111) -> 
E112: 109 | I112: =IF(OR(#REF!=5,#REF!=10,#REF!= 15,#REF!= "BP",#REF!="SCR"),"NT",H112) -> 
E113: 110 | I113: =IF(OR(#REF!=5,#REF!=10,#REF!= 15,#REF!= "BP",#REF!="SCR"),"NT",H113) -> 
E114: 111 | I114: =IF(OR(#REF!=5,#REF!=10,#REF!= 15,#REF!= "BP",#REF!="SCR"),"NT",H114) -> 
E115: 112 | I115: =IF(OR(#REF!=5,#REF!=10,#REF!= 15,#REF!= "BP",#REF!="SCR"),"NT",H115) -> 
E116: 113 | I116: =IF(OR(#REF!=5,#REF!=10,#REF!= 15,#REF!= "BP",#REF!="SCR"),"NT",H116) -> 
E117: 114 | I117: =IF(OR(#REF!=5,#REF!=10,#REF!= 15,#REF!= "BP",#REF!="SCR"),"NT",H117) -> 
E118: 115 | I118: =IF(OR(#REF!=5,#REF!=10,#REF!= 15,#REF!= "BP",#REF!="SCR"),"NT",H118) -> 
E119: 116 | I119: =IF(OR(#REF!=5,#REF!=10,#REF!= 15,#REF!= "BP",#REF!="SCR"),"NT",H119) -> 
E120: 117 | I120: =IF(OR(#REF!=5,#REF!=10,#REF!= 15,#REF!= "BP",#REF!="SCR"),"NT",H120) -> 
E121: 118 | I121: =IF(OR(#REF!=5,#REF!=10,#REF!= 15,#REF!= "BP",#REF!="SCR"),"NT",H121) -> 
E122: 119 | I122: =IF(OR(#REF!=5,#REF!=10,#REF!= 15,#REF!= "BP",#REF!="SCR"),"NT",H122) -> 
E123: 120 | I123: =IF(OR(#REF!=5,#REF!=10,#REF!= 15,#REF!= "BP",#REF!="SCR"),"NT",H123) -> 
E124: 121 | I124: =IF(OR(#REF!=5,#REF!=10,#REF!= 15,#REF!= "BP",#REF!="SCR"),"NT",H124) -> 
E125: 122 | I125: =IF(OR(#REF!=5,#REF!=10,#REF!= 15,#REF!= "BP",#REF!="SCR"),"NT",H125) -> 
E126: 123 | I126: =IF(OR(#REF!=5,#REF!=10,#REF!= 15,#REF!= "BP",#REF!="SCR"),"NT",H126) -> 
E127: 124 | I127: =IF(OR(#REF!=5,#REF!=10,#REF!= 15,#REF!= "BP",#REF!="SCR"),"NT",H127) -> 
E128: 125 | I128: =IF(OR(#REF!=5,#REF!=10,#REF!= 15,#REF!= "BP",#REF!="SCR"),"NT",H128) -> 
E129: 126 | I129: =IF(OR(#REF!=5,#REF!=10,#REF!= 15,#REF!= "BP",#REF!="SCR"),"NT",H129) -> 
E130: 127 | I130: =IF(OR(#REF!=5,#REF!=10,#REF!= 15,#REF!= "BP",#REF!="SCR"),"NT",H130) -> 
E131: 128 | I131: =IF(OR(#REF!=5,#REF!=10,#REF!= 15,#REF!= "BP",#REF!="SCR"),"NT",H131) -> 
E132: 129 | I132: =IF(OR(#REF!=5,#REF!=10,#REF!= 15,#REF!= "BP",#REF!="SCR"),"NT",H132) -> 
E133: 130 | I133: =IF(OR(#REF!=5,#REF!=10,#REF!= 15,#REF!= "BP",#REF!="SCR"),"NT",H133) -> 
E134: 131 | I134: =IF(OR(#REF!=5,#REF!=10,#REF!= 15,#REF!= "BP",#REF!="SCR"),"NT",H134) -> 
E135: 132 | I135: =IF(OR(#REF!=5,#REF!=10,#REF!= 15,#REF!= "BP",#REF!="SCR"),"NT",H135) -> 
E136: 133 | I136: =IF(OR(#REF!=5,#REF!=10,#REF!= 15,#REF!= "BP",#REF!="SCR"),"NT",H136) -> 
E137: 134 | I137: =IF(OR(#REF!=5,#REF!=10,#REF!= 15,#REF!= "BP",#REF!="SCR"),"NT",H137) -> 
E138: 135 | I138: =IF(OR(#REF!=5,#REF!=10,#REF!= 15,#REF!= "BP",#REF!="SCR"),"NT",H138) -> 
E139: 136 | I139: =IF(OR(#REF!=5,#REF!=10,#REF!= 15,#REF!= "BP",#REF!="SCR"),"NT",H139) -> 
E140: 137 | I140: =IF(OR(#REF!=5,#REF!=10,#REF!= 15,#REF!= "BP",#REF!="SCR"),"NT",H140) -> 
E141: 138 | I141: =IF(OR(#REF!=5,#REF!=10,#REF!= 15,#REF!= "BP",#REF!="SCR"),"NT",H141) -> 
E142: 139 | I142: =IF(OR(#REF!=5,#REF!=10,#REF!= 15,#REF!= "BP",#REF!="SCR"),"NT",H142) -> 
E143: 140 | I143: =IF(OR(#REF!=5,#REF!=10,#REF!= 15,#REF!= "BP",#REF!="SCR"),"NT",H143) -> 
E144: 141 | I144: =IF(OR(#REF!=5,#REF!=10,#REF!= 15,#REF!= "BP",#REF!="SCR"),"NT",H144) -> 
E145: 142 | I145: =IF(OR(#REF!=5,#REF!=10,#REF!= 15,#REF!= "BP",#REF!="SCR"),"NT",H145) -> 
E146: 143 | I146: =IF(OR(#REF!=5,#REF!=10,#REF!= 15,#REF!= "BP",#REF!="SCR"),"NT",H146) -> 
E147: 144 | I147: =IF(OR(#REF!=5,#REF!=10,#REF!= 15,#REF!= "BP",#REF!="SCR"),"NT",H147) -> 
E148: 145 | I148: =IF(OR(#REF!=5,#REF!=10,#REF!= 15,#REF!= "BP",#REF!="SCR"),"NT",H148) -> 
E149: 146 | I149: =IF(OR(#REF!=5,#REF!=10,#REF!= 15,#REF!= "BP",#REF!="SCR"),"NT",H149) -> 
E150: 147 | I150: =IF(OR(#REF!=5,#REF!=10,#REF!= 15,#REF!= "BP",#REF!="SCR"),"NT",H150) -> 
E151: 148 | I151: =IF(OR(#REF!=5,#REF!=10,#REF!= 15,#REF!= "BP",#REF!="SCR"),"NT",H151) -> 
E152: 149 | I152: =IF(OR(#REF!=5,#REF!=10,#REF!= 15,#REF!= "BP",#REF!="SCR"),"NT",H152) -> 
E153: 150 | I153: =IF(OR(#REF!=5,#REF!=10,#REF!= 15,#REF!= "BP",#REF!="SCR"),"NT",H153) -> 
E154: 151 | I154: =IF(OR(#REF!=5,#REF!=10,#REF!= 15,#REF!= "BP",#REF!="SCR"),"NT",H154) -> 
E155: 152 | I155: =IF(OR(#REF!=5,#REF!=10,#REF!= 15,#REF!= "BP",#REF!="SCR"),"NT",H155) -> 
E156: 153 | I156: =IF(OR(#REF!=5,#REF!=10,#REF!= 15,#REF!= "BP",#REF!="SCR"),"NT",H156) -> 
E157: 154 | I157: =IF(OR(#REF!=5,#REF!=10,#REF!= 15,#REF!= "BP",#REF!="SCR"),"NT",H157) -> 
E158: 155 | I158: =IF(OR(#REF!=5,#REF!=10,#REF!= 15,#REF!= "BP",#REF!="SCR"),"NT",H158) -> 
E159: 156 | I159: =IF(OR(#REF!=5,#REF!=10,#REF!= 15,#REF!= "BP",#REF!="SCR"),"NT",H159) -> 
E160: 157 | I160: =IF(OR(#REF!=5,#REF!=10,#REF!= 15,#REF!= "BP",#REF!="SCR"),"NT",H160) -> 
E161: 158 | I161: =IF(OR(#REF!=5,#REF!=10,#REF!= 15,#REF!= "BP",#REF!="SCR"),"NT",H161) -> 
E162: 159 | I162: =IF(OR(#REF!=5,#REF!=10,#REF!= 15,#REF!= "BP",#REF!="SCR"),"NT",H162) -> 
E163: 160 | I163: =IF(OR(#REF!=5,#REF!=10,#REF!= 15,#REF!= "BP",#REF!="SCR"),"NT",H163) -> 
E164: 161 | I164: =IF(OR(#REF!=5,#REF!=10,#REF!= 15,#REF!= "BP",#REF!="SCR"),"NT",H164) -> 
E165: 162 | I165: =IF(OR(#REF!=5,#REF!=10,#REF!= 15,#REF!= "BP",#REF!="SCR"),"NT",H165) -> 
E166: 163 | I166: =IF(OR(#REF!=5,#REF!=10,#REF!= 15,#REF!= "BP",#REF!="SCR"),"NT",H166) -> 
E167: 164 | I167: =IF(OR(#REF!=5,#REF!=10,#REF!= 15,#REF!= "BP",#REF!="SCR"),"NT",H167) -> 
E168: 165 | I168: =IF(OR(#REF!=5,#REF!=10,#REF!= 15,#REF!= "BP",#REF!="SCR"),"NT",H168) -> 
E169: 166 | I169: =IF(OR(#REF!=5,#REF!=10,#REF!= 15,#REF!= "BP",#REF!="SCR"),"NT",H169) -> 
E170: 167 | I170: =IF(OR(#REF!=5,#REF!=10,#REF!= 15,#REF!= "BP",#REF!="SCR"),"NT",H170) -> 
E171: 168 | I171: =IF(OR(#REF!=5,#REF!=10,#REF!= 15,#REF!= "BP",#REF!="SCR"),"NT",H171) -> 
E172: 169 | I172: =IF(OR(#REF!=5,#REF!=10,#REF!= 15,#REF!= "BP",#REF!="SCR"),"NT",H172) -> 
E173: 170 | I173: =IF(OR(#REF!=5,#REF!=10,#REF!= 15,#REF!= "BP",#REF!="SCR"),"NT",H173) -> 
E174: 171 | I174: =IF(OR(#REF!=5,#REF!=10,#REF!= 15,#REF!= "BP",#REF!="SCR"),"NT",H174) -> 
E175: 172 | I175: =IF(OR(#REF!=5,#REF!=10,#REF!= 15,#REF!= "BP",#REF!="SCR"),"NT",H175) -> 
E176: 173 | I176: =IF(OR(#REF!=5,#REF!=10,#REF!= 15,#REF!= "BP",#REF!="SCR"),"NT",H176) -> 
E177: 174 | I177: =IF(OR(#REF!=5,#REF!=10,#REF!= 15,#REF!= "BP",#REF!="SCR"),"NT",H177) -> 
E178: 175 | I178: =IF(OR(#REF!=5,#REF!=10,#REF!= 15,#REF!= "BP",#REF!="SCR"),"NT",H178) -> 
E179: 176 | I179: =IF(OR(#REF!=5,#REF!=10,#REF!= 15,#REF!= "BP",#REF!="SCR"),"NT",H179) -> 
E180: 177 | I180: =IF(OR(#REF!=5,#REF!=10,#REF!= 15,#REF!= "BP",#REF!="SCR"),"NT",H180) -> 
E181: 178 | I181: =IF(OR(#REF!=5,#REF!=10,#REF!= 15,#REF!= "BP",#REF!="SCR"),"NT",H181) -> 
E182: 179 | I182: =IF(OR(#REF!=5,#REF!=10,#REF!= 15,#REF!= "BP",#REF!="SCR"),"NT",H182) -> 
E183: 180 | I183: =IF(OR(#REF!=5,#REF!=10,#REF!= 15,#REF!= "BP",#REF!="SCR"),"NT",H183) -> 
E184: 181 | I184: =IF(OR(#REF!=5,#REF!=10,#REF!= 15,#REF!= "BP",#REF!="SCR"),"NT",H184) -> 
E185: 182 | I185: =IF(OR(#REF!=5,#REF!=10,#REF!= 15,#REF!= "BP",#REF!="SCR"),"NT",H185) -> 
E186: 183 | I186: =IF(OR(#REF!=5,#REF!=10,#REF!= 15,#REF!= "BP",#REF!="SCR"),"NT",H186) -> 
E187: 184 | I187: =IF(OR(#REF!=5,#REF!=10,#REF!= 15,#REF!= "BP",#REF!="SCR"),"NT",H187) -> 
E188: 185 | I188: =IF(OR(#REF!=5,#REF!=10,#REF!= 15,#REF!= "BP",#REF!="SCR"),"NT",H188) -> 
E189: 186 | I189: =IF(OR(#REF!=5,#REF!=10,#REF!= 15,#REF!= "BP",#REF!="SCR"),"NT",H189) -> 
E190: 187 | I190: =IF(OR(#REF!=5,#REF!=10,#REF!= 15,#REF!= "BP",#REF!="SCR"),"NT",H190) -> 
E191: 188 | I191: =IF(OR(#REF!=5,#REF!=10,#REF!= 15,#REF!= "BP",#REF!="SCR"),"NT",H191) -> 
E192: 189 | I192: =IF(OR(#REF!=5,#REF!=10,#REF!= 15,#REF!= "BP",#REF!="SCR"),"NT",H192) -> 
E193: 190 | I193: =IF(OR(#REF!=5,#REF!=10,#REF!= 15,#REF!= "BP",#REF!="SCR"),"NT",H193) -> 
E194: 191 | I194: =IF(OR(#REF!=5,#REF!=10,#REF!= 15,#REF!= "BP",#REF!="SCR"),"NT",H194) -> 
E195: 192 | I195: =IF(OR(#REF!=5,#REF!=10,#REF!= 15,#REF!= "BP",#REF!="SCR"),"NT",H195) -> 
E196: 193 | I196: =IF(OR(#REF!=5,#REF!=10,#REF!= 15,#REF!= "BP",#REF!="SCR"),"NT",H196) -> 
E197: 194 | I197: =IF(OR(#REF!=5,#REF!=10,#REF!= 15,#REF!= "BP",#REF!="SCR"),"NT",H197) -> 
E198: 195 | I198: =IF(OR(#REF!=5,#REF!=10,#REF!= 15,#REF!= "BP",#REF!="SCR"),"NT",H198) -> 
E199: 196 | I199: =IF(OR(#REF!=5,#REF!=10,#REF!= 15,#REF!= "BP",#REF!="SCR"),"NT",H199) -> 
E200: 197 | I200: =IF(OR(#REF!=5,#REF!=10,#REF!= 15,#REF!= "BP",#REF!="SCR"),"NT",H200) -> 
... 103 more rows

Sheet Youth
A1: Futurity | B1: Der | C1: Age Inct. | D1: BBR | E1: Draw | F1: Rider Name | G1: Horse Name | H1: Time | I1: Placing | J1: Money Earned
E2: 3 | F2: Patton Lynch | G2: JJJ Bonnnie Rae | H2: 15.338 | I2: 1D 1st | J2: 133
E3: 4 | F3: Whitley Burns | G3: High Society Gal | H3: 16.31 | I3: 2D 1st | J3: 114
E4: 7 | F4: Jesse Harris | G4: Running For Honors | H4: 16.4 | I4: 3D 1st | J4: 76
E5: 9 | F5: Emma Nelson | G5: CJ Ratatouille | H5: 16.544
E6: 12 | F6: Kira Meyers | G6: H | H6: 16.693
E7: 6 | F7: Londyn Baker | G7: Six Is Better | H7: 16.755
E8: 5 | F8: Hadley Durfey | G8: Spark Tie Bar | H8: 16.827
E9: 2 | F9: Emily Duello | G9: Flame On Emma | H9: 17.383 | I9: 4D 1st | J9: 57
E10: 16 | F10: Maddy Myers | G10: Graves Tassie Pepper | H10: 17.386
E11: 14 | F11: Charmarie Allen | G11: Casey | H11: 17.471
E12: 10 | F12: Riley Cook | G12: Frosted In Dreams | H12: 17.63
E13: 15 | F13: Charmarie Allen | G13: Stretch | H13: 17.758
E14: 8 | F14: Sydney Wollett | G14: Hooked On Firewater | H14: 17.973
E15: 18 | F15: Riley Cook | G15: Annie | H15: 20.166
E16: 1 | F16: Hadley Durfey | G16: Deightful Brownies | H16: nt16.733
E17: 17 | F17: Nicole Dockery | G17: Emmett | H17: nt17.162
E18: 13 | F18: Riley Cook | G18: Sam | H18: nt17.447
E19: 19 | F19: Kaylee Buchanan | G19: Especial Sweet Jen | H19: nt17.646
E20: 11 | F20: Reece Cook | G20: Dixie | H20: nt18.535
E21: 20
E22: 21
E23: 22
E24: 23
E25: 24
E26: 25
E27: 26
E28: 27
E29: 28
E30: 29
E31: 30
E32: 31
E33: 32
E34: 33
E35: 34
E36: 35
E37: 36
E38: 37
E39: 38
E40: 39
E41: 40
E42: 41
E43: 42
E44: 43
E45: 44
E46: 45
E47: 46
E48: 47
E49: 48
E50: 49
E51: 50
E52: 51
E53: 52
E54: 53
E55: 54
E56: 55
E57: 56
E58: 57
E59: 58
E60: 59
E61: 60
E62: 61
E63: 62
E64: 63
E65: 64
E66: 65
E67: 66
E68: 67
E69: 68
E70: 69
E71: 70
E72: 71
E73: 72
E74: 73
E75: 74
E76: 75
E77: 76
E78: 77
E79: 78
E80: 79
E81: 80
E82: 81
E83: 82
E84: 83
E85: 84
E86: 85
E87: 86
E88: 87
E89: 88
E90: 89
E91: 90
E92: 91
E93: 92
E94: 93
E95: 94
E96: 95
E97: 96
E98: 97
E99: 98
E100: 99
E101: 100
E102: 101
E103: 102
E104: 103
E105: 104
E106: 105
E107: 106
E108: 107
E109: 108
E110: 109
E111: 110
E112: 111
E113: 112
E114: 113
E115: 114
E116: 115
E117: 116
E118: 117
E119: 118
E120: 119
E121: 120
E122: 121
E123: 122
E124: 123
E125: 124
E126: 125
E127: 126
E128: 127
E129: 128
E130: 129
E131: 130
E132: 131
E133: 132
E134: 133
E135: 134
E136: 135
E137: 136
E138: 137
E139: 138
E140: 139
E141: 140
E142: 141
E143: 142
E144: 143
E145: 144
E146: 145
E147: 146
E148: 147
E149: 148
E150: 149
E151: 150
E152: 151
E153: 152
E154: 153
E155: 154
E156: 155
E157: 156
E158: 157
E159: 158
E160: 159
E161: 160
E162: 161
E163: 162
E164: 163
E165: 164
E166: 165
E167: 166
E168: 167
E169: 168
E170: 169
E171: 170
E172: 171
E173: 172
E174: 173
E175: 174
E176: 175
E177: 176
E178: 177
E179: 178
E180: 179
E181: 180
E182: 181
E183: 182
E184: 183
E185: 184
E186: 185
E187: 186
E188: 187
E189: 188
E190: 189
E191: 190
E192: 191
E193: 192
E194: 193
E195: 194
E196: 195
E197: 196
E198: 197
E199: 198
E200: 199
... 101 more rows

Sheet Derby
A1: Futurity | B1: Der | C1: Age Inct. | D1: BBR | E1: Draw | F1: Rider Name | G1: Horse Name | H1: Time | I1: Final Time | J1: Placing | K1: Money Earned
E2: 1 | F2: Kassie Mowry | G2: Girls Dig Fame | I2: 15.903 | J2: 1D 1st | K2: 372 | L2: 389
E3: 6 | F3: Kelly Valdez | G3: Dashinlikafame | I3: 15.974
E4: 13 | F4: Sayde Simpson | G4: God Given Fame | I4: 16.081
E5: 10 | F5: Nisa Berry | G5: VF Look Im Back | I5: 16.096
E6: 18 | F6: Danyelle Campbell | G6: AR Dash Ta Fame | I6: 16.122
E7: 17 | F7: Whitney Godinez | G7: Moonshine | I7: 16.132
E8: 2 | F8: Tami Semas | G8: Colour Me Gone | I8: 16.172
E9: 11 | F9: Ashley Harvey | G9: Wheres My Sox | I9: 16.332
E10: 16 | F10: Candie Miner | G10: Kitnic | I10: 16.332
E11: 15 | F11: Natalie Bland | G11: THC OK Fuel | I11: 16.541 | J11: 2D 1st | K11: 160 | L11: 167
E12: 19 | F12: Haley Bowen | G12: Sadies Superman | I12: 16.716
E13: 8 | F13: Ashley Harvey | G13: Leading U Ta Fame | I13: 16.717
E14: 14 | F14: Hanna Forbes | G14: Eye Jess WIn | I14: 16.829
E15: 4 | F15: Phillip Kenyon | G15: Contagious Charm | I15: 16.842
E16: 12 | F16: Hanna Forbes | G16: Eyesa Stoli Dream | I16: 16.886
E17: 7 | F17: Andrea Cline | G17: Raising Fame | I17: 17.094
E18: 3 | F18: Cassidy Rabb | G18: VF Coup Fulla Coins | I18: 17.312
E19: 5 | F19: Shea Lynn Leach | G19: Louie Bug | I19: nt15.953
E20: 9 | F20: Hanna Forbes | G20: Ivory Candy | I20: nt16.329
E21: 19 | I21: =IF(OR(#REF!=5,#REF!=10,#REF!= 15,#REF!= "BP",#REF!="SCR"),"NT",H21) -> 
E22: 20 | I22: =IF(OR(#REF!=5,#REF!=10,#REF!= 15,#REF!= "BP",#REF!="SCR"),"NT",H22) -> 
E23: 21 | I23: =IF(OR(#REF!=5,#REF!=10,#REF!= 15,#REF!= "BP",#REF!="SCR"),"NT",H23) -> 
E24: 22 | I24: =IF(OR(#REF!=5,#REF!=10,#REF!= 15,#REF!= "BP",#REF!="SCR"),"NT",H24) -> 
E25: 23 | I25: =IF(OR(#REF!=5,#REF!=10,#REF!= 15,#REF!= "BP",#REF!="SCR"),"NT",H25) -> 
E26: 24 | I26: =IF(OR(#REF!=5,#REF!=10,#REF!= 15,#REF!= "BP",#REF!="SCR"),"NT",H26) -> 
E27: 25 | I27: =IF(OR(#REF!=5,#REF!=10,#REF!= 15,#REF!= "BP",#REF!="SCR"),"NT",H27) -> 
E28: 26 | I28: =IF(OR(#REF!=5,#REF!=10,#REF!= 15,#REF!= "BP",#REF!="SCR"),"NT",H28) -> 
E29: 27 | I29: =IF(OR(#REF!=5,#REF!=10,#REF!= 15,#REF!= "BP",#REF!="SCR"),"NT",H29) -> 
E30: 28 | I30: =IF(OR(#REF!=5,#REF!=10,#REF!= 15,#REF!= "BP",#REF!="SCR"),"NT",H30) -> 
E31: 29 | I31: =IF(OR(#REF!=5,#REF!=10,#REF!= 15,#REF!= "BP",#REF!="SCR"),"NT",H31) -> 
E32: 30 | I32: =IF(OR(#REF!=5,#REF!=10,#REF!= 15,#REF!= "BP",#REF!="SCR"),"NT",H32) -> 
E33: 31 | I33: =IF(OR(#REF!=5,#REF!=10,#REF!= 15,#REF!= "BP",#REF!="SCR"),"NT",H33) -> 
E34: 32 | I34: =IF(OR(#REF!=5,#REF!=10,#REF!= 15,#REF!= "BP",#REF!="SCR"),"NT",H34) -> 
E35: 33 | I35: =IF(OR(#REF!=5,#REF!=10,#REF!= 15,#REF!= "BP",#REF!="SCR"),"NT",H35) -> 
E36: 34 | I36: =IF(OR(#REF!=5,#REF!=10,#REF!= 15,#REF!= "BP",#REF!="SCR"),"NT",H36) -> 
E37: 35 | I37: =IF(OR(#REF!=5,#REF!=10,#REF!= 15,#REF!= "BP",#REF!="SCR"),"NT",H37) -> 
E38: 36 | I38: =IF(OR(#REF!=5,#REF!=10,#REF!= 15,#REF!= "BP",#REF!="SCR"),"NT",H38) -> 
E39: 37 | I39: =IF(OR(#REF!=5,#REF!=10,#REF!= 15,#REF!= "BP",#REF!="SCR"),"NT",H39) -> 
E40: 38 | I40: =IF(OR(#REF!=5,#REF!=10,#REF!= 15,#REF!= "BP",#REF!="SCR"),"NT",H40) -> 
E41: 39 | I41: =IF(OR(#REF!=5,#REF!=10,#REF!= 15,#REF!= "BP",#REF!="SCR"),"NT",H41) -> 
E42: 40 | I42: =IF(OR(#REF!=5,#REF!=10,#REF!= 15,#REF!= "BP",#REF!="SCR"),"NT",H42) -> 
E43: 41 | I43: =IF(OR(#REF!=5,#REF!=10,#REF!= 15,#REF!= "BP",#REF!="SCR"),"NT",H43) -> 
E44: 42 | I44: =IF(OR(#REF!=5,#REF!=10,#REF!= 15,#REF!= "BP",#REF!="SCR"),"NT",H44) -> 
E45: 43 | I45: =IF(OR(#REF!=5,#REF!=10,#REF!= 15,#REF!= "BP",#REF!="SCR"),"NT",H45) -> 
E46: 44 | I46: =IF(OR(#REF!=5,#REF!=10,#REF!= 15,#REF!= "BP",#REF!="SCR"),"NT",H46) -> 
E47: 45 | I47: =IF(OR(#REF!=5,#REF!=10,#REF!= 15,#REF!= "BP",#REF!="SCR"),"NT",H47) -> 
E48: 46 | I48: =IF(OR(#REF!=5,#REF!=10,#REF!= 15,#REF!= "BP",#REF!="SCR"),"NT",H48) -> 
E49: 47 | I49: =IF(OR(#REF!=5,#REF!=10,#REF!= 15,#REF!= "BP",#REF!="SCR"),"NT",H49) -> 
E50: 48 | I50: =IF(OR(#REF!=5,#REF!=10,#REF!= 15,#REF!= "BP",#REF!="SCR"),"NT",H50) -> 
E51: 49 | I51: =IF(OR(#REF!=5,#REF!=10,#REF!= 15,#REF!= "BP",#REF!="SCR"),"NT",H51) -> 
E52: 50 | I52: =IF(OR(#REF!=5,#REF!=10,#REF!= 15,#REF!= "BP",#REF!="SCR"),"NT",H52) -> 
E53: 51 | I53: =IF(OR(#REF!=5,#REF!=10,#REF!= 15,#REF!= "BP",#REF!="SCR"),"NT",H53) -> 
E54: 52 | I54: =IF(OR(#REF!=5,#REF!=10,#REF!= 15,#REF!= "BP",#REF!="SCR"),"NT",H54) -> 
E55: 53 | I55: =IF(OR(#REF!=5,#REF!=10,#REF!= 15,#REF!= "BP",#REF!="SCR"),"NT",H55) -> 
E56: 54 | I56: =IF(OR(#REF!=5,#REF!=10,#REF!= 15,#REF!= "BP",#REF!="SCR"),"NT",H56) -> 
E57: 55 | I57: =IF(OR(#REF!=5,#REF!=10,#REF!= 15,#REF!= "BP",#REF!="SCR"),"NT",H57) -> 
E58: 56 | I58: =IF(OR(#REF!=5,#REF!=10,#REF!= 15,#REF!= "BP",#REF!="SCR"),"NT",H58) -> 
E59: 57 | I59: =IF(OR(#REF!=5,#REF!=10,#REF!= 15,#REF!= "BP",#REF!="SCR"),"NT",H59) -> 
E60: 58 | I60: =IF(OR(#REF!=5,#REF!=10,#REF!= 15,#REF!= "BP",#REF!="SCR"),"NT",H60) -> 
E61: 59 | I61: =IF(OR(#REF!=5,#REF!=10,#REF!= 15,#REF!= "BP",#REF!="SCR"),"NT",H61) -> 
E62: 60 | I62: =IF(OR(#REF!=5,#REF!=10,#REF!= 15,#REF!= "BP",#REF!="SCR"),"NT",H62) -> 
E63: 61 | I63: =IF(OR(#REF!=5,#REF!=10,#REF!= 15,#REF!= "BP",#REF!="SCR"),"NT",H63) -> 
E64: 62 | I64: =IF(OR(#REF!=5,#REF!=10,#REF!= 15,#REF!= "BP",#REF!="SCR"),"NT",H64) -> 
E65: 63 | I65: =IF(OR(#REF!=5,#REF!=10,#REF!= 15,#REF!= "BP",#REF!="SCR"),"NT",H65) -> 
E66: 64 | I66: =IF(OR(#REF!=5,#REF!=10,#REF!= 15,#REF!= "BP",#REF!="SCR"),"NT",H66) -> 
E67: 65 | I67: =IF(OR(#REF!=5,#REF!=10,#REF!= 15,#REF!= "BP",#REF!="SCR"),"NT",H67) -> 
E68: 66 | I68: =IF(OR(#REF!=5,#REF!=10,#REF!= 15,#REF!= "BP",#REF!="SCR"),"NT",H68) -> 
E69: 67 | I69: =IF(OR(#REF!=5,#REF!=10,#REF!= 15,#REF!= "BP",#REF!="SCR"),"NT",H69) -> 
E70: 68 | I70: =IF(OR(#REF!=5,#REF!=10,#REF!= 15,#REF!= "BP",#REF!="SCR"),"NT",H70) -> 
E71: 69 | I71: =IF(OR(#REF!=5,#REF!=10,#REF!= 15,#REF!= "BP",#REF!="SCR"),"NT",H71) -> 
E72: 70 | I72: =IF(OR(#REF!=5,#REF!=10,#REF!= 15,#REF!= "BP",#REF!="SCR"),"NT",H72) -> 
E73: 71 | I73: =IF(OR(#REF!=5,#REF!=10,#REF!= 15,#REF!= "BP",#REF!="SCR"),"NT",H73) -> 
E74: 72 | I74: =IF(OR(#REF!=5,#REF!=10,#REF!= 15,#REF!= "BP",#REF!="SCR"),"NT",H74) -> 
E75: 73 | I75: =IF(OR(#REF!=5,#REF!=10,#REF!= 15,#REF!= "BP",#REF!="SCR"),"NT",H75) -> 
E76: 74 | I76: =IF(OR(#REF!=5,#REF!=10,#REF!= 15,#REF!= "BP",#REF!="SCR"),"NT",H76) -> 
E77: 75 | I77: =IF(OR(#REF!=5,#REF!=10,#REF!= 15,#REF!= "BP",#REF!="SCR"),"NT",H77) -> 
E78: 76 | I78: =IF(OR(#REF!=5,#REF!=10,#REF!= 15,#REF!= "BP",#REF!="SCR"),"NT",H78) -> 
E79: 77 | I79: =IF(OR(#REF!=5,#REF!=10,#REF!= 15,#REF!= "BP",#REF!="SCR"),"NT",H79) -> 
E80: 78 | I80: =IF(OR(#REF!=5,#REF!=10,#REF!= 15,#REF!= "BP",#REF!="SCR"),"NT",H80) -> 
E81: 79 | I81: =IF(OR(#REF!=5,#REF!=10,#REF!= 15,#REF!= "BP",#REF!="SCR"),"NT",H81) -> 
E82: 80 | I82: =IF(OR(#REF!=5,#REF!=10,#REF!= 15,#REF!= "BP",#REF!="SCR"),"NT",H82) -> 
E83: 81 | I83: =IF(OR(#REF!=5,#REF!=10,#REF!= 15,#REF!= "BP",#REF!="SCR"),"NT",H83) -> 
E84: 82 | I84: =IF(OR(#REF!=5,#REF!=10,#REF!= 15,#REF!= "BP",#REF!="SCR"),"NT",H84) -> 
E85: 83 | I85: =IF(OR(#REF!=5,#REF!=10,#REF!= 15,#REF!= "BP",#REF!="SCR"),"NT",H85) -> 
E86: 84 | I86: =IF(OR(#REF!=5,#REF!=10,#REF!= 15,#REF!= "BP",#REF!="SCR"),"NT",H86) -> 
E87: 85 | I87: =IF(OR(#REF!=5,#REF!=10,#REF!= 15,#REF!= "BP",#REF!="SCR"),"NT",H87) -> 
E88: 86 | I88: =IF(OR(#REF!=5,#REF!=10,#REF!= 15,#REF!= "BP",#REF!="SCR"),"NT",H88) -> 
E89: 87 | I89: =IF(OR(#REF!=5,#REF!=10,#REF!= 15,#REF!= "BP",#REF!="SCR"),"NT",H89) -> 
E90: 88 | I90: =IF(OR(#REF!=5,#REF!=10,#REF!= 15,#REF!= "BP",#REF!="SCR"),"NT",H90) -> 
E91: 89 | I91: =IF(OR(#REF!=5,#REF!=10,#REF!= 15,#REF!= "BP",#REF!="SCR"),"NT",H91) -> 
E92: 90 | I92: =IF(OR(#REF!=5,#REF!=10,#REF!= 15,#REF!= "BP",#REF!="SCR"),"NT",H92) -> 
E93: 91 | I93: =IF(OR(#REF!=5,#REF!=10,#REF!= 15,#REF!= "BP",#REF!="SCR"),"NT",H93) -> 
E94: 92 | I94: =IF(OR(#REF!=5,#REF!=10,#REF!= 15,#REF!= "BP",#REF!="SCR"),"NT",H94) -> 
E95: 93 | I95: =IF(OR(#REF!=5,#REF!=10,#REF!= 15,#REF!= "BP",#REF!="SCR"),"NT",H95) -> 
E96: 94 | I96: =IF(OR(#REF!=5,#REF!=10,#REF!= 15,#REF!= "BP",#REF!="SCR"),"NT",H96) -> 
E97: 95 | I97: =IF(OR(#REF!=5,#REF!=10,#REF!= 15,#REF!= "BP",#REF!="SCR"),"NT",H97) -> 
E98: 96 | I98: =IF(OR(#REF!=5,#REF!=10,#REF!= 15,#REF!= "BP",#REF!="SCR"),"NT",H98) -> 
E99: 97 | I99: =IF(OR(#REF!=5,#REF!=10,#REF!= 15,#REF!= "BP",#REF!="SCR"),"NT",H99) -> 
E100: 98 | I100: =IF(OR(#REF!=5,#REF!=10,#REF!= 15,#REF!= "BP",#REF!="SCR"),"NT",H100) -> 
E101: 99 | I101: =IF(OR(#REF!=5,#REF!=10,#REF!= 15,#REF!= "BP",#REF!="SCR"),"NT",H101) -> 
E102: 100 | I102: =IF(OR(#REF!=5,#REF!=10,#REF!= 15,#REF!= "BP",#REF!="SCR"),"NT",H102) -> 
E103: 101 | I103: =IF(OR(#REF!=5,#REF!=10,#REF!= 15,#REF!= "BP",#REF!="SCR"),"NT",H103) -> 
E104: 102 | I104: =IF(OR(#REF!=5,#REF!=10,#REF!= 15,#REF!= "BP",#REF!="SCR"),"NT",H104) -> 
E105: 103 | I105: =IF(OR(#REF!=5,#REF!=10,#REF!= 15,#REF!= "BP",#REF!="SCR"),"NT",H105) -> 
E106: 104 | I106: =IF(OR(#REF!=5,#REF!=10,#REF!= 15,#REF!= "BP",#REF!="SCR"),"NT",H106) -> 
E107: 105 | I107: =IF(OR(#REF!=5,#REF!=10,#REF!= 15,#REF!= "BP",#REF!="SCR"),"NT",H107) -> 
E108: 106 | I108: =IF(OR(#REF!=5,#REF!=10,#REF!= 15,#REF!= "BP",#REF!="SCR"),"NT",H108) -> 
E109: 107 | I109: =IF(OR(#REF!=5,#REF!=10,#REF!= 15,#REF!= "BP",#REF!="SCR"),"NT",H109) -> 
E110: 108 | I110: =IF(OR(#REF!=5,#REF!=10,#REF!= 15,#REF!= "BP",#REF!="SCR"),"NT",H110) -> 
E111: 109 | I111: =IF(OR(#REF!=5,#REF!=10,#REF!= 15,#REF!= "BP",#REF!="SCR"),"NT",H111) -> 
E112: 110 | I112: =IF(OR(#REF!=5,#REF!=10,#REF!= 15,#REF!= "BP",#REF!="SCR"),"NT",H112) -> 
E113: 111 | I113: =IF(OR(#REF!=5,#REF!=10,#REF!= 15,#REF!= "BP",#REF!="SCR"),"NT",H113) -> 
E114: 112 | I114: =IF(OR(#REF!=5,#REF!=10,#REF!= 15,#REF!= "BP",#REF!="SCR"),"NT",H114) -> 
E115: 113 | I115: =IF(OR(#REF!=5,#REF!=10,#REF!= 15,#REF!= "BP",#REF!="SCR"),"NT",H115) -> 
E116: 114 | I116: =IF(OR(#REF!=5,#REF!=10,#REF!= 15,#REF!= "BP",#REF!="SCR"),"NT",H116) -> 
E117: 115 | I117: =IF(OR(#REF!=5,#REF!=10,#REF!= 15,#REF!= "BP",#REF!="SCR"),"NT",H117) -> 
E118: 116 | I118: =IF(OR(#REF!=5,#REF!=10,#REF!= 15,#REF!= "BP",#REF!="SCR"),"NT",H118) -> 
E119: 117 | I119: =IF(OR(#REF!=5,#REF!=10,#REF!= 15,#REF!= "BP",#REF!="SCR"),"NT",H119) -> 
E120: 118 | I120: =IF(OR(#REF!=5,#REF!=10,#REF!= 15,#REF!= "BP",#REF!="SCR"),"NT",H120) -> 
E121: 119 | I121: =IF(OR(#REF!=5,#REF!=10,#REF!= 15,#REF!= "BP",#REF!="SCR"),"NT",H121) -> 
E122: 120 | I122: =IF(OR(#REF!=5,#REF!=10,#REF!= 15,#REF!= "BP",#REF!="SCR"),"NT",H122) -> 
E123: 121 | I123: =IF(OR(#REF!=5,#REF!=10,#REF!= 15,#REF!= "BP",#REF!="SCR"),"NT",H123) -> 
E124: 122 | I124: =IF(OR(#REF!=5,#REF!=10,#REF!= 15,#REF!= "BP",#REF!="SCR"),"NT",H124) -> 
E125: 123 | I125: =IF(OR(#REF!=5,#REF!=10,#REF!= 15,#REF!= "BP",#REF!="SCR"),"NT",H125) -> 
E126: 124 | I126: =IF(OR(#REF!=5,#REF!=10,#REF!= 15,#REF!= "BP",#REF!="SCR"),"NT",H126) -> 
E127: 125 | I127: =IF(OR(#REF!=5,#REF!=10,#REF!= 15,#REF!= "BP",#REF!="SCR"),"NT",H127) -> 
E128: 126 | I128: =IF(OR(#REF!=5,#REF!=10,#REF!= 15,#REF!= "BP",#REF!="SCR"),"NT",H128) -> 
E129: 127 | I129: =IF(OR(#REF!=5,#REF!=10,#REF!= 15,#REF!= "BP",#REF!="SCR"),"NT",H129) -> 
E130: 128 | I130: =IF(OR(#REF!=5,#REF!=10,#REF!= 15,#REF!= "BP",#REF!="SCR"),"NT",H130) -> 
E131: 129 | I131: =IF(OR(#REF!=5,#REF!=10,#REF!= 15,#REF!= "BP",#REF!="SCR"),"NT",H131) -> 
E132: 130 | I132: =IF(OR(#REF!=5,#REF!=10,#REF!= 15,#REF!= "BP",#REF!="SCR"),"NT",H132) -> 
E133: 131 | I133: =IF(OR(#REF!=5,#REF!=10,#REF!= 15,#REF!= "BP",#REF!="SCR"),"NT",H133) -> 
E134: 132 | I134: =IF(OR(#REF!=5,#REF!=10,#REF!= 15,#REF!= "BP",#REF!="SCR"),"NT",H134) -> 
E135: 133 | I135: =IF(OR(#REF!=5,#REF!=10,#REF!= 15,#REF!= "BP",#REF!="SCR"),"NT",H135) -> 
E136: 134 | I136: =IF(OR(#REF!=5,#REF!=10,#REF!= 15,#REF!= "BP",#REF!="SCR"),"NT",H136) -> 
E137: 135 | I137: =IF(OR(#REF!=5,#REF!=10,#REF!= 15,#REF!= "BP",#REF!="SCR"),"NT",H137) -> 
E138: 136 | I138: =IF(OR(#REF!=5,#REF!=10,#REF!= 15,#REF!= "BP",#REF!="SCR"),"NT",H138) -> 
E139: 137 | I139: =IF(OR(#REF!=5,#REF!=10,#REF!= 15,#REF!= "BP",#REF!="SCR"),"NT",H139) -> 
E140: 138 | I140: =IF(OR(#REF!=5,#REF!=10,#REF!= 15,#REF!= "BP",#REF!="SCR"),"NT",H140) -> 
E141: 139 | I141: =IF(OR(#REF!=5,#REF!=10,#REF!= 15,#REF!= "BP",#REF!="SCR"),"NT",H141) -> 
E142: 140 | I142: =IF(OR(#REF!=5,#REF!=10,#REF!= 15,#REF!= "BP",#REF!="SCR"),"NT",H142) -> 
E143: 141 | I143: =IF(OR(#REF!=5,#REF!=10,#REF!= 15,#REF!= "BP",#REF!="SCR"),"NT",H143) -> 
E144: 142 | I144: =IF(OR(#REF!=5,#REF!=10,#REF!= 15,#REF!= "BP",#REF!="SCR"),"NT",H144) -> 
E145: 143 | I145: =IF(OR(#REF!=5,#REF!=10,#REF!= 15,#REF!= "BP",#REF!="SCR"),"NT",H145) -> 
E146: 144 | I146: =IF(OR(#REF!=5,#REF!=10,#REF!= 15,#REF!= "BP",#REF!="SCR"),"NT",H146) -> 
E147: 145 | I147: =IF(OR(#REF!=5,#REF!=10,#REF!= 15,#REF!= "BP",#REF!="SCR"),"NT",H147) -> 
E148: 146 | I148: =IF(OR(#REF!=5,#REF!=10,#REF!= 15,#REF!= "BP",#REF!="SCR"),"NT",H148) -> 
E149: 147 | I149: =IF(OR(#REF!=5,#REF!=10,#REF!= 15,#REF!= "BP",#REF!="SCR"),"NT",H149) -> 
E150: 148 | I150: =IF(OR(#REF!=5,#REF!=10,#REF!= 15,#REF!= "BP",#REF!="SCR"),"NT",H150) -> 
E151: 149 | I151: =IF(OR(#REF!=5,#REF!=10,#REF!= 15,#REF!= "BP",#REF!="SCR"),"NT",H151) -> 
E152: 150 | I152: =IF(OR(#REF!=5,#REF!=10,#REF!= 15,#REF!= "BP",#REF!="SCR"),"NT",H152) -> 
E153: 151 | I153: =IF(OR(#REF!=5,#REF!=10,#REF!= 15,#REF!= "BP",#REF!="SCR"),"NT",H153) -> 
E154: 152 | I154: =IF(OR(#REF!=5,#REF!=10,#REF!= 15,#REF!= "BP",#REF!="SCR"),"NT",H154) -> 
E155: 153 | I155: =IF(OR(#REF!=5,#REF!=10,#REF!= 15,#REF!= "BP",#REF!="SCR"),"NT",H155) -> 
E156: 154 | I156: =IF(OR(#REF!=5,#REF!=10,#REF!= 15,#REF!= "BP",#REF!="SCR"),"NT",H156) -> 
E157: 155 | I157: =IF(OR(#REF!=5,#REF!=10,#REF!= 15,#REF!= "BP",#REF!="SCR"),"NT",H157) -> 
E158: 156 | I158: =IF(OR(#REF!=5,#REF!=10,#REF!= 15,#REF!= "BP",#REF!="SCR"),"NT",H158) -> 
E159: 157 | I159: =IF(OR(#REF!=5,#REF!=10,#REF!= 15,#REF!= "BP",#REF!="SCR"),"NT",H159) -> 
E160: 158 | I160: =IF(OR(#REF!=5,#REF!=10,#REF!= 15,#REF!= "BP",#REF!="SCR"),"NT",H160) -> 
E161: 159 | I161: =IF(OR(#REF!=5,#REF!=10,#REF!= 15,#REF!= "BP",#REF!="SCR"),"NT",H161) -> 
E162: 160 | I162: =IF(OR(#REF!=5,#REF!=10,#REF!= 15,#REF!= "BP",#REF!="SCR"),"NT",H162) -> 
E163: 161 | I163: =IF(OR(#REF!=5,#REF!=10,#REF!= 15,#REF!= "BP",#REF!="SCR"),"NT",H163) -> 
E164: 162 | I164: =IF(OR(#REF!=5,#REF!=10,#REF!= 15,#REF!= "BP",#REF!="SCR"),"NT",H164) -> 
E165: 163 | I165: =IF(OR(#REF!=5,#REF!=10,#REF!= 15,#REF!= "BP",#REF!="SCR"),"NT",H165) -> 
E166: 164 | I166: =IF(OR(#REF!=5,#REF!=10,#REF!= 15,#REF!= "BP",#REF!="SCR"),"NT",H166) -> 
E167: 165 | I167: =IF(OR(#REF!=5,#REF!=10,#REF!= 15,#REF!= "BP",#REF!="SCR"),"NT",H167) -> 
E168: 166 | I168: =IF(OR(#REF!=5,#REF!=10,#REF!= 15,#REF!= "BP",#REF!="SCR"),"NT",H168) -> 
E169: 167 | I169: =IF(OR(#REF!=5,#REF!=10,#REF!= 15,#REF!= "BP",#REF!="SCR"),"NT",H169) -> 
E170: 168 | I170: =IF(OR(#REF!=5,#REF!=10,#REF!= 15,#REF!= "BP",#REF!="SCR"),"NT",H170) -> 
E171: 169 | I171: =IF(OR(#REF!=5,#REF!=10,#REF!= 15,#REF!= "BP",#REF!="SCR"),"NT",H171) -> 
E172: 170 | I172: =IF(OR(#REF!=5,#REF!=10,#REF!= 15,#REF!= "BP",#REF!="SCR"),"NT",H172) -> 
E173: 171 | I173: =IF(OR(#REF!=5,#REF!=10,#REF!= 15,#REF!= "BP",#REF!="SCR"),"NT",H173) -> 
E174: 172 | I174: =IF(OR(#REF!=5,#REF!=10,#REF!= 15,#REF!= "BP",#REF!="SCR"),"NT",H174) -> 
E175: 173 | I175: =IF(OR(#REF!=5,#REF!=10,#REF!= 15,#REF!= "BP",#REF!="SCR"),"NT",H175) -> 
E176: 174 | I176: =IF(OR(#REF!=5,#REF!=10,#REF!= 15,#REF!= "BP",#REF!="SCR"),"NT",H176) -> 
E177: 175 | I177: =IF(OR(#REF!=5,#REF!=10,#REF!= 15,#REF!= "BP",#REF!="SCR"),"NT",H177) -> 
E178: 176 | I178: =IF(OR(#REF!=5,#REF!=10,#REF!= 15,#REF!= "BP",#REF!="SCR"),"NT",H178) -> 
E179: 177 | I179: =IF(OR(#REF!=5,#REF!=10,#REF!= 15,#REF!= "BP",#REF!="SCR"),"NT",H179) -> 
E180: 178 | I180: =IF(OR(#REF!=5,#REF!=10,#REF!= 15,#REF!= "BP",#REF!="SCR"),"NT",H180) -> 
E181: 179 | I181: =IF(OR(#REF!=5,#REF!=10,#REF!= 15,#REF!= "BP",#REF!="SCR"),"NT",H181) -> 
E182: 180 | I182: =IF(OR(#REF!=5,#REF!=10,#REF!= 15,#REF!= "BP",#REF!="SCR"),"NT",H182) -> 
E183: 181 | I183: =IF(OR(#REF!=5,#REF!=10,#REF!= 15,#REF!= "BP",#REF!="SCR"),"NT",H183) -> 
E184: 182 | I184: =IF(OR(#REF!=5,#REF!=10,#REF!= 15,#REF!= "BP",#REF!="SCR"),"NT",H184) -> 
E185: 183 | I185: =IF(OR(#REF!=5,#REF!=10,#REF!= 15,#REF!= "BP",#REF!="SCR"),"NT",H185) -> 
E186: 184 | I186: =IF(OR(#REF!=5,#REF!=10,#REF!= 15,#REF!= "BP",#REF!="SCR"),"NT",H186) -> 
E187: 185 | I187: =IF(OR(#REF!=5,#REF!=10,#REF!= 15,#REF!= "BP",#REF!="SCR"),"NT",H187) -> 
E188: 186 | I188: =IF(OR(#REF!=5,#REF!=10,#REF!= 15,#REF!= "BP",#REF!="SCR"),"NT",H188) -> 
E189: 187 | I189: =IF(OR(#REF!=5,#REF!=10,#REF!= 15,#REF!= "BP",#REF!="SCR"),"NT",H189) -> 
E190: 188 | I190: =IF(OR(#REF!=5,#REF!=10,#REF!= 15,#REF!= "BP",#REF!="SCR"),"NT",H190) -> 
E191: 189 | I191: =IF(OR(#REF!=5,#REF!=10,#REF!= 15,#REF!= "BP",#REF!="SCR"),"NT",H191) -> 
E192: 190 | I192: =IF(OR(#REF!=5,#REF!=10,#REF!= 15,#REF!= "BP",#REF!="SCR"),"NT",H192) -> 
E193: 191 | I193: =IF(OR(#REF!=5,#REF!=10,#REF!= 15,#REF!= "BP",#REF!="SCR"),"NT",H193) -> 
E194: 192 | I194: =IF(OR(#REF!=5,#REF!=10,#REF!= 15,#REF!= "BP",#REF!="SCR"),"NT",H194) -> 
E195: 193 | I195: =IF(OR(#REF!=5,#REF!=10,#REF!= 15,#REF!= "BP",#REF!="SCR"),"NT",H195) -> 
E196: 194 | I196: =IF(OR(#REF!=5,#REF!=10,#REF!= 15,#REF!= "BP",#REF!="SCR"),"NT",H196) -> 
E197: 195 | I197: =IF(OR(#REF!=5,#REF!=10,#REF!= 15,#REF!= "BP",#REF!="SCR"),"NT",H197) -> 
E198: 196 | I198: =IF(OR(#REF!=5,#REF!=10,#REF!= 15,#REF!= "BP",#REF!="SCR"),"NT",H198) -> 
E199: 197 | I199: =IF(OR(#REF!=5,#REF!=10,#REF!= 15,#REF!= "BP",#REF!="SCR"),"NT",H199) -> 
E200: 198 | I200: =IF(OR(#REF!=5,#REF!=10,#REF!= 15,#REF!= "BP",#REF!="SCR"),"NT",H200) -> 
... 102 more rows

Sheet Futurity
A1: Futurity | B1: Der | C1: Age Inct. | D1: BBR | E1: Draw | F1: Rider Name | G1: Horse Name | H1: Time | I1: Final Time | J1: Placing | K1: Money Earned
E2: 11 | F2: Kelly Allen | G2: Miss JB 133 | I2: 16.09 | J2: 1D 1st | K2: 284
E3: 4 | F3: Kassie Mowry | G3: Heavens Illuminator | I3: 16.102 | J3: 1D 2nd | K3: 189
E4: 15 | F4: Lj LaRue | G4: Goin Slow | I4: 16.251
E5: 8 | F5: Kelly Allen | G5: Miss JB 1315 | I5: 16.257
E6: 9 | F6: Nisa Berry | G6: VF Famous Cowgirl | I6: 16.294
E7: 14 | F7: Kyra Boling | G7: Teninas Hayday | I7: 16.427
E8: 6 | F8: Kassie Mowry | G8: Hallelujah Epic | I8: 16.454
E9: 2 | F9: Kassie Mowry | G9: LLP Silent Prayer | I9: 16.473
E10: 20 | F10: Maci Berry | G10: Shezamaximumbugleo | I10: 16.508
E11: 22 | F11: Carlie Conaway | G11: Nobodys Fired | I11: 16.629 | J11: 2D 1st | K11: 122
E12: 1 | F12: Andrea Cline | G12: Freighttrain C | I12: 16.667 | J12: 2D 2nd | K12: 81
E13: 16 | F13: Kristi Tuinei | G13: Zippys Cash Ta Fame | I13: 16.676
E14: 17 | F14: Crystal Benedict | G14: Smokin Hot Cat Lady | I14: 16.818
E15: 7 | F15: Jeff Amsden | G15: Dez On Firewater | I15: 16.829
E16: 3 | F16: Danyelle Campbell | G16: JL Tularosa | I16: 16.865
E17: 18 | F17: Whitney Godinez | G17: So Gals Got Fire | I17: 17.235
E18: 5 | F18: Chayni Chamberlin | G18: Aztecsdontwearsocks | I18: 17.672
E19: 10 | F19: Andrea Cline | G19: Blurry Bug Leo | I19: nt15.666
E20: 13 | F20: Andrea Cline | G20: Fame Us First Lady | I20: nt15.853
E21: 23 | F21: Kelly Bruner | G21: French Zone | I21: nt15.878
E22: 21 | F22: Emma Chapman-Abbott | G22: VF Chasin Cans | I22: nt15.968
E23: 19 | F23: Terry Vogel | G23: Super Frosted Bug | I23: nt16.437
E24: 12 | F24: Kara Large | G24: RSL FirstRoyalEddie | I24: nt23.311
E25: 24 | F25: Lacey Donegan | G25: Dashin Ta Kill | I25: nt
E26: 24 | I26: =IF(OR(#REF!=5,#REF!=10,#REF!= 15,#REF!= "BP",#REF!="SCR"),"NT",H26) -> 
E27: 25 | I27: =IF(OR(#REF!=5,#REF!=10,#REF!= 15,#REF!= "BP",#REF!="SCR"),"NT",H27) -> 
E28: 26 | I28: =IF(OR(#REF!=5,#REF!=10,#REF!= 15,#REF!= "BP",#REF!="SCR"),"NT",H28) -> 
E29: 27 | I29: =IF(OR(#REF!=5,#REF!=10,#REF!= 15,#REF!= "BP",#REF!="SCR"),"NT",H29) -> 
E30: 28 | I30: =IF(OR(#REF!=5,#REF!=10,#REF!= 15,#REF!= "BP",#REF!="SCR"),"NT",H30) -> 
E31: 29 | I31: =IF(OR(#REF!=5,#REF!=10,#REF!= 15,#REF!= "BP",#REF!="SCR"),"NT",H31) -> 
E32: 30 | I32: =IF(OR(#REF!=5,#REF!=10,#REF!= 15,#REF!= "BP",#REF!="SCR"),"NT",H32) -> 
E33: 31 | I33: =IF(OR(#REF!=5,#REF!=10,#REF!= 15,#REF!= "BP",#REF!="SCR"),"NT",H33) -> 
E34: 32 | I34: =IF(OR(#REF!=5,#REF!=10,#REF!= 15,#REF!= "BP",#REF!="SCR"),"NT",H34) -> 
E35: 33 | I35: =IF(OR(#REF!=5,#REF!=10,#REF!= 15,#REF!= "BP",#REF!="SCR"),"NT",H35) -> 
E36: 34 | I36: =IF(OR(#REF!=5,#REF!=10,#REF!= 15,#REF!= "BP",#REF!="SCR"),"NT",H36) -> 
E37: 35 | I37: =IF(OR(#REF!=5,#REF!=10,#REF!= 15,#REF!= "BP",#REF!="SCR"),"NT",H37) -> 
E38: 36 | I38: =IF(OR(#REF!=5,#REF!=10,#REF!= 15,#REF!= "BP",#REF!="SCR"),"NT",H38) -> 
E39: 37 | I39: =IF(OR(#REF!=5,#REF!=10,#REF!= 15,#REF!= "BP",#REF!="SCR"),"NT",H39) -> 
E40: 38 | I40: =IF(OR(#REF!=5,#REF!=10,#REF!= 15,#REF!= "BP",#REF!="SCR"),"NT",H40) -> 
E41: 39 | I41: =IF(OR(#REF!=5,#REF!=10,#REF!= 15,#REF!= "BP",#REF!="SCR"),"NT",H41) -> 
E42: 40 | I42: =IF(OR(#REF!=5,#REF!=10,#REF!= 15,#REF!= "BP",#REF!="SCR"),"NT",H42) -> 
E43: 41 | I43: =IF(OR(#REF!=5,#REF!=10,#REF!= 15,#REF!= "BP",#REF!="SCR"),"NT",H43) -> 
E44: 42 | I44: =IF(OR(#REF!=5,#REF!=10,#REF!= 15,#REF!= "BP",#REF!="SCR"),"NT",H44) -> 
E45: 43 | I45: =IF(OR(#REF!=5,#REF!=10,#REF!= 15,#REF!= "BP",#REF!="SCR"),"NT",H45) -> 
E46: 44 | I46: =IF(OR(#REF!=5,#REF!=10,#REF!= 15,#REF!= "BP",#REF!="SCR"),"NT",H46) -> 
E47: 45 | I47: =IF(OR(#REF!=5,#REF!=10,#REF!= 15,#REF!= "BP",#REF!="SCR"),"NT",H47) -> 
E48: 46 | I48: =IF(OR(#REF!=5,#REF!=10,#REF!= 15,#REF!= "BP",#REF!="SCR"),"NT",H48) -> 
E49: 47 | I49: =IF(OR(#REF!=5,#REF!=10,#REF!= 15,#REF!= "BP",#REF!="SCR"),"NT",H49) -> 
E50: 48 | I50: =IF(OR(#REF!=5,#REF!=10,#REF!= 15,#REF!= "BP",#REF!="SCR"),"NT",H50) -> 
E51: 49 | I51: =IF(OR(#REF!=5,#REF!=10,#REF!= 15,#REF!= "BP",#REF!="SCR"),"NT",H51) -> 
E52: 50 | I52: =IF(OR(#REF!=5,#REF!=10,#REF!= 15,#REF!= "BP",#REF!="SCR"),"NT",H52) -> 
E53: 51 | I53: =IF(OR(#REF!=5,#REF!=10,#REF!= 15,#REF!= "BP",#REF!="SCR"),"NT",H53) -> 
E54: 52 | I54: =IF(OR(#REF!=5,#REF!=10,#REF!= 15,#REF!= "BP",#REF!="SCR"),"NT",H54) -> 
E55: 53 | I55: =IF(OR(#REF!=5,#REF!=10,#REF!= 15,#REF!= "BP",#REF!="SCR"),"NT",H55) -> 
E56: 54 | I56: =IF(OR(#REF!=5,#REF!=10,#REF!= 15,#REF!= "BP",#REF!="SCR"),"NT",H56) -> 
E57: 55 | I57: =IF(OR(#REF!=5,#REF!=10,#REF!= 15,#REF!= "BP",#REF!="SCR"),"NT",H57) -> 
E58: 56 | I58: =IF(OR(#REF!=5,#REF!=10,#REF!= 15,#REF!= "BP",#REF!="SCR"),"NT",H58) -> 
E59: 57 | I59: =IF(OR(#REF!=5,#REF!=10,#REF!= 15,#REF!= "BP",#REF!="SCR"),"NT",H59) -> 
E60: 58 | I60: =IF(OR(#REF!=5,#REF!=10,#REF!= 15,#REF!= "BP",#REF!="SCR"),"NT",H60) -> 
E61: 59 | I61: =IF(OR(#REF!=5,#REF!=10,#REF!= 15,#REF!= "BP",#REF!="SCR"),"NT",H61) -> 
E62: 60 | I62: =IF(OR(#REF!=5,#REF!=10,#REF!= 15,#REF!= "BP",#REF!="SCR"),"NT",H62) -> 
E63: 61 | I63: =IF(OR(#REF!=5,#REF!=10,#REF!= 15,#REF!= "BP",#REF!="SCR"),"NT",H63) -> 
E64: 62 | I64: =IF(OR(#REF!=5,#REF!=10,#REF!= 15,#REF!= "BP",#REF!="SCR"),"NT",H64) -> 
E65: 63 | I65: =IF(OR(#REF!=5,#REF!=10,#REF!= 15,#REF!= "BP",#REF!="SCR"),"NT",H65) -> 
E66: 64 | I66: =IF(OR(#REF!=5,#REF!=10,#REF!= 15,#REF!= "BP",#REF!="SCR"),"NT",H66) -> 
E67: 65 | I67: =IF(OR(#REF!=5,#REF!=10,#REF!= 15,#REF!= "BP",#REF!="SCR"),"NT",H67) -> 
E68: 66 | I68: =IF(OR(#REF!=5,#REF!=10,#REF!= 15,#REF!= "BP",#REF!="SCR"),"NT",H68) -> 
E69: 67 | I69: =IF(OR(#REF!=5,#REF!=10,#REF!= 15,#REF!= "BP",#REF!="SCR"),"NT",H69) -> 
E70: 68 | I70: =IF(OR(#REF!=5,#REF!=10,#REF!= 15,#REF!= "BP",#REF!="SCR"),"NT",H70) -> 
E71: 69 | I71: =IF(OR(#REF!=5,#REF!=10,#REF!= 15,#REF!= "BP",#REF!="SCR"),"NT",H71) -> 
E72: 70 | I72: =IF(OR(#REF!=5,#REF!=10,#REF!= 15,#REF!= "BP",#REF!="SCR"),"NT",H72) -> 
E73: 71 | I73: =IF(OR(#REF!=5,#REF!=10,#REF!= 15,#REF!= "BP",#REF!="SCR"),"NT",H73) -> 
E74: 72 | I74: =IF(OR(#REF!=5,#REF!=10,#REF!= 15,#REF!= "BP",#REF!="SCR"),"NT",H74) -> 
E75: 73 | I75: =IF(OR(#REF!=5,#REF!=10,#REF!= 15,#REF!= "BP",#REF!="SCR"),"NT",H75) -> 
E76: 74 | I76: =IF(OR(#REF!=5,#REF!=10,#REF!= 15,#REF!= "BP",#REF!="SCR"),"NT",H76) -> 
E77: 75 | I77: =IF(OR(#REF!=5,#REF!=10,#REF!= 15,#REF!= "BP",#REF!="SCR"),"NT",H77) -> 
E78: 76 | I78: =IF(OR(#REF!=5,#REF!=10,#REF!= 15,#REF!= "BP",#REF!="SCR"),"NT",H78) -> 
E79: 77 | I79: =IF(OR(#REF!=5,#REF!=10,#REF!= 15,#REF!= "BP",#REF!="SCR"),"NT",H79) -> 
E80: 78 | I80: =IF(OR(#REF!=5,#REF!=10,#REF!= 15,#REF!= "BP",#REF!="SCR"),"NT",H80) -> 
E81: 79 | I81: =IF(OR(#REF!=5,#REF!=10,#REF!= 15,#REF!= "BP",#REF!="SCR"),"NT",H81) -> 
E82: 80 | I82: =IF(OR(#REF!=5,#REF!=10,#REF!= 15,#REF!= "BP",#REF!="SCR"),"NT",H82) -> 
E83: 81 | I83: =IF(OR(#REF!=5,#REF!=10,#REF!= 15,#REF!= "BP",#REF!="SCR"),"NT",H83) -> 
E84: 82 | I84: =IF(OR(#REF!=5,#REF!=10,#REF!= 15,#REF!= "BP",#REF!="SCR"),"NT",H84) -> 
E85: 83 | I85: =IF(OR(#REF!=5,#REF!=10,#REF!= 15,#REF!= "BP",#REF!="SCR"),"NT",H85) -> 
E86: 84 | I86: =IF(OR(#REF!=5,#REF!=10,#REF!= 15,#REF!= "BP",#REF!="SCR"),"NT",H86) -> 
E87: 85 | I87: =IF(OR(#REF!=5,#REF!=10,#REF!= 15,#REF!= "BP",#REF!="SCR"),"NT",H87) -> 
E88: 86 | I88: =IF(OR(#REF!=5,#REF!=10,#REF!= 15,#REF!= "BP",#REF!="SCR"),"NT",H88) -> 
E89: 87 | I89: =IF(OR(#REF!=5,#REF!=10,#REF!= 15,#REF!= "BP",#REF!="SCR"),"NT",H89) -> 
E90: 88 | I90: =IF(OR(#REF!=5,#REF!=10,#REF!= 15,#REF!= "BP",#REF!="SCR"),"NT",H90) -> 
E91: 89 | I91: =IF(OR(#REF!=5,#REF!=10,#REF!= 15,#REF!= "BP",#REF!="SCR"),"NT",H91) -> 
E92: 90 | I92: =IF(OR(#REF!=5,#REF!=10,#REF!= 15,#REF!= "BP",#REF!="SCR"),"NT",H92) -> 
E93: 91 | I93: =IF(OR(#REF!=5,#REF!=10,#REF!= 15,#REF!= "BP",#REF!="SCR"),"NT",H93) -> 
E94: 92 | I94: =IF(OR(#REF!=5,#REF!=10,#REF!= 15,#REF!= "BP",#REF!="SCR"),"NT",H94) -> 
E95: 93 | I95: =IF(OR(#REF!=5,#REF!=10,#REF!= 15,#REF!= "BP",#REF!="SCR"),"NT",H95) -> 
E96: 94 | I96: =IF(OR(#REF!=5,#REF!=10,#REF!= 15,#REF!= "BP",#REF!="SCR"),"NT",H96) -> 
E97: 95 | I97: =IF(OR(#REF!=5,#REF!=10,#REF!= 15,#REF!= "BP",#REF!="SCR"),"NT",H97) -> 
E98: 96 | I98: =IF(OR(#REF!=5,#REF!=10,#REF!= 15,#REF!= "BP",#REF!="SCR"),"NT",H98) -> 
E99: 97 | I99: =IF(OR(#REF!=5,#REF!=10,#REF!= 15,#REF!= "BP",#REF!="SCR"),"NT",H99) -> 
E100: 98 | I100: =IF(OR(#REF!=5,#REF!=10,#REF!= 15,#REF!= "BP",#REF!="SCR"),"NT",H100) -> 
E101: 99 | I101: =IF(OR(#REF!=5,#REF!=10,#REF!= 15,#REF!= "BP",#REF!="SCR"),"NT",H101) -> 
E102: 100 | I102: =IF(OR(#REF!=5,#REF!=10,#REF!= 15,#REF!= "BP",#REF!="SCR"),"NT",H102) -> 
E103: 101 | I103: =IF(OR(#REF!=5,#REF!=10,#REF!= 15,#REF!= "BP",#REF!="SCR"),"NT",H103) -> 
E104: 102 | I104: =IF(OR(#REF!=5,#REF!=10,#REF!= 15,#REF!= "BP",#REF!="SCR"),"NT",H104) -> 
E105: 103 | I105: =IF(OR(#REF!=5,#REF!=10,#REF!= 15,#REF!= "BP",#REF!="SCR"),"NT",H105) -> 
E106: 104 | I106: =IF(OR(#REF!=5,#REF!=10,#REF!= 15,#REF!= "BP",#REF!="SCR"),"NT",H106) -> 
E107: 105 | I107: =IF(OR(#REF!=5,#REF!=10,#REF!= 15,#REF!= "BP",#REF!="SCR"),"NT",H107) -> 
E108: 106 | I108: =IF(OR(#REF!=5,#REF!=10,#REF!= 15,#REF!= "BP",#REF!="SCR"),"NT",H108) -> 
E109: 107 | I109: =IF(OR(#REF!=5,#REF!=10,#REF!= 15,#REF!= "BP",#REF!="SCR"),"NT",H109) -> 
E110: 108 | I110: =IF(OR(#REF!=5,#REF!=10,#REF!= 15,#REF!= "BP",#REF!="SCR"),"NT",H110) -> 
E111: 109 | I111: =IF(OR(#REF!=5,#REF!=10,#REF!= 15,#REF!= "BP",#REF!="SCR"),"NT",H111) -> 
E112: 110 | I112: =IF(OR(#REF!=5,#REF!=10,#REF!= 15,#REF!= "BP",#REF!="SCR"),"NT",H112) -> 
E113: 111 | I113: =IF(OR(#REF!=5,#REF!=10,#REF!= 15,#REF!= "BP",#REF!="SCR"),"NT",H113) -> 
E114: 112 | I114: =IF(OR(#REF!=5,#REF!=10,#REF!= 15,#REF!= "BP",#REF!="SCR"),"NT",H114) -> 
E115: 113 | I115: =IF(OR(#REF!=5,#REF!=10,#REF!= 15,#REF!= "BP",#REF!="SCR"),"NT",H115) -> 
E116: 114 | I116: =IF(OR(#REF!=5,#REF!=10,#REF!= 15,#REF!= "BP",#REF!="SCR"),"NT",H116) -> 
E117: 115 | I117: =IF(OR(#REF!=5,#REF!=10,#REF!= 15,#REF!= "BP",#REF!="SCR"),"NT",H117) -> 
E118: 116 | I118: =IF(OR(#REF!=5,#REF!=10,#REF!= 15,#REF!= "BP",#REF!="SCR"),"NT",H118) -> 
E119: 117 | I119: =IF(OR(#REF!=5,#REF!=10,#REF!= 15,#REF!= "BP",#REF!="SCR"),"NT",H119) -> 
E120: 118 | I120: =IF(OR(#REF!=5,#REF!=10,#REF!= 15,#REF!= "BP",#REF!="SCR"),"NT",H120) -> 
E121: 119 | I121: =IF(OR(#REF!=5,#REF!=10,#REF!= 15,#REF!= "BP",#REF!="SCR"),"NT",H121) -> 
E122: 120 | I122: =IF(OR(#REF!=5,#REF!=10,#REF!= 15,#REF!= "BP",#REF!="SCR"),"NT",H122) -> 
E123: 121 | I123: =IF(OR(#REF!=5,#REF!=10,#REF!= 15,#REF!= "BP",#REF!="SCR"),"NT",H123) -> 
E124: 122 | I124: =IF(OR(#REF!=5,#REF!=10,#REF!= 15,#REF!= "BP",#REF!="SCR"),"NT",H124) -> 
E125: 123 | I125: =IF(OR(#REF!=5,#REF!=10,#REF!= 15,#REF!= "BP",#REF!="SCR"),"NT",H125) -> 
E126: 124 | I126: =IF(OR(#REF!=5,#REF!=10,#REF!= 15,#REF!= "BP",#REF!="SCR"),"NT",H126) -> 
E127: 125 | I127: =IF(OR(#REF!=5,#REF!=10,#REF!= 15,#REF!= "BP",#REF!="SCR"),"NT",H127) -> 
E128: 126 | I128: =IF(OR(#REF!=5,#REF!=10,#REF!= 15,#REF!= "BP",#REF!="SCR"),"NT",H128) -> 
E129: 127 | I129: =IF(OR(#REF!=5,#REF!=10,#REF!= 15,#REF!= "BP",#REF!="SCR"),"NT",H129) -> 
E130: 128 | I130: =IF(OR(#REF!=5,#REF!=10,#REF!= 15,#REF!= "BP",#REF!="SCR"),"NT",H130) -> 
E131: 129 | I131: =IF(OR(#REF!=5,#REF!=10,#REF!= 15,#REF!= "BP",#REF!="SCR"),"NT",H131) -> 
E132: 130 | I132: =IF(OR(#REF!=5,#REF!=10,#REF!= 15,#REF!= "BP",#REF!="SCR"),"NT",H132) -> 
E133: 131 | I133: =IF(OR(#REF!=5,#REF!=10,#REF!= 15,#REF!= "BP",#REF!="SCR"),"NT",H133) -> 
E134: 132 | I134: =IF(OR(#REF!=5,#REF!=10,#REF!= 15,#REF!= "BP",#REF!="SCR"),"NT",H134) -> 
E135: 133 | I135: =IF(OR(#REF!=5,#REF!=10,#REF!= 15,#REF!= "BP",#REF!="SCR"),"NT",H135) -> 
E136: 134 | I136: =IF(OR(#REF!=5,#REF!=10,#REF!= 15,#REF!= "BP",#REF!="SCR"),"NT",H136) -> 
E137: 135 | I137: =IF(OR(#REF!=5,#REF!=10,#REF!= 15,#REF!= "BP",#REF!="SCR"),"NT",H137) -> 
E138: 136 | I138: =IF(OR(#REF!=5,#REF!=10,#REF!= 15,#REF!= "BP",#REF!="SCR"),"NT",H138) -> 
E139: 137 | I139: =IF(OR(#REF!=5,#REF!=10,#REF!= 15,#REF!= "BP",#REF!="SCR"),"NT",H139) -> 
E140: 138 | I140: =IF(OR(#REF!=5,#REF!=10,#REF!= 15,#REF!= "BP",#REF!="SCR"),"NT",H140) -> 
E141: 139 | I141: =IF(OR(#REF!=5,#REF!=10,#REF!= 15,#REF!= "BP",#REF!="SCR"),"NT",H141) -> 
E142: 140 | I142: =IF(OR(#REF!=5,#REF!=10,#REF!= 15,#REF!= "BP",#REF!="SCR"),"NT",H142) -> 
E143: 141 | I143: =IF(OR(#REF!=5,#REF!=10,#REF!= 15,#REF!= "BP",#REF!="SCR"),"NT",H143) -> 
E144: 142 | I144: =IF(OR(#REF!=5,#REF!=10,#REF!= 15,#REF!= "BP",#REF!="SCR"),"NT",H144) -> 
E145: 143 | I145: =IF(OR(#REF!=5,#REF!=10,#REF!= 15,#REF!= "BP",#REF!="SCR"),"NT",H145) -> 
E146: 144 | I146: =IF(OR(#REF!=5,#REF!=10,#REF!= 15,#REF!= "BP",#REF!="SCR"),"NT",H146) -> 
E147: 145 | I147: =IF(OR(#REF!=5,#REF!=10,#REF!= 15,#REF!= "BP",#REF!="SCR"),"NT",H147) -> 
E148: 146 | I148: =IF(OR(#REF!=5,#REF!=10,#REF!= 15,#REF!= "BP",#REF!="SCR"),"NT",H148) -> 
E149: 147 | I149: =IF(OR(#REF!=5,#REF!=10,#REF!= 15,#REF!= "BP",#REF!="SCR"),"NT",H149) -> 
E150: 148 | I150: =IF(OR(#REF!=5,#REF!=10,#REF!= 15,#REF!= "BP",#REF!="SCR"),"NT",H150) -> 
E151: 149 | I151: =IF(OR(#REF!=5,#REF!=10,#REF!= 15,#REF!= "BP",#REF!="SCR"),"NT",H151) -> 
E152: 150 | I152: =IF(OR(#REF!=5,#REF!=10,#REF!= 15,#REF!= "BP",#REF!="SCR"),"NT",H152) -> 
E153: 151 | I153: =IF(OR(#REF!=5,#REF!=10,#REF!= 15,#REF!= "BP",#REF!="SCR"),"NT",H153) -> 
E154: 152 | I154: =IF(OR(#REF!=5,#REF!=10,#REF!= 15,#REF!= "BP",#REF!="SCR"),"NT",H154) -> 
E155: 153 | I155: =IF(OR(#REF!=5,#REF!=10,#REF!= 15,#REF!= "BP",#REF!="SCR"),"NT",H155) -> 
E156: 154 | I156: =IF(OR(#REF!=5,#REF!=10,#REF!= 15,#REF!= "BP",#REF!="SCR"),"NT",H156) -> 
E157: 155 | I157: =IF(OR(#REF!=5,#REF!=10,#REF!= 15,#REF!= "BP",#REF!="SCR"),"NT",H157) -> 
E158: 156 | I158: =IF(OR(#REF!=5,#REF!=10,#REF!= 15,#REF!= "BP",#REF!="SCR"),"NT",H158) -> 
E159: 157 | I159: =IF(OR(#REF!=5,#REF!=10,#REF!= 15,#REF!= "BP",#REF!="SCR"),"NT",H159) -> 
E160: 158 | I160: =IF(OR(#REF!=5,#REF!=10,#REF!= 15,#REF!= "BP",#REF!="SCR"),"NT",H160) -> 
E161: 159 | I161: =IF(OR(#REF!=5,#REF!=10,#REF!= 15,#REF!= "BP",#REF!="SCR"),"NT",H161) -> 
E162: 160 | I162: =IF(OR(#REF!=5,#REF!=10,#REF!= 15,#REF!= "BP",#REF!="SCR"),"NT",H162) -> 
E163: 161 | I163: =IF(OR(#REF!=5,#REF!=10,#REF!= 15,#REF!= "BP",#REF!="SCR"),"NT",H163) -> 
E164: 162 | I164: =IF(OR(#REF!=5,#REF!=10,#REF!= 15,#REF!= "BP",#REF!="SCR"),"NT",H164) -> 
E165: 163 | I165: =IF(OR(#REF!=5,#REF!=10,#REF!= 15,#REF!= "BP",#REF!="SCR"),"NT",H165) -> 
E166: 164 | I166: =IF(OR(#REF!=5,#REF!=10,#REF!= 15,#REF!= "BP",#REF!="SCR"),"NT",H166) -> 
E167: 165 | I167: =IF(OR(#REF!=5,#REF!=10,#REF!= 15,#REF!= "BP",#REF!="SCR"),"NT",H167) -> 
E168: 166 | I168: =IF(OR(#REF!=5,#REF!=10,#REF!= 15,#REF!= "BP",#REF!="SCR"),"NT",H168) -> 
E169: 167 | I169: =IF(OR(#REF!=5,#REF!=10,#REF!= 15,#REF!= "BP",#REF!="SCR"),"NT",H169) -> 
E170: 168 | I170: =IF(OR(#REF!=5,#REF!=10,#REF!= 15,#REF!= "BP",#REF!="SCR"),"NT",H170) -> 
E171: 169 | I171: =IF(OR(#REF!=5,#REF!=10,#REF!= 15,#REF!= "BP",#REF!="SCR"),"NT",H171) -> 
E172: 170 | I172: =IF(OR(#REF!=5,#REF!=10,#REF!= 15,#REF!= "BP",#REF!="SCR"),"NT",H172) -> 
E173: 171 | I173: =IF(OR(#REF!=5,#REF!=10,#REF!= 15,#REF!= "BP",#REF!="SCR"),"NT",H173) -> 
E174: 172 | I174: =IF(OR(#REF!=5,#REF!=10,#REF!= 15,#REF!= "BP",#REF!="SCR"),"NT",H174) -> 
E175: 173 | I175: =IF(OR(#REF!=5,#REF!=10,#REF!= 15,#REF!= "BP",#REF!="SCR"),"NT",H175) -> 
E176: 174 | I176: =IF(OR(#REF!=5,#REF!=10,#REF!= 15,#REF!= "BP",#REF!="SCR"),"NT",H176) -> 
E177: 175 | I177: =IF(OR(#REF!=5,#REF!=10,#REF!= 15,#REF!= "BP",#REF!="SCR"),"NT",H177) -> 
E178: 176 | I178: =IF(OR(#REF!=5,#REF!=10,#REF!= 15,#REF!= "BP",#REF!="SCR"),"NT",H178) -> 
E179: 177 | I179: =IF(OR(#REF!=5,#REF!=10,#REF!= 15,#REF!= "BP",#REF!="SCR"),"NT",H179) -> 
E180: 178 | I180: =IF(OR(#REF!=5,#REF!=10,#REF!= 15,#REF!= "BP",#REF!="SCR"),"NT",H180) -> 
E181: 179 | I181: =IF(OR(#REF!=5,#REF!=10,#REF!= 15,#REF!= "BP",#REF!="SCR"),"NT",H181) -> 
E182: 180 | I182: =IF(OR(#REF!=5,#REF!=10,#REF!= 15,#REF!= "BP",#REF!="SCR"),"NT",H182) -> 
E183: 181 | I183: =IF(OR(#REF!=5,#REF!=10,#REF!= 15,#REF!= "BP",#REF!="SCR"),"NT",H183) -> 
E184: 182 | I184: =IF(OR(#REF!=5,#REF!=10,#REF!= 15,#REF!= "BP",#REF!="SCR"),"NT",H184) -> 
E185: 183 | I185: =IF(OR(#REF!=5,#REF!=10,#REF!= 15,#REF!= "BP",#REF!="SCR"),"NT",H185) -> 
E186: 184 | I186: =IF(OR(#REF!=5,#REF!=10,#REF!= 15,#REF!= "BP",#REF!="SCR"),"NT",H186) -> 
E187: 185 | I187: =IF(OR(#REF!=5,#REF!=10,#REF!= 15,#REF!= "BP",#REF!="SCR"),"NT",H187) -> 
E188: 186 | I188: =IF(OR(#REF!=5,#REF!=10,#REF!= 15,#REF!= "BP",#REF!="SCR"),"NT",H188) -> 
E189: 187 | I189: =IF(OR(#REF!=5,#REF!=10,#REF!= 15,#REF!= "BP",#REF!="SCR"),"NT",H189) -> 
E190: 188 | I190: =IF(OR(#REF!=5,#REF!=10,#REF!= 15,#REF!= "BP",#REF!="SCR"),"NT",H190) -> 
E191: 189 | I191: =IF(OR(#REF!=5,#REF!=10,#REF!= 15,#REF!= "BP",#REF!="SCR"),"NT",H191) -> 
E192: 190 | I192: =IF(OR(#REF!=5,#REF!=10,#REF!= 15,#REF!= "BP",#REF!="SCR"),"NT",H192) -> 
E193: 191 | I193: =IF(OR(#REF!=5,#REF!=10,#REF!= 15,#REF!= "BP",#REF!="SCR"),"NT",H193) -> 
E194: 192 | I194: =IF(OR(#REF!=5,#REF!=10,#REF!= 15,#REF!= "BP",#REF!="SCR"),"NT",H194) -> 
E195: 193 | I195: =IF(OR(#REF!=5,#REF!=10,#REF!= 15,#REF!= "BP",#REF!="SCR"),"NT",H195) -> 
E196: 194 | I196: =IF(OR(#REF!=5,#REF!=10,#REF!= 15,#REF!= "BP",#REF!="SCR"),"NT",H196) -> 
E197: 195 | I197: =IF(OR(#REF!=5,#REF!=10,#REF!= 15,#REF!= "BP",#REF!="SCR"),"NT",H197) -> 
E198: 196 | I198: =IF(OR(#REF!=5,#REF!=10,#REF!= 15,#REF!= "BP",#REF!="SCR"),"NT",H198) -> 
E199: 197 | I199: =IF(OR(#REF!=5,#REF!=10,#REF!= 15,#REF!= "BP",#REF!="SCR"),"NT",H199) -> 
E200: 198 | I200: =IF(OR(#REF!=5,#REF!=10,#REF!= 15,#REF!= "BP",#REF!="SCR"),"NT",H200) -> 
... 102 more rows

Sheet 12 & Under (hidden)
A1: Futurity | B1: Der | C1: Age Inct. | D1: R/O | E1: Draw | F1: Rider Name | G1: Horse Name | H1: Time | I1: Final Time | J1: Placing | K1: Money Earned
E33: 32
E34: 33
E35: 34
E36: 35
E37: 36
E38: 37
E39: 38
E40: 39
E41: 40
E42: 41
E43: 42
E44: 43
E45: 44
E46: 45
E47: 46
E48: 47
E49: 48
E50: 49
E51: 50
E52: 51
E53: 52
E54: 53
E55: 54
E56: 55
E57: 56
E58: 57
E59: 58
E60: 59
E61: 60
E62: 61
E63: 62
E64: 63
E65: 64
E66: 65
E67: 66
E68: 67
E69: 68
E70: 69
E71: 70
E72: 71
E73: 72
E74: 73
E75: 74
E76: 75
E77: 76
E78: 77
E79: 78
E80: 79
E81: 80
E82: 81
E83: 82
E84: 83
E85: 84
E86: 85
E87: 86
E88: 87
E89: 88
E90: 89
E91: 90
E92: 91
E93: 92
E94: 93
E95: 94
E96: 95
E97: 96
E98: 97
E99: 98
E100: 99
E101: 100
E102: 101
E103: 102
E104: 103
E105: 104
E106: 105
E107: 106
E108: 107
E109: 108
E110: 109
E111: 110
E112: 111
E113: 112
E114: 113
E115: 114
E116: 115
E117: 116
E118: 117
E119: 118
E120: 119
E121: 120
E122: 121
E123: 122
E124: 123
E125: 124
E126: 125
E127: 126
E128: 127
E129: 128
E130: 129
E131: 130
E132: 131
E133: 132
E134: 133
E135: 134
E136: 135
E137: 136
E138: 137
E139: 138
E140: 139
E141: 140
E142: 141
E143: 142
E144: 143
E145: 144
E146: 145
E147: 146
E148: 147
E149: 148
E150: 149
E151: 150
E152: 151
E153: 152
E154: 153
E155: 154
E156: 155
E157: 156
E158: 157
E159: 158
E160: 159
E161: 160
E162: 161
E163: 162
E164: 163
E165: 164
E166: 165
E167: 166
E168: 167
E169: 168
E170: 169
E171: 170
E172: 171
E173: 172
E174: 173
E175: 174
E176: 175
E177: 176
E178: 177
E179: 178
E180: 179
E181: 180
E182: 181
E183: 182
E184: 183
E185: 184
E186: 185
E187: 186
E188: 187
E189: 188
E190: 189
E191: 190
E192: 191
E193: 192
E194: 193
E195: 194
E196: 195
E197: 196
E198: 197
E199: 198
E200: 199
E201: 200
E202: 201
E203: 202
E204: 203
E205: 204
E206: 205
E207: 206
E208: 207
E209: 208
E210: 209
E211: 210
E212: 211
E213: 212
E214: 213
E215: 214
E216: 215
E217: 216
E218: 217
E219: 218
E220: 219
E221: 220
E222: 221
E223: 222
E224: 223
E225: 224
E226: 225
E227: 226
E228: 227
E229: 228
E230: 229
E231: 230
... 70 more rows

Sheet Highstakes
A1: Draw | B1: Rider Name | C1: Horse Name | D1: Time | E1: Placing | F1: Money Earned
A2: 5 | B2: Patton Lynch | C2: JJJ Bonnnie Rae | D2: 15.338 | E2: 1st | F2: 588
A3: 3 | B3: Kara Large | C3: Credit To Fiesta | D3: 15.729 | E3: 2nd | F3: 392
A4: 6 | B4: Phillip Kenyon | C4: Tillies Hayday | D4: 16.031
A5: 7 | B5: Shea Lynn Leach | C5: Berthas Dancer | D5: 16.118
A6: 10 | B6: Danyelle Campbell | C6: AR Dash Ta Fame | D6: 16.122
A7: 9 | B7: Whitney Godinez | C7: Moonshine | D7: 16.132
A8: 1 | B8: Tami Semas | C8: Colour Me Gone | D8: 16.172
A9: 4 | B9: Andrea Cline | C9: Raising Fame | D9: 17.094
A10: 8 | B10: Jane Fambro | C10: Spotted Diamond | D10: nt15.889
A11: 2 | B11: Shea Lynn Leach | C11: Louie Bug | D11: nt15.953
A12: 11 | B12: Emma Chapman-Abbott | C12: VF Chasin Cans | D12: nt15.968
A13: 12
A14: 13
A15: 14
A16: 15
A17: 16
A18: 17
A19: 18
A20: 19
A21: 20

Sheet WPRA Derby
A1: Draw | B1: Rider Name | C1: Horse Name | D1: Time | E1: Placing | F1: Money Earned
A2: 5 | B2: Patton Lynch | C2: JJJ Bonnnie Rae | D2: 15.338
A3: 10 | B3: Sayde Simpson | C3: God Given Fame | D3: 16.081
A4: 1 | B4: Tami Semas | C4: Colour Me Gone | D4: 16.172
A5: 8 | B5: Ashley Harvey | C5: Wheres My Sox | D5: 16.332
A6: 12 | B6: Candie Miner | C6: Kitnic | D6: 16.332
A7: 6 | B7: Ashley Harvey | C7: Leading U Ta Fame | D7: 16.717
A8: 13 | B8: Annabelle Martin | C8: DTF Making My Way | D8: 16.77
A9: 11 | B9: Hanna Forbes | C9: Eye Jess WIn | D9: 16.829
A10: 9 | B10: Hanna Forbes | C10: Eyesa Stoli Dream | D10: 16.886
A11: 3 | B11: Andrea Cline | C11: Raising Fame | D11: 17.094
A12: 4 | B12: Mandi Cleveland | C12: Little Bit Of Load | D12: 17.167
A13: 2 | B13: Shea Lynn Leach | C13: Louie Bug | D13: nt15.953
A14: 7 | B14: Hanna Forbes | C14: Ivory Candy | D14: nt16.329
A15: 14
A16: 15
A17: 16
A18: 17
A19: 18
A20: 19
A21: 20

Sheet 8&under
A1: Draw | B1: Rider Name | C1: Horse Name | D1: Pen | E1: Time | F1: Final Time | G1: Placing | H1: Money Earned
A2: 1 | B2: Kinslee Edwards | C2: Rainey
A3: 2 | B3: Baily Fishel | C3: Sofa
A4: 3 | B4: Cooper Peek | C4: Dolly
A5: 4 | B5: Breelyn Black | C5: Poptart | F5: =IF(OR(D5=5,D5=10, D5=15, D5="BP",D5="SCR"),"NT",E5) -> 0
A6: 5 | B6: Linden Nadziejka | C6: Big Red | F6: 0
A7: 6 | B7: Kinslee Edwards | C7: Shooter | F7: 0
A8: 7 | F8: 0
A9: 8 | F9: 0
A10: 9 | F10: 0
A11: 10 | F11: 0
A12: 11 | F12: 0
A13: 12 | F13: 0
A14: 13 | F14: 0
A15: 14 | F15: 0
A16: 15 | F16: 0
A17: 16 | F17: 0
A18: 17 | F18: 0
A19: 18 | F19: 0
A20: 19 | F20: 0
A21: 20 | F21: 0

Sheet Average
A1: Parker County Arena
A2: Open
A3: 4 Yr Fut | B3: 5 Yr Fut | C3: Der | D3: Age Inct. | E3: Am | F3: Carry | G3: T/C | H3: F/F | I3: Mem | J3: Nom | K3: Av | L3: BBR | M3: WPRA | N3: Draw | O3: Owner Name | P3: Rider Name | Q3: Horse Name | R3: Pen | S3: Time 1 | T3: Final Time 1 | U3: Pen | V3: Time 2 | W3: Final Time 2 | X3: Total Time | Y3: Average Time | Z3: Placing | AA3: Money Earned | AC3: D Placing | AE3: Split
N4: 1 | T4: =IF(OR(R4=5,R4=10, R4=15, R4="BP",R4="SCR"),"NT",S4) -> 0 | W4: =IF(OR(U4=5,U4=10, U4=15, U4="BP",U4="SCR"),"NT",V4) -> 0 | X4: =(T4+W4) -> 0 | Y4: =(T4+W4)/2 -> 0 | AC4: 1D
N5: 2 | T5: 0 | W5: 0 | X5: 0 | Y5: 0 | AC5: 2D | AD5: =$AD$4+$AE$5 -> 0.5 | AE5: 0.5
N6: 3 | T6: 0 | W6: 0 | X6: 0 | Y6: 0 | AC6: 3D | AD6: =$AD$5+$AE$6 -> 1 | AE6: 0.5
N7: 4 | T7: 0 | W7: 0 | X7: 0 | Y7: 0 | AC7: 4D | AD7: =$AD$6+$AE$7 -> 1.5 | AE7: 0.5
N8: 5 | T8: 0 | W8: 0 | X8: 0 | Y8: 0 | AC8: 5D | AD8: =$AD$7+$AE$8 -> 2 | AE8: 0.5
N9: 6 | T9: 0 | W9: 0 | X9: 0 | Y9: 0
N10: 7 | T10: 0 | W10: 0 | X10: 0 | Y10: 0 | AC10: # Entered
N11: 8 | T11: 0 | W11: 0 | X11: 0 | Y11: 0 | AC11: =COUNTA(P4:P503) -> 0
N12: 9 | T12: 0 | W12: 0 | X12: 0 | Y12: 0
N13: 10 | T13: 0 | W13: 0 | X13: 0 | Y13: 0
N14: 11 | T14: 0 | W14: 0 | X14: 0 | Y14: 0
N15: 12 | T15: 0 | W15: 0 | X15: 0 | Y15: 0
N16: 13 | T16: 0 | W16: 0 | X16: 0 | Y16: 0
N17: 14 | T17: =IF(OR(R17=5,R17=10, R17=15, R17="BP",R17="SCR"),"NT",S17) -> 0 | W17: =IF(OR(U17=5,U17=10, U17=15, U17="BP",U17="SCR"),"NT",V17) -> 0 | X17: =(T17+W17) -> 0 | Y17: =(T17+W17)/2 -> 0
N18: 15 | T18: 0 | W18: 0 | X18: 0 | Y18: 0
N19: 16 | T19: 0 | W19: 0 | X19: 0 | Y19: 0
N20: 17 | T20: 0 | W20: 0 | X20: 0 | Y20: 0
N21: 18 | T21: 0 | W21: 0 | X21: 0 | Y21: 0
N22: 19 | T22: 0 | W22: 0 | X22: 0 | Y22: 0
N23: 20 | T23: 0 | W23: 0 | X23: 0 | Y23: 0
N24: 21 | T24: 0 | W24: 0 | X24: 0 | Y24: 0
N25: 22 | T25: 0 | W25: 0 | X25: 0 | Y25: 0
N26: 23 | T26: 0 | W26: 0 | X26: 0 | Y26: 0
N27: 24 | T27: 0 | W27: 0 | X27: 0 | Y27: 0
N28: 25 | T28: 0 | W28: 0 | X28: 0 | Y28: 0
N29: 26 | T29: 0 | W29: 0 | X29: 0 | Y29: 0
N30: 27 | T30: 0 | W30: 0 | X30: 0 | Y30: 0
N31: 28 | T31: 0 | W31: 0 | X31: 0 | Y31: 0
N32: 29 | T32: 0 | W32: 0 | X32: 0 | Y32: 0
N33: 30 | T33: 0 | W33: 0 | X33: 0 | Y33: 0
N34: 31 | T34: 0 | W34: 0 | X34: 0 | Y34: 0
N35: 32 | T35: 0 | W35: 0 | X35: 0 | Y35: 0
N36: 33 | T36: 0 | W36: 0 | X36: 0 | Y36: 0
N37: 34 | T37: 0 | W37: 0 | X37: 0 | Y37: 0
N38: 35 | T38: 0 | W38: 0 | X38: 0 | Y38: 0
N39: 36 | T39: 0 | W39: 0 | X39: 0 | Y39: 0
N40: 37 | T40: 0 | W40: 0 | X40: 0 | Y40: 0
N41: 38 | T41: 0 | W41: 0 | X41: 0 | Y41: 0
N42: 39 | T42: 0 | W42: 0 | X42: 0 | Y42: 0
N43: 40 | T43: 0 | W43: 0 | X43: 0 | Y43: 0
N44: 41 | T44: 0 | W44: 0 | X44: 0 | Y44: 0
N45: 42 | T45: 0 | W45: 0 | X45: 0 | Y45: 0
N46: 43 | T46: 0 | W46: 0 | X46: 0 | Y46: 0
N47: 44 | T47: 0 | W47: 0 | X47: 0 | Y47: 0
N48: 45 | T48: 0 | W48: 0 | X48: 0 | Y48: 0
N49: 46 | T49: 0 | W49: 0 | X49: 0 | Y49: 0
N50: 47 | T50: 0 | W50: 0 | X50: 0 | Y50: 0
N51: 48 | T51: 0 | W51: 0 | X51: 0 | Y51: 0
N52: 49 | T52: 0 | W52: 0 | X52: 0 | Y52: 0
N53: 50 | T53: 0 | W53: 0 | X53: 0 | Y53: 0
N54: 51 | T54: 0 | W54: 0 | X54: 0 | Y54: 0
N55: 52 | T55: 0 | W55: 0 | X55: 0 | Y55: 0
N56: 53 | T56: 0 | W56: 0 | X56: 0 | Y56: 0
N57: 54 | T57: 0 | W57: 0 | X57: 0 | Y57: 0
N58: 55 | T58: 0 | W58: 0 | X58: 0 | Y58: 0
N59: 56 | T59: 0 | W59: 0 | X59: 0 | Y59: 0
N60: 57 | T60: 0 | W60: 0 | X60: 0 | Y60: 0
N61: 58 | T61: 0 | W61: 0 | X61: 0 | Y61: 0
N62: 59 | T62: 0 | W62: 0 | X62: 0 | Y62: 0
N63: 60 | T63: 0 | W63: 0 | X63: 0 | Y63: 0
N64: 61 | T64: 0 | W64: 0 | X64: 0 | Y64: 0
N65: 62 | T65: 0 | W65: 0 | X65: 0 | Y65: 0
N66: 63 | T66: 0 | W66: 0 | X66: 0 | Y66: 0
N67: 64 | T67: 0 | W67: 0 | X67: 0 | Y67: 0
N68: 65 | T68: 0 | W68: 0 | X68: 0 | Y68: 0
N69: 66 | T69: =IF(OR(R69=5,R69=10, R69=15, R69="BP",R69="SCR"),"NT",S69) -> 0 | W69: =IF(OR(U69=5,U69=10, U69=15, U69="BP",U69="SCR"),"NT",V69) -> 0 | X69: =(T69+W69) -> 0 | Y69: =(T69+W69)/2 -> 0
N70: 67 | T70: 0 | W70: 0 | X70: 0 | Y70: 0
N71: 68 | T71: 0 | W71: 0 | X71: 0 | Y71: 0
N72: 69 | T72: 0 | W72: 0 | X72: 0 | Y72: 0
N73: 70 | T73: 0 | W73: 0 | X73: 0 | Y73: 0
N74: 71 | T74: 0 | W74: 0 | X74: 0 | Y74: 0
N75: 72 | T75: 0 | W75: 0 | X75: 0 | Y75: 0
N76: 73 | T76: 0 | W76: 0 | X76: 0 | Y76: 0
N77: 74 | T77: 0 | W77: 0 | X77: 0 | Y77: 0
N78: 75 | T78: 0 | W78: 0 | X78: 0 | Y78: 0
N79: 76 | T79: 0 | W79: 0 | X79: 0 | Y79: 0
N80: 77 | T80: 0 | W80: 0 | X80: 0 | Y80: 0
N81: 78 | T81: 0 | W81: 0 | X81: 0 | Y81: 0
N82: 79 | T82: 0 | W82: 0 | X82: 0 | Y82: 0
N83: 80 | T83: 0 | W83: 0 | X83: 0 | Y83: 0
N84: 81 | T84: 0 | W84: 0 | X84: 0 | Y84: 0
N85: 82 | T85: 0 | W85: 0 | X85: 0 | Y85: 0
N86: 83 | T86: 0 | W86: 0 | X86: 0 | Y86: 0
N87: 84 | T87: 0 | W87: 0 | X87: 0 | Y87: 0
N88: 85 | T88: 0 | W88: 0 | X88: 0 | Y88: 0
N89: 86 | T89: 0 | W89: 0 | X89: 0 | Y89: 0
N90: 87 | T90: 0 | W90: 0 | X90: 0 | Y90: 0
N91: 88 | T91: 0 | W91: 0 | X91: 0 | Y91: 0
N92: 89 | T92: 0 | W92: 0 | X92: 0 | Y92: 0
N93: 90 | T93: 0 | W93: 0 | X93: 0 | Y93: 0
N94: 91 | T94: 0 | W94: 0 | X94: 0 | Y94: 0
N95: 92 | T95: 0 | W95: 0 | X95: 0 | Y95: 0
N96: 93 | T96: 0 | W96: 0 | X96: 0 | Y96: 0
N97: 94 | T97: 0 | W97: 0 | X97: 0 | Y97: 0
N98: 95 | T98: 0 | W98: 0 | X98: 0 | Y98: 0
N99: 96 | T99: 0 | W99: 0 | X99: 0 | Y99: 0
N100: 97 | T100: 0 | W100: 0 | X100: 0 | Y100: 0
N101: 98 | T101: 0 | W101: 0 | X101: 0 | Y101: 0
N102: 99 | T102: 0 | W102: 0 | X102: 0 | Y102: 0
N103: 100 | T103: 0 | W103: 0 | X103: 0 | Y103: 0
N104: 101 | T104: 0 | W104: 0 | X104: 0 | Y104: 0
N105: 102 | T105: 0 | W105: 0 | X105: 0 | Y105: 0
N106: 103 | T106: 0 | W106: 0 | X106: 0 | Y106: 0
N107: 104 | T107: 0 | W107: 0 | X107: 0 | Y107: 0
N108: 105 | T108: 0 | W108: 0 | X108: 0 | Y108: 0
N109: 106 | T109: 0 | W109: 0 | X109: 0 | Y109: 0
N110: 107 | T110: 0 | W110: 0 | X110: 0 | Y110: 0
N111: 108 | T111: 0 | W111: 0 | X111: 0 | Y111: 0
N112: 109 | T112: 0 | W112: 0 | X112: 0 | Y112: 0
N113: 110 | T113: 0 | W113: 0 | X113: 0 | Y113: 0
N114: 111 | T114: 0 | W114: 0 | X114: 0 | Y114: 0
N115: 112 | T115: 0 | W115: 0 | X115: 0 | Y115: 0
N116: 113 | T116: 0 | W116: 0 | X116: 0 | Y116: 0
N117: 114 | T117: 0 | W117: 0 | X117: 0 | Y117: 0
N118: 115 | T118: 0 | W118: 0 | X118: 0 | Y118: 0
N119: 116 | T119: 0 | W119: 0 | X119: 0 | Y119: 0
N120: 117 | T120: 0 | W120: 0 | X120: 0 | Y120: 0
N121: 118 | T121: 0 | W121: 0 | X121: 0 | Y121: 0
N122: 119 | T122: 0 | W122: 0 | X122: 0 | Y122: 0
N123: 120 | T123: 0 | W123: 0 | X123: 0 | Y123: 0
N124: 121 | T124: 0 | W124: 0 | X124: 0 | Y124: 0
N125: 122 | T125: 0 | W125: 0 | X125: 0 | Y125: 0
N126: 123 | T126: 0 | W126: 0 | X126: 0 | Y126: 0
N127: 124 | T127: 0 | W127: 0 | X127: 0 | Y127: 0
N128: 125 | T128: 0 | W128: 0 | X128: 0 | Y128: 0
N129: 126 | T129: 0 | W129: 0 | X129: 0 | Y129: 0
N130: 127 | T130: 0 | W130: 0 | X130: 0 | Y130: 0
N131: 128 | T131: 0 | W131: 0 | X131: 0 | Y131: 0
N132: 129 | T132: 0 | W132: 0 | X132: 0 | Y132: 0
N133: 130 | T133: =IF(OR(R133=5,R133=10, R133=15, R133="BP",R133="SCR"),"NT",S133) -> 0 | W133: =IF(OR(U133=5,U133=10, U133=15, U133="BP",U133="SCR"),"NT",V133) -> 0 | X133: =(T133+W133) -> 0 | Y133: =(T133+W133)/2 -> 0
N134: 131 | T134: 0 | W134: 0 | X134: 0 | Y134: 0
N135: 132 | T135: 0 | W135: 0 | X135: 0 | Y135: 0
N136: 133 | T136: 0 | W136: 0 | X136: 0 | Y136: 0
N137: 134 | T137: 0 | W137: 0 | X137: 0 | Y137: 0
N138: 135 | T138: 0 | W138: 0 | X138: 0 | Y138: 0
N139: 136 | T139: 0 | W139: 0 | X139: 0 | Y139: 0
N140: 137 | T140: 0 | W140: 0 | X140: 0 | Y140: 0
N141: 138 | T141: 0 | W141: 0 | X141: 0 | Y141: 0
N142: 139 | T142: 0 | W142: 0 | X142: 0 | Y142: 0
N143: 140 | T143: 0 | W143: 0 | X143: 0 | Y143: 0
N144: 141 | T144: 0 | W144: 0 | X144: 0 | Y144: 0
N145: 142 | T145: 0 | W145: 0 | X145: 0 | Y145: 0
N146: 143 | T146: 0 | W146: 0 | X146: 0 | Y146: 0
N147: 144 | T147: 0 | W147: 0 | X147: 0 | Y147: 0
N148: 145 | T148: 0 | W148: 0 | X148: 0 | Y148: 0
N149: 146 | T149: 0 | W149: 0 | X149: 0 | Y149: 0
N150: 147 | T150: 0 | W150: 0 | X150: 0 | Y150: 0
N151: 148 | T151: 0 | W151: 0 | X151: 0 | Y151: 0
N152: 149 | T152: 0 | W152: 0 | X152: 0 | Y152: 0
N153: 150 | T153: 0 | W153: 0 | X153: 0 | Y153: 0
N154: 151 | T154: 0 | W154: 0 | X154: 0 | Y154: 0
N155: 152 | T155: 0 | W155: 0 | X155: 0 | Y155: 0
N156: 153 | T156: 0 | W156: 0 | X156: 0 | Y156: 0
N157: 154 | T157: 0 | W157: 0 | X157: 0 | Y157: 0
N158: 155 | T158: 0 | W158: 0 | X158: 0 | Y158: 0
N159: 156 | T159: 0 | W159: 0 | X159: 0 | Y159: 0
N160: 157 | T160: 0 | W160: 0 | X160: 0 | Y160: 0
N161: 158 | T161: 0 | W161: 0 | X161: 0 | Y161: 0
N162: 159 | T162: 0 | W162: 0 | X162: 0 | Y162: 0
N163: 160 | T163: 0 | W163: 0 | X163: 0 | Y163: 0
N164: 161 | T164: 0 | W164: 0 | X164: 0 | Y164: 0
N165: 162 | T165: 0 | W165: 0 | X165: 0 | Y165: 0
N166: 163 | T166: 0 | W166: 0 | X166: 0 | Y166: 0
N167: 164 | T167: 0 | W167: 0 | X167: 0 | Y167: 0
N168: 165 | T168: 0 | W168: 0 | X168: 0 | Y168: 0
N169: 166 | T169: 0 | W169: 0 | X169: 0 | Y169: 0
N170: 167 | T170: 0 | W170: 0 | X170: 0 | Y170: 0
N171: 168 | T171: 0 | W171: 0 | X171: 0 | Y171: 0
N172: 169 | T172: 0 | W172: 0 | X172: 0 | Y172: 0
N173: 170 | T173: 0 | W173: 0 | X173: 0 | Y173: 0
N174: 171 | T174: 0 | W174: 0 | X174: 0 | Y174: 0
N175: 172 | T175: 0 | W175: 0 | X175: 0 | Y175: 0
N176: 173 | T176: 0 | W176: 0 | X176: 0 | Y176: 0
N177: 174 | T177: 0 | W177: 0 | X177: 0 | Y177: 0
N178: 175 | T178: 0 | W178: 0 | X178: 0 | Y178: 0
N179: 176 | T179: 0 | W179: 0 | X179: 0 | Y179: 0
N180: 177 | T180: 0 | W180: 0 | X180: 0 | Y180: 0
N181: 178 | T181: 0 | W181: 0 | X181: 0 | Y181: 0
N182: 179 | T182: 0 | W182: 0 | X182: 0 | Y182: 0
N183: 180 | T183: 0 | W183: 0 | X183: 0 | Y183: 0
N184: 181 | T184: 0 | W184: 0 | X184: 0 | Y184: 0
N185: 182 | T185: 0 | W185: 0 | X185: 0 | Y185: 0
N186: 183 | T186: 0 | W186: 0 | X186: 0 | Y186: 0
N187: 184 | T187: 0 | W187: 0 | X187: 0 | Y187: 0
N188: 185 | T188: 0 | W188: 0 | X188: 0 | Y188: 0
N189: 186 | T189: 0 | W189: 0 | X189: 0 | Y189: 0
N190: 187 | T190: 0 | W190: 0 | X190: 0 | Y190: 0
N191: 188 | T191: 0 | W191: 0 | X191: 0 | Y191: 0
N192: 189 | T192: 0 | W192: 0 | X192: 0 | Y192: 0
N193: 190 | T193: 0 | W193: 0 | X193: 0 | Y193: 0
N194: 191 | T194: 0 | W194: 0 | X194: 0 | Y194: 0
N195: 192 | T195: 0 | W195: 0 | X195: 0 | Y195: 0
N196: 193 | T196: 0 | W196: 0 | X196: 0 | Y196: 0
N197: 194 | T197: =IF(OR(R197=5,R197=10, R197=15, R197="BP",R197="SCR"),"NT",S197) -> 0 | W197: =IF(OR(U197=5,U197=10, U197=15, U197="BP",U197="SCR"),"NT",V197) -> 0 | X197: =(T197+W197) -> 0 | Y197: =(T197+W197)/2 -> 0
N198: 195 | T198: 0 | W198: 0 | X198: 0 | Y198: 0
N199: 196 | T199: 0 | W199: 0 | X199: 0 | Y199: 0
N200: 197 | T200: 0 | W200: 0 | X200: 0 | Y200: 0
... 303 more rows

Sheet BFA 2D Payout (hidden)
A1: BFA 2D Payout
A2: Entry Fee | B2: # Entries | C2: % Payback | D2: Added $ | E2: Total Payout | F2: Each Go
A3: 25 | B3: 19 | C3: 0.8 | D3: 200 | E3: =(A3*$C$3)*B3+D3 -> 580 | F3: 0.3
F4: =$E$3*$F$3 -> 174
A5: $5,000-7,500 Pays 5 Places 4 to 1D 1 to 2D
A6: Placings | B6: 1D | D6: 2D
A7: 1st | B7: =($F$4*$C$7) -> 57.42 | C7: 0.33 | D7: =$F$4*$E$7 -> 12.18 | E7: 0.07
A8: 2nd | B8: =$F$4*$C$8 -> 46.98 | C8: 0.27
A9: 3rd | B9: =$F$4*$C$9 -> 34.8 | C9: 0.2
A10: 4th | B10: =$F$4*$C$10 -> 22.62 | C10: 0.13
A11: Totals | B11: =SUM(B7:B10) -> 161.82 | D11: =SUM(D7:D10) -> 12.18 | E11: =(C7+C8+C9+C10+E7+E8) -> 1
A12: =B11+D11 -> 174
A13: $7,501 - 10,000 Pays 6 Places 4 to 1D, 2 to 2D
A14: Placings | B14: 1D | D14: 2D
A15: 1st | B15: =$F$4*$C$15 -> 50.46 | C15: 0.29 | D15: =$F$4*$E$15 -> 15.66 | E15: 0.09
A16: 2nd | B16: =+$F$4*$C$16 -> 41.76 | C16: 0.24 | D16: =F4*E16 -> 8.7 | E16: 0.05
A17: 3rd | B17: =$F$4*$C$17 -> 33.06 | C17: 0.19
A18: 4th | B18: =$F$4*$C$18 -> 24.36 | C18: 0.14
A19: Totals | B19: =SUM(B15:B18) -> 149.64 | D19: =D16+D15 -> 24.36 | E19: =SUM(C15+C16+C17+C18+E15+E16) -> 1
A20: =D19+B19 -> 174
A21: $10,001 - $15,000 Payes 8 Places 5 to 1D, 3 to 2D
A22: Placings | B22: 1D | D22: 2D
A23: 1st | B23: =F4*C23 -> 41.76 | C23: 0.24 | D23: =F4*E23 -> 12.18 | E23: 0.07
A24: 2nd | B24: =F4*C24 -> 34.8 | C24: 0.2 | D24: =F4*E24 -> 8.7 | E24: 0.05
A25: 3rd | B25: =F4*C25 -> 29.58 | C25: 0.17 | D25: =F4*E25 -> 6.96 | E25: 0.04
A26: 4th | B26: =F4*C26 -> 22.62 | C26: 0.13
A27: 5th | B27: =F4*C27 -> 17.4 | C27: 0.1
A28: Totals | B28: =SUM(B23:B27) -> 146.16 | D28: =SUM(D23:D27) -> 27.84 | E28: =C23+C24+C25+C26+C27+E23+E24+E25 -> 1
A29: =B28+D28 -> 174
A30: $15,001 - $25,000 Payes 11 Places 7 to 1D, 4 to 2D
A31: Placings | B31: 1D | D31: 2D
A32: 1st | B32: =$F$4*C32 -> 36.54 | C32: 0.21 | D32: =$F$4*E32 -> 8.7 | E32: 0.05
A33: 2nd | B33: =$F$4*C33 -> 31.32 | C33: 0.18 | D33: =$F$4*E33 -> 6.96 | E33: 0.04
A34: 3rd | B34: 26.1 | C34: 0.15 | D34: 5.22 | E34: 0.03
A35: 4th | B35: 19.14 | C35: 0.11 | D35: 3.48 | E35: 0.02
A36: 5th | B36: 13.92 | C36: 0.08
A37: 6th | B37: 12.18 | C37: 0.07
A38: 7th | B38: 10.44 | C38: 0.06
A39: Totals | B39: =SUM(B32:B38) -> 149.64 | D39: =SUM(D32:D38) -> 24.36 | E39: =C32+C33+C34+C35+C36+C37+C38+E32+E33+E34+E35 -> 1
A40: =SUM(B39+D39) -> 174
A41: $25,001 - $35,000 Payes 12 Places 8 to 1D, 4 to 2D
A42: Placings | B42: 1D | D42: 2D
A43: 1st | B43: =$F$4*C43 -> 33.06 | C43: 0.19 | D43: =$F$4*E43 -> 8.7 | E43: 0.05
A44: 2nd | B44: =$F$4*C44 -> 26.1 | C44: 0.15 | D44: =$F$4*E44 -> 6.96 | E44: 0.04
A45: 3rd | B45: 20.88 | C45: 0.12 | D45: 5.22 | E45: 0.03
A46: 4th | B46: 17.4 | C46: 0.1 | D46: 3.48 | E46: 0.02
A47: 5th | B47: 15.66 | C47: 0.09
A48: 6th | B48: 13.92 | C48: 0.08
A49: 7th | B49: 12.18 | C49: 0.07
A50: 8th | B50: 10.44 | C50: 0.06
A51: Totals | B51: =SUM(B43:B50) -> 149.64 | D51: =SUM(D43:D46) -> 24.36 | E51: =C43+C44+C45+C46+C47+C48+C49+C50+E43+E44+E45+E46 -> 1
A52: =D51+B51 -> 174

Sheet 2D Payout
A1: 2D Payout
A2: Entry Fee | B2: # Entries | C2: % Payback | D2: Added $ | E2: Total Payout
A3: 30 | B3: 24 | C3: 0.8 | D3: 100 | E3: =(A3*$C$3)*B3+D3 -> 676
A5: % in each D | B5: 0.7 | C5: 0.3 | D5: Total % = | E5: =SUM(B5:C5) -> 1
B6: 1D | C6: 2D
B7: =(($A$3*$B$3*$C$3*$B$5)+($D$3*$B$5)) -> 473.2 | C7: =(($A$3*$B$3*$C$3*$C$5)+($D$3*$C$5)) -> 202.8
A8: Totals | B8: =SUM(B7) -> 473.2 | C8: =SUM(C7) -> 202.8 | D8: =SUM(B8:C8) -> 676
A10: For 1-7 riders 1 place
A11: Placings | B11: 1D | C11: 2D
A12: 1st | B12: =$B$7*$E$12 -> 473.2 | C12: =$C$7*$E$5 -> 202.8 | D12: è | E12: 1
A13: Totals | B13: =SUM(B12:B12) -> 473.2 | C13: =SUM(C12:C12) -> 202.8 | D13: =SUM(B13:C13) -> 676 | E13: =SUM(E12) -> 1
A15: For 8-11 riders 2 places
A16: Placings | B16: 1D | C16: 2D
A17: 1st | B17: =$B$7*$E$17 -> 283.92 | C17: =$C$7*$E$17 -> 121.68 | D17: è | E17: 0.6
A18: 2nd | B18: =$B$7*$E$18 -> 189.28 | C18: =$C$7*$E$18 -> 81.12 | D18: è | E18: 0.4
A19: Totals | B19: =SUM(B17:B18) -> 473.2 | C19: =SUM(C17:C18) -> 202.8 | D19: =SUM(B19:C19) -> 676 | E19: =SUM(E17:E18) -> 1
A21: For 12-15 riders 3 places
A22: Placings | B22: 1D | C22: 2D
A23: 1st | B23: =$B$7*$E$23 -> 236.6 | C23: =$C$7*$E$23 -> 101.4 | D23: è | E23: 0.5
A24: 2nd | B24: =$B$7*$E$24 -> 141.96 | C24: =$C$7*$E$24 -> 60.84 | D24: è | E24: 0.3
A25: 3rd | B25: =$B$7*$E$25 -> 94.64 | C25: =$C$7*$E$25 -> 40.56 | D25: è | E25: 0.2
A26: Totals | B26: =SUM(B23:B25) -> 473.2 | C26: =SUM(C23:C25) -> 202.8 | D26: =SUM(B26:C26) -> 676 | E26: =SUM(E23:E25) -> 1
A28: For 16-19 riders 4 places
A29: Placings | B29: 1D | C29: 2D
A30: 1st | B30: =$B$7*$E$30 -> 189.28 | C30: =$C$7*$E$30 -> 81.12 | D30: è | E30: 0.4
A31: 2nd | B31: =$B$7*$E$31 -> 141.96 | C31: =$C$7*$E$31 -> 60.84 | D31: è | E31: 0.3
A32: 3rd | B32: =$B$7*$E$32 -> 94.64 | C32: =$C$7*$E$32 -> 40.56 | D32: è | E32: 0.2
A33: 4th | B33: =$B$7*$E$33 -> 47.32 | C33: =$C$7*$E$33 -> 20.28 | D33: è | E33: 0.1
A34: Totals | B34: =SUM(B30:B33) -> 473.2 | C34: =SUM(C30:C33) -> 202.8 | D34: =SUM(B34:C34) -> 676 | E34: =SUM(E30:E33) -> 1
A36: For 20-23 riders 5 places
A37: Placings | B37: 1D | C37: 2D
A38: 1st | B38: =$B$7*$E$38 -> 141.96 | C38: =$C$7*$E$38 -> 60.84 | D38: è | E38: 0.3
A39: 2nd | B39: =$B$7*$E$39 -> 118.3 | C39: =$C$7*$E$39 -> 50.7 | D39: è | E39: 0.25
A40: 3rd | B40: =$B$7*$E$40 -> 94.64 | C40: =$C$7*$E$40 -> 40.56 | D40: è | E40: 0.2
A41: 4th | B41: =$B$7*$E$41 -> 70.98 | C41: =$C$7*$E$41 -> 30.42 | D41: è | E41: 0.15
A42: 5th | B42: =$B$7*$E$42 -> 47.32 | C42: =$C$7*$E$42 -> 20.28 | D42: è | E42: 0.1
A43: Totals | B43: =SUM(B38:B42) -> 473.2 | C43: =SUM(C38:C42) -> 202.8 | D43: =SUM(B43:C43) -> 676 | E43: =SUM(E38:E42) -> 1
A45: For 24-27 riders 6 places
A46: Placings | B46: 1D | C46: 2D
A47: 1st | B47: =$B$7*$E$47 -> 118.3 | C47: =$C$7*$E$47 -> 50.7 | D47: è | E47: 0.25
A48: 2nd | B48: =$B$7*$E$48 -> 94.64 | C48: =$C$7*$E$48 -> 40.56 | D48: è | E48: 0.2
A49: 3rd | B49: =$B$7*$E$49 -> 85.176 | C49: =$C$7*$E$49 -> 36.504 | D49: è | E49: 0.18
A50: 4th | B50: =$B$7*$E$50 -> 70.98 | C50: =$C$7*$E$50 -> 30.42 | D50: è | E50: 0.15
A51: 5th | B51: =$B$7*$E$51 -> 56.784 | C51: =$C$7*$E$51 -> 24.336 | D51: è | E51: 0.12
A52: 6th | B52: =$B$7*$E$52 -> 47.32 | C52: =$C$7*$E$52 -> 20.28 | D52: è | E52: 0.1
A53: Totals | B53: =SUM(B47:B52) -> 473.2 | C53: =SUM(C47:C52) -> 202.8 | D53: =SUM(B53:C53) -> 676 | E53: =SUM(E47:E52) -> 1
A55: For 28-31 riders 7 places
A56: Placings | B56: 1D | C56: 2D
A57: 1st | B57: =$B$7*$E$57 -> 104.104 | C57: =$C$7*$E$57 -> 44.616 | D57: è | E57: 0.22
A58: 2nd | B58: =$B$7*$E$58 -> 85.176 | C58: =$C$7*$E$58 -> 36.504 | D58: è | E58: 0.18
A59: 3rd | B59: =$B$7*$E$59 -> 75.712 | C59: =$C$7*$E$59 -> 32.448 | D59: è | E59: 0.16
A60: 4th | B60: =$B$7*$E$60 -> 66.248 | C60: =$C$7*$E$60 -> 28.392 | D60: è | E60: 0.14
A61: 5th | B61: =$B$7*$E$61 -> 56.784 | C61: =$C$7*$E$61 -> 24.336 | D61: è | E61: 0.12
A62: 6th | B62: =$B$7*$E$62 -> 47.32 | C62: =$C$7*$E$62 -> 20.28 | D62: è | E62: 0.1
A63: 7th | B63: =$B$7*$E$63 -> 37.856 | C63: =$C$7*$E$63 -> 16.224 | D63: è | E63: 0.08
A64: Totals | B64: =SUM(B57:B63) -> 473.2 | C64: =SUM(C57:C63) -> 202.8 | D64: =SUM(B64:C64) -> 676 | E64: =SUM(E57:E63) -> 1
A66: For 32 or more riders 8 places
A67: Placings | B67: 1D | C67: 2D
A68: 1st | B68: =$B$7*$E$68 -> 108.836 | C68: =$C$7*$E$68 -> 46.644 | D68: è | E68: 0.23
A69: 2nd | B69: =$B$7*$E$69 -> 94.64 | C69: =$C$7*$E$69 -> 40.56 | D69: è | E69: 0.2
A70: 3rd | B70: =$B$7*$E$70 -> 80.444 | C70: =$C$7*$E$70 -> 34.476 | D70: è | E70: 0.17
A71: 4th | B71: =$B$7*$E$71 -> 66.248 | C71: =$C$7*$E$71 -> 28.392 | D71: è | E71: 0.14
A72: 5th | B72: =$B$7*$E$72 -> 52.052 | C72: =$C$7*$E$72 -> 22.308 | D72: è | E72: 0.11
A73: 6th | B73: =$B$7*$E$73 -> 37.856 | C73: =$C$7*$E$73 -> 16.224 | D73: è | E73: 0.08
A74: 7th | B74: =$B$7*$E$74 -> 23.66 | C74: =$C$7*$E$74 -> 10.14 | D74: è | E74: 0.05
A75: 8th | B75: =$B$7*$E$75 -> 9.464 | C75: =$C$7*$E$75 -> 4.056 | D75: è | E75: 0.02
A76: Totals | B76: =SUM(B68:B75) -> 473.2 | C76: =SUM(C68:C75) -> 202.8 | D76: =SUM(B76:C76) -> 676 | E76: =SUM(E68:E75) -> 1

Sheet 3D Payout (hidden)
A1: 3D Payout
A2: Entry Fee | B2: # Entries | C2: % Payback | D2: $ From Entry | E2: Added $ | F2: Total Payout
A3: 10 | B3: 3 | C3: 0.8 | D3: =$A$3*$C$3*$B$3 -> 24 | F3: =$D$3+$E$3 -> 24
A5: % in each D | B5: 0.5 | C5: 0.3 | D5: 0.2 | E5: Total % = | F5: =SUM(B5:D5) -> 1
B6: 1D | C6: 2D | D6: 3D
B7: =(($A$3*$B$3*$C$3*$B$5)+($E$3*$B$5)) -> 12 | C7: =(($A$3*$B$3*$C$3*$C$5)+($E$3*$C$5)) -> 7.2 | D7: =(($A$3*$B$3*$C$3*$D$5)+($E$3*$D$5)) -> 4.8
A8: Totals | B8: =SUM(B7) -> 12 | C8: =SUM(C7) -> 7.2 | D8: 4.8 | E8: =SUM(B8:D8) -> 24
A10: For 1-10 riders 1 place
A11: Placings | B11: 1D | C11: 2D | D11: 3D
A12: 1st | B12: =$B$7*$F$12 -> 12 | C12: =$C$7*$F$12 -> 7.2 | D12: =$D$7*$F$12 -> 4.8 | E12: è | F12: 1
A13: Totals | B13: =SUM(B12:B12) -> 12 | C13: =SUM(C12:C12) -> 7.2 | D13: =SUM(D12:D12) -> 4.8 | E13: =SUM(B13:D13) -> 24 | F13: =SUM(F12) -> 1
A15: For 11-15 riders 2 places
A16: Placings | B16: 1D | C16: 2D | D16: 3D
A17: 1st | B17: =$B$7*$F$17 -> 7.2 | C17: =$C$7*$F$17 -> 4.32 | D17: =$D$7*$F$17 -> 2.88 | E17: è | F17: 0.6
A18: 2nd | B18: =$B$7*$F$18 -> 4.8 | C18: =$C$7*$F$18 -> 2.88 | D18: =$D$7*$F$18 -> 1.92 | E18: è | F18: 0.4
A19: Totals | B19: =SUM(B17:B18) -> 12 | C19: =SUM(C17:C18) -> 7.2 | D19: =SUM(D17:D18) -> 4.8 | E19: =SUM(B19:D19) -> 24 | F19: =SUM(F17:F18) -> 1
A21: For 16-30 riders 3 places
A22: Placings | B22: 1D | C22: 2D | D22: 3D
A23: 1st | B23: =$B$7*$F$23 -> 6 | C23: =$C$7*$F$23 -> 3.6 | D23: =$D$7*$F$23 -> 2.4 | E23: è | F23: 0.5
A24: 2nd | B24: =$B$7*$F$24 -> 3.6 | C24: =$C$7*$F$24 -> 2.16 | D24: =$D$7*$F$24 -> 1.44 | E24: è | F24: 0.3
A25: 3rd | B25: =$B$7*$F$25 -> 2.4 | C25: =$C$7*$F$25 -> 1.44 | D25: =$D$7*$F$25 -> 0.96 | E25: è | F25: 0.2
A26: Totals | B26: =SUM(B23:B25) -> 12 | C26: =SUM(C23:C25) -> 7.2 | D26: =SUM(D22:D25) -> 4.8 | E26: =SUM(B26:D26) -> 24 | F26: =SUM(F23:F25) -> 1
A28: For 31-60 riders 4 places
A29: Placings | B29: 1D | C29: 2D | D29: 3D
A30: 1st | B30: =$B$7*$F$30 -> 5.04 | C30: =$C$7*$F$30 -> 3.024 | D30: =$D$7*$F$30 -> 2.016 | E30: è | F30: 0.42
A31: 2nd | B31: =$B$7*$F$31 -> 3.48 | C31: =$C$7*$F$31 -> 2.088 | D31: =$D$7*$F$31 -> 1.392 | E31: è | F31: 0.29
A32: 3rd | B32: =$B$7*$F$32 -> 2.28 | C32: =$C$7*$F$32 -> 1.368 | D32: =$D$7*$F$32 -> 0.912 | E32: è | F32: 0.19
A33: 4th | B33: =$B$7*$F$33 -> 1.2 | C33: =$C$7*$F$33 -> 0.72 | D33: =$D$7*$F$33 -> 0.48 | E33: è | F33: 0.1
A34: Totals | B34: =SUM(B30:B33) -> 12 | C34: =SUM(C30:C33) -> 7.2 | D34: =SUM(D30:D33) -> 4.8 | E34: =SUM(B34:D34) -> 24 | F34: =SUM(F30:F33) -> 1
A36: For 61-90 riders 5 places
A37: Placings | B37: 1D | C37: 2D | D37: 3D
A38: 1st | B38: =$B$7*$F$38 -> 4.56 | C38: =$C$7*$F$38 -> 2.736 | D38: =$D$7*$F$38 -> 1.824 | E38: è | F38: 0.38
A39: 2nd | B39: =$B$7*$F$39 -> 3.36 | C39: =$C$7*$F$39 -> 2.016 | D39: =$D$7*$F$39 -> 1.344 | E39: è | F39: 0.28
A40: 3rd | B40: =$B$7*$F$40 -> 2.16 | C40: =$C$7*$F$40 -> 1.296 | D40: =$D$7*$F$40 -> 0.864 | E40: è | F40: 0.18
A41: 4th | B41: =$B$7*$F$41 -> 1.2 | C41: =$C$7*$F$41 -> 0.72 | D41: =$D$7*$F$41 -> 0.48 | E41: è | F41: 0.1
A42: 5th | B42: =$B$7*$F$42 -> 0.72 | C42: =$C$7*$F$42 -> 0.432 | D42: =$D$7*$F$42 -> 0.288 | E42: è | F42: 0.06
A43: Totals | B43: =SUM(B38:B42) -> 12 | C43: =SUM(C38:C42) -> 7.2 | D43: =SUM(D38:D42) -> 4.8 | E43: =SUM(B43:D43) -> 24 | F43: =SUM(F38:F42) -> 1
A45: For 91-120 riders 6 places
A46: Placings | B46: 1D | C46: 2D | D46: 3D
A47: 1st | B47: =$B$7*$F$47 -> 4.32 | C47: =$C$7*$F$47 -> 2.592 | D47: =$D$7*$F$47 -> 1.728 | E47: è | F47: 0.36
A48: 2nd | B48: =$B$7*$F$48 -> 3.12 | C48: =$C$7*$F$48 -> 1.872 | D48: =$D$7*$F$48 -> 1.248 | E48: è | F48: 0.26
A49: 3rd | B49: =$B$7*$F$49 -> 1.92 | C49: =$C$7*$F$49 -> 1.152 | D49: =$D$7*$F$49 -> 0.768 | E49: è | F49: 0.16
A50: 4th | B50: =$B$7*$F$50 -> 1.2 | C50: =$C$7*$F$50 -> 0.72 | D50: =$D$7*$F$50 -> 0.48 | E50: è | F50: 0.1
A51: 5th | B51: =$B$7*$F$51 -> 0.84 | C51: =$C$7*$F$51 -> 0.504 | D51: =$D$7*$F$51 -> 0.336 | E51: è | F51: 0.07
A52: 6th | B52: =$B$7*$F$52 -> 0.6 | C52: =$C$7*$F$52 -> 0.36 | D52: =$D$7*$F$52 -> 0.24 | E52: è | F52: 0.05
A53: Totals | B53: =SUM(B47:B52) -> 12 | C53: =SUM(C47:C52) -> 7.2 | D53: =SUM(D47:D52) -> 4.8 | E53: =SUM(B53:D53) -> 24 | F53: =SUM(F47:F52) -> 1
A55: For 121-200 riders 7 places
A56: Placings | B56: 1D | C56: 2D | D56: 3D
A57: 1st | B57: =$B$7*$F$57 -> 3.12 | C57: =$C$7*$F$57 -> 1.872 | D57: =$D$7*$F$57 -> 1.248 | E57: è | F57: 0.26
A58: 2nd | B58: =$B$7*$F$58 -> 2.4 | C58: =$C$7*$F$58 -> 1.44 | D58: =$D$7*$F$58 -> 0.96 | E58: è | F58: 0.2
A59: 3rd | B59: =$B$7*$F$59 -> 1.8 | C59: =$C$7*$F$59 -> 1.08 | D59: =$D$7*$F$59 -> 0.72 | E59: è | F59: 0.15
A60: 4th | B60: =$B$7*$F$60 -> 1.44 | C60: =$C$7*$F$60 -> 0.864 | D60: =$D$7*$F$60 -> 0.576 | E60: è | F60: 0.12
A61: 5th | B61: =$B$7*$F$61 -> 1.2 | C61: =$C$7*$F$61 -> 0.72 | D61: =$D$7*$F$61 -> 0.48 | E61: è | F61: 0.1
A62: 6th | B62: =$B$7*$F$62 -> 1.08 | C62: =$C$7*$F$62 -> 0.648 | D62: =$D$7*$F$62 -> 0.432 | E62: è | F62: 0.09
A63: 7th | B63: =$B$7*$F$63 -> 0.96 | C63: =$C$7*$F$63 -> 0.576 | D63: =$D$7*$F$63 -> 0.384 | E63: è | F63: 0.08
A64: Totals | B64: =SUM(B57:B63) -> 12 | C64: =SUM(C57:C63) -> 7.2 | D64: =SUM(D57:D63) -> 4.8 | E64: =SUM(B64:D64) -> 24 | F64: =SUM(F57:F63) -> 1
A66: For 201 or more riders 8 places
A67: Placings | B67: 1D | C67: 2D | D67: 3D
A68: 1st | B68: =$B$7*0.24 -> 2.88 | C68: =$C$7*0.24 -> 1.728 | D68: =$D$7*0.24 -> 1.152 | E68: è | F68: 0.24
A69: 2nd | B69: =$B$7*0.18 -> 2.16 | C69: =$C$7*0.18 -> 1.296 | D69: =$D$7*0.18 -> 0.864 | E69: è | F69: 0.18
A70: 3rd | B70: =$B$7*0.15 -> 1.8 | C70: =$C$7*0.15 -> 1.08 | D70: =$D$7*0.15 -> 0.72 | E70: è | F70: 0.15
A71: 4th | B71: =$B$7*0.12 -> 1.44 | C71: =$C$7*0.12 -> 0.864 | D71: =$D$7*0.12 -> 0.576 | E71: è | F71: 0.12
A72: 5th | B72: =$B$7*0.1 -> 1.2 | C72: =$C$7*0.1 -> 0.72 | D72: =$D$7*0.1 -> 0.48 | E72: è | F72: 0.1
A73: 6th | B73: =$B$7*0.08 -> 0.96 | C73: =$C$7*0.08 -> 0.576 | D73: =$D$7*0.08 -> 0.384 | E73: è | F73: 0.08
A74: 7th | B74: =$B$7*0.07 -> 0.84 | C74: =$C$7*0.07 -> 0.504 | D74: =$D$7*0.07 -> 0.336 | E74: è | F74: 0.07
A75: 8th | B75: =$B$7*0.06 -> 0.72 | C75: =$C$7*0.06 -> 0.432 | D75: =$D$7*0.06 -> 0.288 | E75: è | F75: 0.06
A76: Totals | B76: =SUM(B68:B75) -> 12 | C76: =SUM(C68:C75) -> 7.2 | D76: =SUM(D68:D75) -> 4.8 | E76: =SUM(B76:D76) -> 24 | F76: =SUM(F68:F75) -> 1

Sheet 4D Payout BBR (hidden)
A1: 4D Payout BBR
A2: Entry Fee | B2: # Entries | C2: % Payback | D2: $ From Entry | E2: Added $ | F2: Total Payout
A3: 40 | B3: 200 | C3: 0.8 | D3: =$A$3*$C$3*$B$3 -> 6400 | E3: 1100 | F3: =($A$3*$C$3)*$B$3+$E$3 -> 7500
A5: % in each D | B5: 0.35 | C5: 0.3 | D5: 0.2 | E5: 0.15 | F5: Total % Payout | G5: =SUM(B5:E5) -> 1
B6: 1D | C6: 2D | D6: 3D | E6: 4D
B7: =(($A$3*$B$3*$C$3*0.35)+($E$3/4)) -> 2515 | C7: =(($A$3*$B$3*$C$3*0.3)+($E$3/4)) -> 2195 | D7: =(($A$3*$B$3*$C$3*0.2)+($E$3/4)) -> 1555 | E7: =(($A$3*$B$3*$C$3*0.15)+($E$3/4)) -> 1235
A8: Totals | B8: =SUM(B7) -> 2515 | C8: =SUM(C7) -> 2195 | D8: 1555 | E8: 1235 | F8: =SUM(B8:E8) -> 7500
A10: For 1-16 riders 1 place
A11: Placings | B11: 1D | C11: 2D | D11: 3D | E11: 4D
A12: 1st | B12: =$B$7*$G$12 -> 2515 | C12: =$C$7*$G$12 -> 2195 | D12: =$D$7*$G$12 -> 1555 | E12: =$E$7*$G$12 -> 1235 | F12: è | G12: 1
A13: Totals | B13: =SUM(B12:B12) -> 2515 | C13: =SUM(C12:C12) -> 2195 | D13: =SUM(D12:D12) -> 1555 | E13: =SUM(E12:E12) -> 1235 | F13: =SUM(B13:E13) -> 7500 | G13: =SUM(G12) -> 1
A15: For 17-33 riders 2 places
A16: Placings | B16: 1D | C16: 2D | D16: 3D | E16: 4D
A17: 1st | B17: =$B$7*$G$17 -> 1509 | C17: =$C$7*$G$17 -> 1317 | D17: =$D$7*$G$17 -> 933 | E17: =$E$7*$G$17 -> 741 | F17: è | G17: 0.6
A18: 2nd | B18: =$B$7*$G$18 -> 1006 | C18: =$C$7*$G$18 -> 878 | D18: =$D$7*$G$18 -> 622 | E18: =$E$7*$G$18 -> 494 | F18: è | G18: 0.4
A19: Totals | B19: =SUM(B17:B18) -> 2515 | C19: =SUM(C17:C18) -> 2195 | D19: =SUM(D17:D18) -> 1555 | E19: =SUM(E17:E18) -> 1235 | F19: =SUM(B19:E19) -> 7500 | G19: =SUM(G17:G18) -> 1
A21: For 34-66 riders 3 places
A22: Placings | B22: 1D | C22: 2D | D22: 3D | E22: 4D
A23: 1st | B23: =$B$7*$G$23 -> 1257.5 | C23: =$C$7*$G$23 -> 1097.5 | D23: =$D$7*$G$23 -> 777.5 | E23: =$E$7*$G$23 -> 617.5 | F23: è | G23: 0.5
A24: 2nd | B24: =$B$7*$G$24 -> 754.5 | C24: =$C$7*$G$24 -> 658.5 | D24: =$D$7*$G$24 -> 466.5 | E24: =$E$7*$G$24 -> 370.5 | F24: è | G24: 0.3
A25: 3rd | B25: =$B$7*$G$25 -> 503 | C25: =$C$7*$G$25 -> 439 | D25: =$D$7*$G$25 -> 311 | E25: =$E$7*$G$25 -> 247 | F25: è | G25: 0.2
A26: Totals | B26: =SUM(B23:B25) -> 2515 | C26: =SUM(C23:C25) -> 2195 | D26: =SUM(D23:D25) -> 1555 | E26: =SUM(E23:E25) -> 1235 | F26: =SUM(B26:E26) -> 7500 | G26: =SUM(G23:G25) -> 1
A28: For 97-95 riders 4 places
A29: Placings | B29: 1D | C29: 2D | D29: 3D | E29: 4D
A30: 1st | B30: =$B$7*$G$30 -> 1006 | C30: =$C$7*$G$30 -> 878 | D30: =$D$7*$G$30 -> 622 | E30: =$E$7*$G$30 -> 494 | F30: è | G30: 0.4
A31: 2nd | B31: =$B$7*$G$31 -> 754.5 | C31: =$C$7*$G$31 -> 658.5 | D31: =$D$7*$G$31 -> 466.5 | E31: =$E$7*$G$31 -> 370.5 | F31: è | G31: 0.3
A32: 3rd | B32: =$B$7*$G$32 -> 503 | C32: =$C$7*$G$32 -> 439 | D32: =$D$7*$G$32 -> 311 | E32: =$E$7*$G$32 -> 247 | F32: è | G32: 0.2
A33: 4th | B33: =$B$7*$G$33 -> 251.5 | C33: =$C$7*$G$33 -> 219.5 | D33: =$D$7*$G$33 -> 155.5 | E33: =$E$7*$G$33 -> 123.5 | F33: è | G33: 0.1
A34: Totals | B34: =SUM(B30:B33) -> 2515 | C34: =SUM(C30:C33) -> 2195 | D34: =SUM(D30:D33) -> 1555 | E34: =SUM(E30:E33) -> 1235 | F34: =SUM(B34:E34) -> 7500 | G34: =SUM(G30:G33) -> 1
A36: For 96-133 riders 5 places
A37: Placings | B37: 1D | C37: 2D | D37: 3D | E37: 4D
A38: 1st | B38: =$B$7*$G$38 -> 829.95 | C38: =$C$7*$G$38 -> 724.35 | D38: =$D$7*G38 -> 513.15 | E38: =$E$7*$G$38 -> 407.55 | F38: è | G38: 0.33
A39: 2nd | B39: =$B$7*$G$39 -> 679.05 | C39: =$C$7*$G$39 -> 592.65 | D39: =$D$7*$G$39 -> 419.85 | E39: =$E$7*$G$39 -> 333.45 | F39: è | G39: 0.27
A40: 3rd | B40: =$B$7*$G$40 -> 503 | C40: =$C$7*$G$40 -> 439 | D40: =$D$7*$G$40 -> 311 | E40: =$E$7*$G$40 -> 247 | F40: è | G40: 0.2
A41: 4th | B41: =$B$7*$G$41 -> 326.95 | C41: =$C$7*$G$41 -> 285.35 | D41: =$D$7*$G$41 -> 202.15 | E41: =$E$7*$G$41 -> 160.55 | F41: è | G41: 0.13
A42: 5th | B42: =$B$7*$G$42 -> 176.05 | C42: =$C$7*$G$42 -> 153.65 | D42: =$D$7*$G$42 -> 108.85 | E42: =$E$7*$G$42 -> 86.45 | F42: è | G42: 0.07
A43: Totals | B43: =SUM(B38:B42) -> 2515 | C43: =SUM(C38:C42) -> 2195 | D43: =SUM(D38:D42) -> 1555 | E43: =SUM(E38:E42) -> 1235 | F43: =SUM(B43:E43) -> 7500 | G43: =SUM(G38:G42) -> 1
A45: For 134-166 riders 6 places
A46: Placings | B46: 1D | C46: 2D | D46: 3D | E46: 4D
A47: 1st | B47: =$B$7*$G$47 -> 729.35 | C47: =$C$7*$G$47 -> 636.55 | D47: =$D$7*$G$47 -> 450.95 | E47: =$E$7*$G$47 -> 358.15 | F47: è | G47: 0.29
A48: 2nd | B48: =$B$7*$G$48 -> 603.6 | C48: =$C$7*$G$48 -> 526.8 | D48: =$D$7*$G$48 -> 373.2 | E48: =$E$7*$G$48 -> 296.4 | F48: è | G48: 0.24
A49: 3rd | B49: =$B$7*$G$49 -> 477.85 | C49: =$C$7*$G$49 -> 417.05 | D49: =$D$7*$G$49 -> 295.45 | E49: =$E$7*$G$49 -> 234.65 | F49: è | G49: 0.19
A50: 4th | B50: =$B$7*$G$50 -> 352.1 | C50: =$C$7*$G$50 -> 307.3 | D50: =$D$7*$G$50 -> 217.7 | E50: =$E$7*$G$50 -> 172.9 | F50: è | G50: 0.14
A51: 5th | B51: =$B$7*$G$51 -> 226.35 | C51: =$C$7*$G$51 -> 197.55 | D51: =$D$7*$G$51 -> 139.95 | E51: =$E$7*$G$51 -> 111.15 | F51: è | G51: 0.09
A52: 6th | B52: =$B$7*$G$52 -> 125.75 | C52: =$C$7*$G$52 -> 109.75 | D52: =$D$7*$G$52 -> 77.75 | E52: =$E$7*$G$52 -> 61.75 | F52: è | G52: 0.05
A53: Totals | B53: =SUM(B47:B52) -> 2515 | C53: =SUM(C47:C52) -> 2195 | D53: =SUM(D47:D52) -> 1555 | E53: =SUM(E47:E52) -> 1235 | F53: =SUM(B53:E53) -> 7500 | G53: =SUM(G47:G52) -> 1
A55: For 167-222 riders 8 places
A56: Placings | B56: 1D | C56: 2D | D56: 3D | E56: 4D
A57: 1st | B57: =$B$7*$G$57 -> 603.6 | C57: =$C$7*$G$57 -> 526.8 | D57: =$D$7*$G$57 -> 373.2 | E57: =$E$7*$G$57 -> 296.4 | F57: è | G57: 0.24
A58: 2nd | B58: =$B$7*$G$58 -> 503 | C58: =$C$7*$G$58 -> 439 | D58: =$D$7*$G$58 -> 311 | E58: =$E$7*$G$58 -> 247 | F58: è | G58: 0.2
A59: 3rd | B59: =$B$7*$G$59 -> 427.55 | C59: =$C$7*$G$59 -> 373.15 | D59: =$D$7*$G$59 -> 264.35 | E59: =$E$7*$G$59 -> 209.95 | F59: è | G59: 0.17
A60: 4th | B60: =$B$7*$G$60 -> 326.95 | C60: =$C$7*$G$60 -> 285.35 | D60: =$D$7*$G$60 -> 202.15 | E60: =$E$7*$G$60 -> 160.55 | F60: è | G60: 0.13
A61: 5th | B61: =$B$7*$G$61 -> 251.5 | C61: =$C$7*$G$61 -> 219.5 | D61: =$D$7*$G$61 -> 155.5 | E61: =$E$7*$G$61 -> 123.5 | F61: è | G61: 0.1
A62: 6th | B62: =$B$7*$G$62 -> 176.05 | C62: =$C$7*$G$62 -> 153.65 | D62: =$D$7*$G$62 -> 108.85 | E62: =$E$7*$G$62 -> 86.45 | F62: è | G62: 0.07
A63: 7th | B63: =$B$7*$G$63 -> 125.75 | C63: =$C$7*$G$63 -> 109.75 | D63: =$D$7*$G$63 -> 77.75 | E63: =$E$7*$G$63 -> 61.75 | F63: è | G63: 0.05
A64: 8th | B64: =$B$7*$G$64 -> 100.6 | C64: =$C$7*$G$64 -> 87.8 | D64: =$D$7*$G$64 -> 62.2 | E64: =$E$7*$G$64 -> 49.4 | F64: è | G64: 0.04
A65: Totals | B65: =SUM(B57:B64) -> 2515 | C65: =SUM(C57:C64) -> 2195 | D65: =SUM(D57:D64) -> 1555 | E65: =SUM(E57:E64) -> 1235 | F65: =SUM(B65:E65) -> 7500 | G65: =SUM(G57:G64) -> 1
A67: For 223-333 riders 10 places
A68: Placings | B68: 1D | C68: 2D | D68: 3D | E68: 4D
A69: 1st | B69: =$B$7*$G$69 -> 528.15 | C69: =$C$7*$G$69 -> 460.95 | D69: =$D$7*$G$69 -> 326.55 | E69: =$E$7*$G$69 -> 259.35 | F69: è | G69: 0.21
A70: 2nd | B70: =$B$7*$G$70 -> 452.7 | C70: =$C$7*$G$70 -> 395.1 | D70: =$D$7*$G$70 -> 279.9 | E70: =$E$7*$G$70 -> 222.3 | F70: è | G70: 0.18
A71: 3rd | B71: =$B$7*$G$71 -> 377.25 | C71: =$C$7*$G$71 -> 329.25 | D71: =$D$7*$G$71 -> 233.25 | E71: =$E$7*$G$71 -> 185.25 | F71: è | G71: 0.15
A72: 4th | B72: =$B$7*$G$72 -> 301.8 | C72: =$C$7*$G$72 -> 263.4 | D72: =$D$7*$G$72 -> 186.6 | E72: =$E$7*$G$72 -> 148.2 | F72: è | G72: 0.12
A73: 5th | B73: =$B$7*$G$73 -> 226.35 | C73: =$C$7*$G$73 -> 197.55 | D73: =$D$7*$G$73 -> 139.95 | E73: =$E$7*$G$73 -> 111.15 | F73: è | G73: 0.09
A74: 6th | B74: =$B$7*$G$74 -> 176.05 | C74: =$C$7*$G$74 -> 153.65 | D74: =$D$7*$G$74 -> 108.85 | E74: =$E$7*$G$74 -> 86.45 | F74: è | G74: 0.07
A75: 7th | B75: =$B$7*$G$75 -> 150.9 | C75: =$C$7*$G$75 -> 131.7 | D75: =$D$7*$G$75 -> 93.3 | E75: =$E$7*$G$75 -> 74.1 | F75: è | G75: 0.06
A76: 8th | B76: =$B$7*$G$76 -> 125.75 | C76: =$C$7*$G$76 -> 109.75 | D76: =$D$7*$G$76 -> 77.75 | E76: =$E$7*$G$76 -> 61.75 | F76: è | G76: 0.05
A77: 9th | B77: =$B$7*$G$77 -> 100.6 | C77: =$C$7*$G$77 -> 87.8 | D77: =$D$7*$G$77 -> 62.2 | E77: =$E$7*$G$77 -> 49.4 | F77: è | G77: 0.04
A78: 10th | B78: =$B$7*$G$78 -> 75.45 | C78: =$C$7*$G$78 -> 65.85 | D78: =$D$7*$G$78 -> 46.65 | E78: =$E$7*$G$78 -> 37.05 | F78: è | G78: 0.03
A79: Totals | B79: =SUM(B69:B78) -> 2515 | C79: =SUM(C69:C78) -> 2195 | D79: =SUM(D69:D78) -> 1555 | E79: =SUM(E69:E78) -> 1235 | F79: =B79+C79+D79+E79 -> 7500 | G79: =SUM(G69:G78) -> 1
A81: For 334-500 riders 12 places
A82: Placings | B82: 1D | C82: 2D | D82: 3D | E82: 4D
A83: 1st | B83: =$B$7*$G$83 -> 477.85 | C83: =$C$7*$G$83 -> 417.05 | D83: =$D$7*$G$83 -> 295.45 | E83: =$E$7*$G$83 -> 234.65 | F83: è | G83: 0.19
A84: 2nd | B84: =$B$7*$G$84 -> 377.25 | C84: =$C$7*$G$84 -> 329.25 | D84: =$D$7*$G$84 -> 233.25 | E84: =$E$7*$G$84 -> 185.25 | F84: è | G84: 0.15
A85: 3rd | B85: =$B$7*$G$85 -> 301.8 | C85: =$C$7*$G$85 -> 263.4 | D85: =$D$7*$G$85 -> 186.6 | E85: =$E$7*$G$85 -> 148.2 | F85: è | G85: 0.12
A86: 4th | B86: =$B$7*$G$86 -> 251.5 | C86: =$C$7*$G$86 -> 219.5 | D86: =$D$7*$G$86 -> 155.5 | E86: =$E$7*$G$86 -> 123.5 | F86: è | G86: 0.1
A87: 5th | B87: =$B$7*$G$87 -> 226.35 | C87: =$C$7*$G$87 -> 197.55 | D87: =$D$7*$G$87 -> 139.95 | E87: =$E$7*$G$87 -> 111.15 | F87: è | G87: 0.09
A88: 6th | B88: =$B$7*$G$88 -> 201.2 | C88: =$C$7*$G$88 -> 175.6 | D88: =$D$7*$G$88 -> 124.4 | E88: =$E$7*$G$88 -> 98.8 | F88: è | G88: 0.08
A89: 7th | B89: =$B$7*$G$89 -> 176.05 | C89: =$C$7*$G$89 -> 153.65 | D89: =$D$7*$G$89 -> 108.85 | E89: =$E$7*$G$89 -> 86.45 | F89: è | G89: 0.07
A90: 8th | B90: =$B$7*$G$90 -> 150.9 | C90: =$C$7*$G$90 -> 131.7 | D90: =$D$7*$G$90 -> 93.3 | E90: =$E$7*$G$90 -> 74.1 | F90: è | G90: 0.06
A91: 9th | B91: =$B$7*$G$91 -> 125.75 | C91: =$C$7*$G$91 -> 109.75 | D91: =$D$7*$G$91 -> 77.75 | E91: =$E$7*$G$91 -> 61.75 | F91: è | G91: 0.05
A92: 10th | B92: =$B$7*$G$92 -> 100.6 | C92: =$C$7*$G$92 -> 87.8 | D92: =$D$7*$G$92 -> 62.2 | E92: =$E$7*$G$92 -> 49.4 | F92: è | G92: 0.04
A93: 11th | B93: =$B$7*$G$93 -> 75.45 | C93: =$C$7*$G$93 -> 65.85 | D93: =$D$7*$G$93 -> 46.65 | E93: =$E$7*$G$93 -> 37.05 | F93: è | G93: 0.03
A94: 12th | B94: =$B$7*$G$94 -> 50.3 | C94: =$C$7*$G$94 -> 43.9 | D94: =$D$7*$G$94 -> 31.1 | E94: =$E$7*$G$94 -> 24.7 | F94: è | G94: 0.02
A95: Totals | B95: =SUM(B83:B94) -> 2515 | C95: =SUM(C83:C94) -> 2195 | D95: 1555 | E95: 1235 | F95: =B95+C95+D95+E95 -> 7500 | G95: =SUM(G83:G94) -> 1
A97: For 501-750 riders 15 places
A98: Placings | B98: 1D | C98: 2D | D98: 3D | E98: 4D
A99: 1st | B99: =$B$7*$G$99 -> 452.7 | C99: =$C$7*$G$99 -> 395.1 | D99: =$D$7*$G$99 -> 279.9 | E99: =$E$7*$G$99 -> 222.3 | F99: è | G99: 0.18
A100: 2nd | B100: =$B$7*$G$100 -> 377.25 | C100: =$C$7*$G$100 -> 329.25 | D100: =$D$7*$G$100 -> 233.25 | E100: =$E$7*$G$100 -> 185.25 | F100: è | G100: 0.15
A101: 3rd | B101: =$B$7*$G$101 -> 301.8 | C101: =$C$7*$G$101 -> 263.4 | D101: =$D$7*$G$101 -> 186.6 | E101: =$E$7*$G$101 -> 148.2 | F101: è | G101: 0.12
A102: 4th | B102: =$B$7*$G$102 -> 251.5 | C102: =$C$7*$G$102 -> 219.5 | D102: =$D$7*$G$102 -> 155.5 | E102: =$E$7*$G$102 -> 123.5 | F102: è | G102: 0.1
A103: 5th | B103: =$B$7*$G$103 -> 213.775 | C103: =$C$7*$G$103 -> 186.575 | D103: =$D$7*$G$103 -> 132.175 | E103: =$E$7*$G$103 -> 104.975 | F103: è | G103: 0.085
A104: 6th | B104: =$B$7*$G$104 -> 176.05 | C104: =$C$7*$G$104 -> 153.65 | D104: =$D$7*$G$104 -> 108.85 | E104: =$E$7*$G$104 -> 86.45 | F104: è | G104: 0.07
A105: 7th | B105: =$B$7*$G$105 -> 150.9 | C105: =$C$7*$G$105 -> 131.7 | D105: =$D$7*$G$105 -> 93.3 | E105: =$E$7*$G$105 -> 74.1 | F105: è | G105: 0.06
A106: 8th | B106: =$B$7*$G$106 -> 125.75 | C106: =$C$7*$G$106 -> 109.75 | D106: =$D$7*$G$106 -> 77.75 | E106: =$E$7*$G$106 -> 61.75 | F106: è | G106: 0.05
A107: 9th | B107: =$B$7*$G$107 -> 106.8875 | C107: =$C$7*$G$107 -> 93.2875 | D107: =$D$7*$G$107 -> 66.0875 | E107: =$E$7*$G$107 -> 52.4875 | F107: è | G107: 0.0425
A108: 10th | B108: =$B$7*$G$108 -> 88.025 | C108: =$C$7*$G$108 -> 76.825 | D108: =$D$7*$G$108 -> 54.425 | E108: =$E$7*$G$108 -> 43.225 | F108: è | G108: 0.035
A109: 11th | B109: =$B$7*$G$109 -> 75.45 | C109: =$C$7*$G$109 -> 65.85 | D109: =$D$7*$G$109 -> 46.65 | E109: =$E$7*$G$109 -> 37.05 | F109: è | G109: 0.03
A110: 12th | B110: =$B$7*$G$110 -> 62.875 | C110: =$C$7*$G$110 -> 54.875 | D110: =$D$7*$G$110 -> 38.875 | E110: =$E$7*$G$110 -> 30.875 | F110: è | G110: 0.025
A111: 13th | B111: =$B$7*$G$111 -> 50.3 | C111: =$C$7*$G$111 -> 43.9 | D111: =$D$7*$G$111 -> 31.1 | E111: =$E$7*$G$111 -> 24.7 | F111: è | G111: 0.02
A112: 14th | B112: =$B$7*$G$112 -> 44.0125 | C112: =$C$7*$G$112 -> 38.4125 | D112: =$D$7*$G$112 -> 27.2125 | E112: =$E$7*$G$112 -> 21.6125 | F112: è | G112: 0.0175
A113: 15th | B113: =$B$7*$G$113 -> 37.725 | C113: =$C$7*$G$113 -> 32.925 | D113: =$D$7*$G$113 -> 23.325 | E113: =$E$7*$G$113 -> 18.525 | F113: è | G113: 0.015
A114: Totals | B114: =SUM(B99:B113) -> 2515 | C114: =SUM(C99:C113) -> 2195 | D114: 1555 | E114: 1235 | F114: =B114+C114+D114+E114 -> 7500 | G114: =SUM(G99:G113) -> 1
A116: For 751-1200 riders 20 places
A117: Placings | B117: 1D | C117: 2D | D117: 3D | E117: 4D
A118: 1st | B118: =$B$7*$G$118 -> 352.1 | C118: =$C$7*$G$118 -> 307.3 | D118: =$D$7*$G$118 -> 217.7 | E118: =$E$7*$G$118 -> 172.9 | F118: è | G118: 0.14
A119: 2nd | B119: =$B$7*$G$119 -> 276.65 | C119: =$C$7*$G$119 -> 241.45 | D119: =$D$7*$G$119 -> 171.05 | E119: =$E$7*$G$119 -> 135.85 | F119: è | G119: 0.11
A120: 3rd | B120: =$B$7*$G$120 -> 226.35 | C120: =$C$7*$G$120 -> 197.55 | D120: =$D$7*$G$120 -> 139.95 | E120: =$E$7*$G$120 -> 111.15 | F120: è | G120: 0.09
A121: 4th | B121: =$B$7*$G$121 -> 193.655 | C121: =$C$7*$G$121 -> 169.015 | D121: =$D$7*$G$121 -> 119.735 | E121: =$E$7*$G$121 -> 95.095 | F121: è | G121: 0.077
A122: 5th | B122: =$B$7*$G$122 -> 176.05 | C122: =$C$7*$G$122 -> 153.65 | D122: =$D$7*$G$122 -> 108.85 | E122: =$E$7*$G$122 -> 86.45 | F122: è | G122: 0.07
A123: 6th | B123: =$B$7*$G$123 -> 163.475 | C123: =$C$7*$G$123 -> 142.675 | D123: =$D$7*$G$123 -> 101.075 | E123: =$E$7*$G$123 -> 80.275 | F123: è | G123: 0.065
A124: 7th | B124: =$B$7*$G$124 -> 150.9 | C124: =$C$7*$G$124 -> 131.7 | D124: =$D$7*$G$124 -> 93.3 | E124: =$E$7*$G$124 -> 74.1 | F124: è | G124: 0.06
A125: 8th | B125: =$B$7*$G$125 -> 138.325 | C125: =$C$7*$G$125 -> 120.725 | D125: =$D$7*$G$125 -> 85.525 | E125: =$E$7*$G$125 -> 67.925 | F125: è | G125: 0.055
A126: 9th | B126: =$B$7*$G$126 -> 125.75 | C126: =$C$7*$G$126 -> 109.75 | D126: =$D$7*$G$126 -> 77.75 | E126: =$E$7*$G$126 -> 61.75 | F126: è | G126: 0.05
A127: 10th | B127: =$B$7*$G$127 -> 113.175 | C127: =$C$7*$G$127 -> 98.775 | D127: =$D$7*$G$127 -> 69.975 | E127: =$E$7*$G$127 -> 55.575 | F127: è | G127: 0.045
A128: 11th | B128: =$B$7*$G$128 -> 100.6 | C128: =$C$7*$G$128 -> 87.8 | D128: =$D$7*$G$128 -> 62.2 | E128: =$E$7*$G$128 -> 49.4 | F128: è | G128: 0.04
A129: 12th | B129: =$B$7*$G$129 -> 93.055 | C129: =$C$7*$G$129 -> 81.215 | D129: =$D$7*$G$129 -> 57.535 | E129: =$E$7*$G$129 -> 45.695 | F129: è | G129: 0.037
A130: 13th | B130: =$B$7*$G$130 -> 82.995 | C130: =$C$7*$G$130 -> 72.435 | D130: =$D$7*$G$130 -> 51.315 | E130: =$E$7*$G$130 -> 40.755 | F130: è | G130: 0.033
A131: 14th | B131: =$B$7*$G$131 -> 72.935 | C131: =$C$7*$G$131 -> 63.655 | D131: =$D$7*$G$131 -> 45.095 | E131: =$E$7*$G$131 -> 35.815 | F131: è | G131: 0.029
A132: 15th | B132: =$B$7*$G$132 -> 62.875 | C132: =$C$7*$G$132 -> 54.875 | D132: =$D$7*$G$132 -> 38.875 | E132: =$E$7*$G$132 -> 30.875 | F132: è | G132: 0.025
A133: 16th | B133: =$B$7*$G$133 -> 52.815 | C133: =$C$7*$G$133 -> 46.095 | D133: =$D$7*$G$133 -> 32.655 | E133: =$E$7*$G$133 -> 25.935 | F133: è | G133: 0.021
A134: 17th | B134: =$B$7*$G$134 -> 42.755 | C134: =$C$7*$G$134 -> 37.315 | D134: =$D$7*$G$134 -> 26.435 | E134: =$E$7*$G$134 -> 20.995 | F134: è | G134: 0.017
A135: 18th | B135: =$B$7*$G$135 -> 35.21 | C135: =$C$7*$G$135 -> 30.73 | D135: =$D$7*$G$135 -> 21.77 | E135: =$E$7*$G$135 -> 17.29 | F135: è | G135: 0.014
A136: 19th | B136: =$B$7*$G$136 -> 30.18 | C136: =$C$7*$G$136 -> 26.34 | D136: =$D$7*$G$136 -> 18.66 | E136: =$E$7*$G$136 -> 14.82 | F136: è | G136: 0.012
A137: 20th | B137: =$B$7*$G$137 -> 25.15 | C137: =$C$7*$G$137 -> 21.95 | D137: =$D$7*$G$137 -> 15.55 | E137: =$E$7*$G$137 -> 12.35 | F137: è | G137: 0.01
A138: Totals | B138: =SUM(B118:B137) -> 2515 | C138: =SUM(C118:C137) -> 2195 | D138: 1555 | E138: 1235 | F138: =B138+C138+D138+E138 -> 7500 | G138: =SUM(G118:G137) -> 1
A140: For 1201 or More riders 30 places
A141: Placings | B141: 1D | C141: 2D | D141: 3D | E141: 4D
A142: 1st | B142: =$B$7*$G$142 -> 301.8 | C142: =$C$7*$G$142 -> 263.4 | D142: =$D$7*$G$142 -> 186.6 | E142: =$E$7*$G$142 -> 148.2 | F142: è | G142: 0.12
A143: 2nd | B143: =$B$7*$G$143 -> 238.925 | C143: =$C$7*$G$143 -> 208.525 | D143: =$D$7*$G$143 -> 147.725 | E143: =$E$7*$G$143 -> 117.325 | F143: è | G143: 0.095
A144: 3rd | B144: =$B$7*$G$144 -> 183.595 | C144: =$C$7*$G$144 -> 160.235 | D144: =$D$7*$G$144 -> 113.515 | E144: =$E$7*$G$144 -> 90.155 | F144: è | G144: 0.073
A145: 4th | B145: =$B$7*$G$145 -> 155.93 | C145: =$C$7*$G$145 -> 136.09 | D145: =$D$7*$G$145 -> 96.41 | E145: =$E$7*$G$145 -> 76.57 | F145: è | G145: 0.062
A146: 5th | B146: =$B$7*$G$146 -> 125.75 | C146: =$C$7*$G$146 -> 109.75 | D146: =$D$7*$G$146 -> 77.75 | E146: =$E$7*$G$146 -> 61.75 | F146: è | G146: 0.05
A147: 6th | B147: =$B$7*$G$147 -> 113.175 | C147: =$C$7*$G$147 -> 98.775 | D147: =$D$7*$G$147 -> 69.975 | E147: =$E$7*$G$147 -> 55.575 | F147: è | G147: 0.045
A148: 7th | B148: =$B$7*$G$148 -> 108.145 | C148: =$C$7*$G$148 -> 94.385 | D148: =$D$7*$G$148 -> 66.865 | E148: =$E$7*$G$148 -> 53.105 | F148: è | G148: 0.043
A149: 8th | B149: =$B$7*$G$149 -> 100.6 | C149: =$C$7*$G$149 -> 87.8 | D149: =$D$7*$G$149 -> 62.2 | E149: =$E$7*$G$149 -> 49.4 | F149: è | G149: 0.04
A150: 9th | B150: =$B$7*$G$150 -> 93.055 | C150: =$C$7*$G$150 -> 81.215 | D150: =$D$7*$G$150 -> 57.535 | E150: =$E$7*$G$150 -> 45.695 | F150: è | G150: 0.037
A151: 10th | B151: =$B$7*$G$151 -> 88.025 | C151: =$C$7*$G$151 -> 76.825 | D151: =$D$7*$G$151 -> 54.425 | E151: =$E$7*$G$151 -> 43.225 | F151: è | G151: 0.035
A152: 11th | B152: =$B$7*$G$152 -> 82.995 | C152: =$C$7*$G$152 -> 72.435 | D152: =$D$7*$G$152 -> 51.315 | E152: =$E$7*$G$152 -> 40.755 | F152: è | G152: 0.033
A153: 12th | B153: =$B$7*$G$153 -> 77.965 | C153: =$C$7*$G$153 -> 68.045 | D153: =$D$7*$G$153 -> 48.205 | E153: =$E$7*$G$153 -> 38.285 | F153: è | G153: 0.031
A154: 13th | B154: =$B$7*$G$154 -> 72.935 | C154: =$C$7*$G$154 -> 63.655 | D154: =$D$7*$G$154 -> 45.095 | E154: =$E$7*$G$154 -> 35.815 | F154: è | G154: 0.029
A155: 14th | B155: =$B$7*$G$155 -> 67.905 | C155: =$C$7*$G$155 -> 59.265 | D155: =$D$7*$G$155 -> 41.985 | E155: =$E$7*$G$155 -> 33.345 | F155: è | G155: 0.027
A156: 15th | B156: =$B$7*$G$156 -> 62.875 | C156: =$C$7*$G$156 -> 54.875 | D156: =$D$7*$G$156 -> 38.875 | E156: =$E$7*$G$156 -> 30.875 | F156: è | G156: 0.025
A157: 16th | B157: =$B$7*$G$157 -> 60.36 | C157: =$C$7*$G$157 -> 52.68 | D157: =$D$7*$G$157 -> 37.32 | E157: =$E$7*$G$157 -> 29.64 | F157: è | G157: 0.024
A158: 17th | B158: =$B$7*$G$158 -> 57.845 | C158: =$C$7*$G$158 -> 50.485 | D158: =$D$7*$G$158 -> 35.765 | E158: =$E$7*$G$158 -> 28.405 | F158: è | G158: 0.023
A159: 18th | B159: =$B$7*$G$159 -> 55.33 | C159: =$C$7*$G$159 -> 48.29 | D159: =$D$7*$G$159 -> 34.21 | E159: =$E$7*$G$159 -> 27.17 | F159: è | G159: 0.022
A160: 19th | B160: =$B$7*$G$160 -> 52.815 | C160: =$C$7*$G$160 -> 46.095 | D160: =$D$7*$G$160 -> 32.655 | E160: =$E$7*$G$160 -> 25.935 | F160: è | G160: 0.021
A161: 20th | B161: =$B$7*$G$161 -> 50.3 | C161: =$C$7*$G$161 -> 43.9 | D161: =$D$7*$G$161 -> 31.1 | E161: =$E$7*$G$161 -> 24.7 | F161: è | G161: 0.02
A162: 21st | B162: =$B$7*$G$162 -> 47.785 | C162: =$C$7*$G$162 -> 41.705 | D162: =$D$7*$G$162 -> 29.545 | E162: =$E$7*$G$162 -> 23.465 | F162: è | G162: 0.019
A163: 22nd | B163: =$B$7*$G$163 -> 45.27 | C163: =$C$7*$G$163 -> 39.51 | D163: =$D$7*$G$163 -> 27.99 | E163: =$E$7*$G$163 -> 22.23 | F163: è | G163: 0.018
A164: 23rd | B164: =$B$7*$G$164 -> 42.755 | C164: =$C$7*$G$164 -> 37.315 | D164: =$D$7*$G$164 -> 26.435 | E164: =$E$7*$G$164 -> 20.995 | F164: è | G164: 0.017
A165: 24th | B165: =$B$7*$G$165 -> 40.24 | C165: =$C$7*$G$165 -> 35.12 | D165: =$D$7*$G$165 -> 24.88 | E165: =$E$7*$G$165 -> 19.76 | F165: è | G165: 0.016
A166: 25th | B166: =$B$7*$G$166 -> 37.725 | C166: =$C$7*$G$166 -> 32.925 | D166: =$D$7*$G$166 -> 23.325 | E166: =$E$7*$G$166 -> 18.525 | F166: è | G166: 0.015
A167: 26th | B167: =$B$7*$G$167 -> 35.21 | C167: =$C$7*$G$167 -> 30.73 | D167: =$D$7*$G$167 -> 21.77 | E167: =$E$7*$G$167 -> 17.29 | F167: è | G167: 0.014
A168: 27th | B168: =$B$7*$G$168 -> 32.695 | C168: =$C$7*$G$168 -> 28.535 | D168: =$D$7*$G$168 -> 20.215 | E168: =$E$7*$G$168 -> 16.055 | F168: è | G168: 0.013
A169: 28th | B169: =$B$7*$G$169 -> 30.18 | C169: =$C$7*$G$169 -> 26.34 | D169: =$D$7*$G$169 -> 18.66 | E169: =$E$7*$G$169 -> 14.82 | F169: è | G169: 0.012
A170: 29th | B170: =$B$7*$G$170 -> 27.665 | C170: =$C$7*$G$170 -> 24.145 | D170: =$D$7*$G$170 -> 17.105 | E170: =$E$7*$G$170 -> 13.585 | F170: è | G170: 0.011
A171: 30th | B171: =$B$7*$G$171 -> 25.15 | C171: =$C$7*$G$171 -> 21.95 | D171: =$D$7*$G$171 -> 15.55 | E171: =$E$7*$G$171 -> 12.35 | F171: è | G171: 0.01
A172: Totals | B172: =SUM(B142:B171) -> 2515 | C172: =SUM(C142:C171) -> 2195 | D172: =SUM(D142:D171) -> 1555 | E172: =SUM(E142:E171) -> 1235 | F172: =B172+C172+D172+E172 -> 7500 | G172: =SUM(G142:G171) -> 1

Sheet 5D Payout BBR
A1: 5D Payout BBR
A2: Entry Fee | B2: # Entries | C2: % Payback | D2: $ From Entry | E2: Added $ | F2: Total Payout | G2: Total $ Held
A3: 25 | B3: 46 | C3: 0.8 | D3: =$A$3*$C$3*$B$3 -> 920 | F3: =($A$3*$C$3)*$B$3+$E$3 -> 920 | G3: =$A$3*(100%-$C$3)*$B$3 -> 230
A5: % in each D | B5: 0.3 | C5: 0.25 | D5: 0.2 | E5: 0.15 | F5: 0.1 | G5: Total % Payout | H5: =SUM(B5:F5) -> 1
B6: 1D | C6: 2D | D6: 3D | E6: 4D | F6: 5D
B7: =(($A$3*$B$3*$C$3*$B$5)+($E$3*$B$5)) -> 276 | C7: =(($A$3*$B$3*$C$3*$C$5)+($E$3*$C$5)) -> 230 | D7: =(($A$3*$B$3*$C$3*$D$5)+($E$3*$D$5)) -> 184 | E7: =(($A$3*$B$3*$C$3*$E$5)+($E$3*$E$5)) -> 138 | F7: =(($A$3*$B$3*$C$3*$F$5)+($E$3*$F$5)) -> 92
A8: Totals | B8: =SUM(B7) -> 276 | C8: =SUM(C7) -> 230 | D8: 184 | E8: 138 | F8: 92 | G8: =SUM(B8:F8) -> 920
A10: For 1-25 riders 1 place
A11: Placings | B11: 1D | C11: 2D | D11: 3D | E11: 4D | F11: 5D
A12: 1st | B12: =$B$7*$H$12 -> 276 | C12: =$C$7*$H$12 -> 230 | D12: =$D$7*$H$12 -> 184 | E12: =$E$7*$H$12 -> 138 | F12: =$F$7*$H$12 -> 92 | G12: è | H12: 1
A13: Totals | B13: =SUM(B12:B12) -> 276 | C13: =SUM(C12:C12) -> 230 | D13: =SUM(D12:D12) -> 184 | E13: =SUM(E12:E12) -> 138 | F13: =SUM(F12) -> 92 | G13: =SUM(B13:F13) -> 920 | H13: =SUM(H12) -> 1
A15: For 26-50 riders 2 places
A16: Placings | B16: 1D | C16: 2D | D16: 3D | E16: 4D | F16: 5D
A17: 1st | B17: =$B$7*$H$17 -> 165.6 | C17: =$C$7*$H$17 -> 138 | D17: =$D$7*$H$17 -> 110.4 | E17: =$E$7*$H$17 -> 82.8 | F17: =$F$7*$H$17 -> 55.2 | G17: è | H17: 0.6
A18: 2nd | B18: =$B$7*$H$18 -> 110.4 | C18: =$C$7*$H$18 -> 92 | D18: =$D$7*$H$18 -> 73.6 | E18: =$E$7*$H$18 -> 55.2 | F18: =$F$7*$H$18 -> 36.8 | G18: è | H18: 0.4
A19: Totals | B19: =SUM(B17:B18) -> 276 | C19: =SUM(C17:C18) -> 230 | D19: =SUM(D17:D18) -> 184 | E19: =SUM(E17:E18) -> 138 | F19: =SUM(F17:F18) -> 92 | G19: =SUM(B19:F19) -> 920 | H19: =SUM(H17:H18) -> 1
A21: For 51-100 riders 3 places
A22: Placings | B22: 1D | C22: 2D | D22: 3D | E22: 4D | F22: 5D
A23: 1st | B23: =$B$7*$H$23 -> 138 | C23: =$C$7*$H$23 -> 115 | D23: =$D$7*$H$23 -> 92 | E23: =$E$7*$H$23 -> 69 | F23: =$F$7*$H$23 -> 46 | G23: è | H23: 0.5
A24: 2nd | B24: =$B$7*$H$24 -> 82.8 | C24: =$C$7*$H$24 -> 69 | D24: =$D$7*$H$24 -> 55.2 | E24: =$E$7*$H$24 -> 41.4 | F24: =$F$7*$H$24 -> 27.6 | G24: è | H24: 0.3
A25: 3rd | B25: =$B$7*$H$25 -> 55.2 | C25: =$C$7*$H$25 -> 46 | D25: =$D$7*$H$25 -> 36.8 | E25: =$E$7*$H$25 -> 27.6 | F25: =$F$7*$H$25 -> 18.4 | G25: è | H25: 0.2
A26: Totals | B26: =SUM(B23:B25) -> 276 | C26: =SUM(C23:C25) -> 230 | D26: =SUM(D23:D25) -> 184 | E26: =SUM(E23:E25) -> 138 | F26: =SUM(F23:F25) -> 92 | G26: =SUM(B26:F26) -> 920 | H26: =SUM(H23:H25) -> 1
A28: For 101-143 riders 4 places
A29: Placings | B29: 1D | C29: 2D | D29: 3D | E29: 4D | F29: 5D
A30: 1st | B30: =$B$7*$H$30 -> 110.4 | C30: =$C$7*$H$30 -> 92 | D30: =$D$7*$H$30 -> 73.6 | E30: =$E$7*$H$30 -> 55.2 | F30: =$F$7*$H$30 -> 36.8 | G30: è | H30: 0.4
A31: 2nd | B31: =$B$7*$H$31 -> 82.8 | C31: =$C$7*$H$31 -> 69 | D31: =$D$7*$H$31 -> 55.2 | E31: =$E$7*$H$31 -> 41.4 | F31: =$F$7*$H$31 -> 27.6 | G31: è | H31: 0.3
A32: 3rd | B32: =$B$7*$H$32 -> 55.2 | C32: =$C$7*$H$32 -> 46 | D32: =$D$7*$H$32 -> 36.8 | E32: =$E$7*$H$32 -> 27.6 | F32: =$F$7*$H$32 -> 18.4 | G32: è | H32: 0.2
A33: 4th | B33: =$B$7*$H$33 -> 27.6 | C33: =$C$7*$H$33 -> 23 | D33: =$D$7*$H$33 -> 18.4 | E33: =$E$7*$H$33 -> 13.8 | F33: =$F$7*$H$33 -> 9.2 | G33: è | H33: 0.1
A34: Totals | B34: =SUM(B30:B33) -> 276 | C34: =SUM(C30:C33) -> 230 | D34: =SUM(D30:D33) -> 184 | E34: =SUM(E30:E33) -> 138 | F34: =SUM(F30:F33) -> 92 | G34: =SUM(B34:F34) -> 920 | H34: =SUM(H30:H33) -> 1
A36: For 144-200 riders 5 places
A37: Placings | B37: 1D | C37: 2D | D37: 3D | E37: 4D | F37: 5D
A38: 1st | B38: =$B$7*$H$38 -> 91.08 | C38: =$C$7*$H$38 -> 75.9 | D38: =$D$7*$H$38 -> 60.72 | E38: =$E$7*$H$38 -> 45.54 | F38: =$F$7*$H$38 -> 30.36 | G38: è | H38: 0.33
A39: 2nd | B39: =$B$7*$H$39 -> 74.52 | C39: =$C$7*$H$39 -> 62.1 | D39: =$D$7*$H$39 -> 49.68 | E39: =$E$7*$H$39 -> 37.26 | F39: =$F$7*$H$39 -> 24.84 | G39: è | H39: 0.27
A40: 3rd | B40: =$B$7*$H$40 -> 55.2 | C40: =$C$7*$H$40 -> 46 | D40: =$D$7*$H$40 -> 36.8 | E40: =$E$7*$H$40 -> 27.6 | F40: =$F$7*$H$40 -> 18.4 | G40: è | H40: 0.2
A41: 4th | B41: =$B$7*$H$41 -> 35.88 | C41: =$C$7*$H$41 -> 29.9 | D41: =$D$7*$H$41 -> 23.92 | E41: =$E$7*$H$41 -> 17.94 | F41: =$F$7*$H$41 -> 11.96 | G41: è | H41: 0.13
A42: 5th | B42: =$B$7*$H$42 -> 19.32 | C42: =$C$7*$H$42 -> 16.1 | D42: =$D$7*$H$42 -> 12.88 | E42: =$E$7*$H$42 -> 9.66 | F42: =$F$7*$H$42 -> 6.44 | G42: è | H42: 0.07
A43: Totals | B43: =SUM(B38:B42) -> 276 | C43: =SUM(C38:C42) -> 230 | D43: =SUM(D38:D42) -> 184 | E43: =SUM(E38:E42) -> 138 | F43: =SUM(F38:F42) -> 92 | G43: =SUM(B43:F43) -> 920 | H43: =SUM(H38:H42) -> 1
A45: For 201-250 riders 6 places
A46: Placings | B46: 1D | C46: 2D | D46: 3D | E46: 4D | F46: 5D
A47: 1st | B47: =$B$7*$H$47 -> 80.04 | C47: =$C$7*$H$47 -> 66.7 | D47: =$D$7*$H$47 -> 53.36 | E47: =$E$7*$H$47 -> 40.02 | F47: =$F$7*$H$47 -> 26.68 | G47: è | H47: 0.29
A48: 2nd | B48: =$B$7*$H$48 -> 66.24 | C48: =$C$7*$H$48 -> 55.2 | D48: =$D$7*$H$48 -> 44.16 | E48: =$E$7*$H$48 -> 33.12 | F48: =$F$7*$H$48 -> 22.08 | G48: è | H48: 0.24
A49: 3rd | B49: =$B$7*$H$49 -> 52.44 | C49: =$C$7*$H$49 -> 43.7 | D49: =$D$7*$H$49 -> 34.96 | E49: =$E$7*$H$49 -> 26.22 | F49: =$F$7*$H$49 -> 17.48 | G49: è | H49: 0.19
A50: 4th | B50: =$B$7*$H$50 -> 38.64 | C50: =$C$7*$H$50 -> 32.2 | D50: =$D$7*$H$50 -> 25.76 | E50: =$E$7*$H$50 -> 19.32 | F50: =$F$7*$H$50 -> 12.88 | G50: è | H50: 0.14
A51: 5th | B51: =$B$7*$H$51 -> 24.84 | C51: =$C$7*$H$51 -> 20.7 | D51: =$D$7*$H$51 -> 16.56 | E51: =$E$7*$H$51 -> 12.42 | F51: =$F$7*$H$51 -> 8.28 | G51: è | H51: 0.09
A52: 6th | B52: =$B$7*$H$52 -> 13.8 | C52: =$C$7*$H$52 -> 11.5 | D52: =$D$7*$H$52 -> 9.2 | E52: =$E$7*$H$52 -> 6.9 | F52: =$F$7*$H$52 -> 4.6 | G52: è | H52: 0.05
A53: Totals | B53: =SUM(B47:B52) -> 276 | C53: =SUM(C47:C52) -> 230 | D53: =SUM(D47:D52) -> 184 | E53: =SUM(E47:E52) -> 138 | F53: =SUM(F47:F52) -> 92 | G53: =SUM(B53:F53) -> 920 | H53: =SUM(H47:H52) -> 1
A55: For 251-333 riders 8 places
A56: Placings | B56: 1D | C56: 2D | D56: 3D | E56: 4D | F56: 5D
A57: 1st | B57: =$B$7*$H$57 -> 66.24 | C57: =$C$7*$H$57 -> 55.2 | D57: =$D$7*$H$57 -> 44.16 | E57: =$E$7*$H$57 -> 33.12 | F57: =$F$7*$H$57 -> 22.08 | G57: è | H57: 0.24
A58: 2nd | B58: =$B$7*$H$58 -> 55.2 | C58: =$C$7*$H$58 -> 46 | D58: =$D$7*$H$58 -> 36.8 | E58: =$E$7*$H$58 -> 27.6 | F58: =$F$7*$H$58 -> 18.4 | G58: è | H58: 0.2
A59: 3rd | B59: =$B$7*$H$59 -> 46.92 | C59: =$C$7*$H$59 -> 39.1 | D59: =$D$7*$H$59 -> 31.28 | E59: =$E$7*$H$59 -> 23.46 | F59: =$F$7*$H$59 -> 15.64 | G59: è | H59: 0.17
A60: 4th | B60: =$B$7*$H$60 -> 35.88 | C60: =$C$7*$H$60 -> 29.9 | D60: =$D$7*$H$60 -> 23.92 | E60: =$E$7*$H$60 -> 17.94 | F60: =$F$7*$H$60 -> 11.96 | G60: è | H60: 0.13
A61: 5th | B61: =$B$7*$H$61 -> 27.6 | C61: =$C$7*$H$61 -> 23 | D61: =$D$7*$H$61 -> 18.4 | E61: =$E$7*$H$61 -> 13.8 | F61: =$F$7*$H$61 -> 9.2 | G61: è | H61: 0.1
A62: 6th | B62: =$B$7*$H$62 -> 19.32 | C62: =$C$7*$H$62 -> 16.1 | D62: =$D$7*$H$62 -> 12.88 | E62: =$E$7*$H$62 -> 9.66 | F62: =$F$7*$H$62 -> 6.44 | G62: è | H62: 0.07
A63: 7th | B63: =$B$7*$H$63 -> 13.8 | C63: =$C$7*$H$63 -> 11.5 | D63: =$D$7*$H$63 -> 9.2 | E63: =$E$7*$H$63 -> 6.9 | F63: =$F$7*$H$63 -> 4.6 | G63: è | H63: 0.05
A64: 8th | B64: =$B$7*$H$64 -> 11.04 | C64: =$C$7*$H$64 -> 9.2 | D64: =$D$7*$H$64 -> 7.36 | E64: =$E$7*$H$64 -> 5.52 | F64: =$F$7*$H$64 -> 3.68 | G64: è | H64: 0.04
A65: Totals | B65: =SUM(B57:B64) -> 276 | C65: =SUM(C57:C64) -> 230 | D65: =SUM(D57:D64) -> 184 | E65: =SUM(E57:E64) -> 138 | F65: =SUM(F57:F64) -> 92 | G65: =SUM(B65:F65) -> 920 | H65: =SUM(H57:H64) -> 1
A67: For 334-500 riders 10 places
A68: Placings | B68: 1D | C68: 2D | D68: 3D | E68: 4D | F68: 5D
A69: 1st | B69: =$B$7*$H$69 -> 57.96 | C69: =$C$7*$H$69 -> 48.3 | D69: =$D$7*$H$69 -> 38.64 | E69: =$E$7*$H$69 -> 28.98 | F69: =$F$7*$H$69 -> 19.32 | G69: è | H69: 0.21
A70: 2nd | B70: =$B$7*$H$70 -> 49.68 | C70: =$C$7*$H$70 -> 41.4 | D70: =$D$7*$H$70 -> 33.12 | E70: =$E$7*$H$70 -> 24.84 | F70: =$F$7*$H$70 -> 16.56 | G70: è | H70: 0.18
A71: 3rd | B71: =$B$7*$H$71 -> 41.4 | C71: =$C$7*$H$71 -> 34.5 | D71: =$D$7*$H$71 -> 27.6 | E71: =$E$7*$H$71 -> 20.7 | F71: =$F$7*$H$71 -> 13.8 | G71: è | H71: 0.15
A72: 4th | B72: =$B$7*$H$72 -> 33.12 | C72: =$C$7*$H$72 -> 27.6 | D72: =$D$7*$H$72 -> 22.08 | E72: =$E$7*$H$72 -> 16.56 | F72: =$F$7*$H$72 -> 11.04 | G72: è | H72: 0.12
A73: 5th | B73: =$B$7*$H$73 -> 24.84 | C73: =$C$7*$H$73 -> 20.7 | D73: =$D$7*$H$73 -> 16.56 | E73: =$E$7*$H$73 -> 12.42 | F73: =$F$7*$H$73 -> 8.28 | G73: è | H73: 0.09
A74: 6th | B74: =$B$7*$H$74 -> 19.32 | C74: =$C$7*$H$74 -> 16.1 | D74: =$D$7*$H$74 -> 12.88 | E74: =$E$7*$H$74 -> 9.66 | F74: =$F$7*$H$74 -> 6.44 | G74: è | H74: 0.07
A75: 7th | B75: =$B$7*$H$75 -> 16.56 | C75: =$C$7*$H$75 -> 13.8 | D75: =$D$7*$H$75 -> 11.04 | E75: =$E$7*$H$75 -> 8.28 | F75: =$F$7*$H$75 -> 5.52 | G75: è | H75: 0.06
A76: 8th | B76: =$B$7*$H$76 -> 13.8 | C76: =$C$7*$H$76 -> 11.5 | D76: =$D$7*$H$76 -> 9.2 | E76: =$E$7*$H$76 -> 6.9 | F76: =$F$7*$H$76 -> 4.6 | G76: è | H76: 0.05
A77: 9th | B77: =$B$7*$H$77 -> 11.04 | C77: =$C$7*$H$77 -> 9.2 | D77: =$D$7*$H$77 -> 7.36 | E77: =$E$7*$H$77 -> 5.52 | F77: =$F$7*$H$77 -> 3.68 | G77: è | H77: 0.04
A78: 10th | B78: =$B$7*$H$78 -> 8.28 | C78: =$C$7*$H$78 -> 6.9 | D78: =$D$7*$H$78 -> 5.52 | E78: =$E$7*$H$78 -> 4.14 | F78: =$F$7*$H$78 -> 2.76 | G78: è | H78: 0.03
A79: Totals | B79: =SUM(B69:B78) -> 276 | C79: =SUM(C69:C78) -> 230 | D79: 184 | E79: 138 | F79: 92 | G79: =SUM(B79:F79) -> 920 | H79: =SUM(H69:H78) -> 1
A81: For 501-666 riders 12 places
A82: Placings | B82: 1D | C82: 2D | D82: 3D | E82: 4D | F82: 5D
A83: 1st | B83: =$B$7*$H$83 -> 52.44 | C83: =$C$7*$H$83 -> 43.7 | D83: =$D$7*$H$83 -> 34.96 | E83: =$E$7*$H$83 -> 26.22 | F83: =$F$7*$H$83 -> 17.48 | G83: è | H83: 0.19
A84: 2nd | B84: =$B$7*$H$84 -> 41.4 | C84: =$C$7*$H$84 -> 34.5 | D84: =$D$7*$H$84 -> 27.6 | E84: =$E$7*$H$84 -> 20.7 | F84: =$F$7*$H$84 -> 13.8 | G84: è | H84: 0.15
A85: 3rd | B85: =$B$7*$H$85 -> 33.12 | C85: =$C$7*$H$85 -> 27.6 | D85: =$D$7*$H$85 -> 22.08 | E85: =$E$7*$H$85 -> 16.56 | F85: =$F$7*$H$85 -> 11.04 | G85: è | H85: 0.12
A86: 4th | B86: =$B$7*$H$86 -> 27.6 | C86: =$C$7*$H$86 -> 23 | D86: =$D$7*$H$86 -> 18.4 | E86: =$E$7*$H$86 -> 13.8 | F86: =$F$7*$H$86 -> 9.2 | G86: è | H86: 0.1
A87: 5th | B87: =$B$7*$H$87 -> 24.84 | C87: =$C$7*$H$87 -> 20.7 | D87: =$D$7*$H$87 -> 16.56 | E87: =$E$7*$H$87 -> 12.42 | F87: =$F$7*$H$87 -> 8.28 | G87: è | H87: 0.09
A88: 6th | B88: =$B$7*$H$88 -> 22.08 | C88: =$C$7*$H$88 -> 18.4 | D88: =$D$7*$H$88 -> 14.72 | E88: =$E$7*$H$88 -> 11.04 | F88: =$F$7*$H$88 -> 7.36 | G88: è | H88: 0.08
A89: 7th | B89: =$B$7*$H$89 -> 19.32 | C89: =$C$7*$H$89 -> 16.1 | D89: =$D$7*$H$89 -> 12.88 | E89: =$E$7*$H$89 -> 9.66 | F89: =$F$7*$H$89 -> 6.44 | G89: è | H89: 0.07
A90: 8th | B90: =$B$7*$H$90 -> 16.56 | C90: =$C$7*$H$90 -> 13.8 | D90: =$D$7*$H$90 -> 11.04 | E90: =$E$7*$H$90 -> 8.28 | F90: =$F$7*$H$90 -> 5.52 | G90: è | H90: 0.06
A91: 9th | B91: =$B$7*$H$91 -> 13.8 | C91: =$C$7*$H$91 -> 11.5 | D91: =$D$7*$H$91 -> 9.2 | E91: =$E$7*$H$91 -> 6.9 | F91: =$F$7*$H$91 -> 4.6 | G91: è | H91: 0.05
A92: 10th | B92: =$B$7*$H$92 -> 11.04 | C92: =$C$7*$H$92 -> 9.2 | D92: =$D$7*$H$92 -> 7.36 | E92: =$E$7*$H$92 -> 5.52 | F92: =$F$7*$H$92 -> 3.68 | G92: è | H92: 0.04
A93: 11th | B93: =$B$7*$H$93 -> 8.28 | C93: =$C$7*$H$93 -> 6.9 | D93: =$D$7*$H$93 -> 5.52 | E93: =$E$7*$H$93 -> 4.14 | F93: =$F$7*$H$93 -> 2.76 | G93: è | H93: 0.03
A94: 12th | B94: =$B$7*$H$94 -> 5.52 | C94: =$C$7*$H$94 -> 4.6 | D94: =$D$7*$H$94 -> 3.68 | E94: =$E$7*$H$94 -> 2.76 | F94: =$F$7*$H$94 -> 1.84 | G94: è | H94: 0.02
A95: Totals | B95: =SUM(B83:B94) -> 276 | C95: =SUM(C83:C94) -> 230 | D95: =SUM(D83:D94) -> 184 | E95: =SUM(E83:E94) -> 138 | F95: =SUM(F83:F94) -> 92 | G95: =SUM(B95:F95) -> 920 | H95: =SUM(H83:H94) -> 1
A97: For 667-1000 riders 15 places
A98: Placings | B98: 1D | C98: 2D | D98: 3D | E98: 4D | F98: 5D
A99: 1st | B99: =$B$7*$H$99 -> 49.68 | C99: =$C$7*$H$99 -> 41.4 | D99: =$D$7*$H$99 -> 33.12 | E99: =$E$7*$H$99 -> 24.84 | F99: =$F$7*$H$99 -> 16.56 | G99: è | H99: 0.18
A100: 2nd | B100: =$B$7*$H$100 -> 41.4 | C100: =$C$7*$H$100 -> 34.5 | D100: =$D$7*$H$100 -> 27.6 | E100: =$E$7*$H$100 -> 20.7 | F100: =$F$7*$H$100 -> 13.8 | G100: è | H100: 0.15
A101: 3rd | B101: =$B$7*$H$101 -> 33.12 | C101: =$C$7*$H$101 -> 27.6 | D101: =$D$7*$H$101 -> 22.08 | E101: =$E$7*$H$101 -> 16.56 | F101: =$F$7*$H$101 -> 11.04 | G101: è | H101: 0.12
A102: 4th | B102: =$B$7*$H$102 -> 27.6 | C102: =$C$7*$H$102 -> 23 | D102: =$D$7*$H$102 -> 18.4 | E102: =$E$7*$H$102 -> 13.8 | F102: =$F$7*$H$102 -> 9.2 | G102: è | H102: 0.1
A103: 5th | B103: =$B$7*$H$103 -> 23.46 | C103: =$C$7*$H$103 -> 19.55 | D103: =$D$7*$H$103 -> 15.64 | E103: =$E$7*$H$103 -> 11.73 | F103: =$F$7*$H$103 -> 7.82 | G103: è | H103: 0.085
A104: 6th | B104: =$B$7*$H$104 -> 19.32 | C104: =$C$7*$H$104 -> 16.1 | D104: =$D$7*$H$104 -> 12.88 | E104: =$E$7*$H$104 -> 9.66 | F104: =$F$7*$H$104 -> 6.44 | G104: è | H104: 0.07
A105: 7th | B105: =$B$7*$H$105 -> 16.56 | C105: =$C$7*$H$105 -> 13.8 | D105: =$D$7*$H$105 -> 11.04 | E105: =$E$7*$H$105 -> 8.28 | F105: =$F$7*$H$105 -> 5.52 | G105: è | H105: 0.06
A106: 8th | B106: =$B$7*$H$106 -> 13.8 | C106: =$C$7*$H$106 -> 11.5 | D106: =$D$7*$H$106 -> 9.2 | E106: =$E$7*$H$106 -> 6.9 | F106: =$F$7*$H$106 -> 4.6 | G106: è | H106: 0.05
A107: 9th | B107: =$B$7*$H$107 -> 11.73 | C107: =$C$7*$H$107 -> 9.775 | D107: =$D$7*$H$107 -> 7.82 | E107: =$E$7*$H$107 -> 5.865 | F107: =$F$7*$H$107 -> 3.91 | G107: è | H107: 0.0425
A108: 10th | B108: =$B$7*$H$108 -> 9.66 | C108: =$C$7*$H$108 -> 8.05 | D108: =$D$7*$H$108 -> 6.44 | E108: =$E$7*$H$108 -> 4.83 | F108: =$F$7*$H$108 -> 3.22 | G108: è | H108: 0.035
A109: 11th | B109: =$B$7*$H$109 -> 8.28 | C109: =$C$7*$H$109 -> 6.9 | D109: =$D$7*$H$109 -> 5.52 | E109: =$E$7*$H$109 -> 4.14 | F109: =$F$7*$H$109 -> 2.76 | G109: è | H109: 0.03
A110: 12th | B110: =$B$7*$H$110 -> 6.9 | C110: =$C$7*$H$110 -> 5.75 | D110: =$D$7*$H$110 -> 4.6 | E110: =$E$7*$H$110 -> 3.45 | F110: =$F$7*$H$110 -> 2.3 | G110: è | H110: 0.025
A111: 13th | B111: =$B$7*$H$111 -> 5.52 | C111: =$C$7*$H$111 -> 4.6 | D111: =$D$7*$H$111 -> 3.68 | E111: =$E$7*$H$111 -> 2.76 | F111: =$F$7*$H$111 -> 1.84 | G111: è | H111: 0.02
A112: 14th | B112: =$B$7*$H$112 -> 4.83 | C112: =$C$7*$H$112 -> 4.025 | D112: =$D$7*$H$112 -> 3.22 | E112: =$E$7*$H$112 -> 2.415 | F112: =$F$7*$H$112 -> 1.61 | G112: è | H112: 0.0175
A113: 15th | B113: =$B$7*$H$113 -> 4.14 | C113: =$C$7*$H$113 -> 3.45 | D113: =$D$7*$H$113 -> 2.76 | E113: =$E$7*$H$113 -> 2.07 | F113: =$F$7*$H$113 -> 1.38 | G113: è | H113: 0.015
A114: Totals | B114: =SUM(B99:B113) -> 276 | C114: =SUM(C99:C113) -> 230 | D114: =SUM(D99:D113) -> 184 | E114: =SUM(E99:E113) -> 138 | F114: =SUM(F99:F113) -> 92 | G114: =SUM(B114:F114) -> 920 | H114: =SUM(H99:H113) -> 1
A116: For 1001-1500 riders 20 places
A117: Placings | B117: 1D | C117: 2D | D117: 3D | E117: 4D | F117: 5D
A118: 1st | B118: =$B$7*$H$118 -> 38.64 | C118: =$C$7*$H$118 -> 32.2 | D118: =$D$7*$H$118 -> 25.76 | E118: =$E$7*$H$118 -> 19.32 | F118: =$F$7*$H$118 -> 12.88 | G118: è | H118: 0.14
A119: 2nd | B119: =$B$7*$H$119 -> 30.36 | C119: =$C$7*$H$119 -> 25.3 | D119: =$D$7*$H$119 -> 20.24 | E119: =$E$7*$H$119 -> 15.18 | F119: =$F$7*$H$119 -> 10.12 | G119: è | H119: 0.11
A120: 3rd | B120: =$B$7*$H$120 -> 24.84 | C120: =$C$7*$H$120 -> 20.7 | D120: =$D$7*$H$120 -> 16.56 | E120: =$E$7*$H$120 -> 12.42 | F120: =$F$7*$H$120 -> 8.28 | G120: è | H120: 0.09
A121: 4th | B121: =$B$7*$H$121 -> 21.252 | C121: =$C$7*$H$121 -> 17.71 | D121: =$D$7*$H$121 -> 14.168 | E121: =$E$7*$H$121 -> 10.626 | F121: =$F$7*$H$121 -> 7.084 | G121: è | H121: 0.077
A122: 5th | B122: =$B$7*$H$122 -> 19.32 | C122: =$C$7*$H$122 -> 16.1 | D122: =$D$7*$H$122 -> 12.88 | E122: =$E$7*$H$122 -> 9.66 | F122: =$F$7*$H$122 -> 6.44 | G122: è | H122: 0.07
A123: 6th | B123: =$B$7*$H$123 -> 17.94 | C123: =$C$7*$H$123 -> 14.95 | D123: =$D$7*$H$123 -> 11.96 | E123: =$E$7*$H$123 -> 8.97 | F123: =$F$7*$H$123 -> 5.98 | G123: è | H123: 0.065
A124: 7th | B124: =$B$7*$H$124 -> 16.56 | C124: =$C$7*$H$124 -> 13.8 | D124: =$D$7*$H$124 -> 11.04 | E124: =$E$7*$H$124 -> 8.28 | F124: =$F$7*$H$124 -> 5.52 | G124: è | H124: 0.06
A125: 8th | B125: =$B$7*$H$125 -> 15.18 | C125: =$C$7*$H$125 -> 12.65 | D125: =$D$7*$H$125 -> 10.12 | E125: =$E$7*$H$125 -> 7.59 | F125: =$F$7*$H$125 -> 5.06 | G125: è | H125: 0.055
A126: 9th | B126: =$B$7*$H$126 -> 13.8 | C126: =$C$7*$H$126 -> 11.5 | D126: =$D$7*$H$126 -> 9.2 | E126: =$E$7*$H$126 -> 6.9 | F126: =$F$7*$H$126 -> 4.6 | G126: è | H126: 0.05
A127: 10th | B127: =$B$7*$H$127 -> 12.42 | C127: =$C$7*$H$127 -> 10.35 | D127: =$D$7*$H$127 -> 8.28 | E127: =$E$7*$H$127 -> 6.21 | F127: =$F$7*$H$127 -> 4.14 | G127: è | H127: 0.045
A128: 11th | B128: =$B$7*$H$128 -> 11.04 | C128: =$C$7*$H$128 -> 9.2 | D128: =$D$7*$H$128 -> 7.36 | E128: =$E$7*$H$128 -> 5.52 | F128: =$F$7*$H$128 -> 3.68 | G128: è | H128: 0.04
A129: 12th | B129: =$B$7*$H$129 -> 10.212 | C129: =$C$7*$H$129 -> 8.51 | D129: =$D$7*$H$129 -> 6.808 | E129: =$E$7*$H$129 -> 5.106 | F129: =$F$7*$H$129 -> 3.404 | G129: è | H129: 0.037
A130: 13th | B130: =$B$7*$H$130 -> 9.108 | C130: =$C$7*$H$130 -> 7.59 | D130: =$D$7*$H$130 -> 6.072 | E130: =$E$7*$H$130 -> 4.554 | F130: =$F$7*$H$130 -> 3.036 | G130: è | H130: 0.033
A131: 14th | B131: =$B$7*$H$131 -> 8.004 | C131: =$C$7*$H$131 -> 6.67 | D131: =$D$7*$H$131 -> 5.336 | E131: =$E$7*$H$131 -> 4.002 | F131: =$F$7*$H$131 -> 2.668 | G131: è | H131: 0.029
A132: 15th | B132: =$B$7*$H$132 -> 6.9 | C132: =$C$7*$H$132 -> 5.75 | D132: =$D$7*$H$132 -> 4.6 | E132: =$E$7*$H$132 -> 3.45 | F132: =$F$7*$H$132 -> 2.3 | G132: è | H132: 0.025
A133: 16th | B133: =$B$7*$H$133 -> 5.796 | C133: =$C$7*$H$133 -> 4.83 | D133: =$D$7*$H$133 -> 3.864 | E133: =$E$7*$H$133 -> 2.898 | F133: =$F$7*$H$133 -> 1.932 | G133: è | H133: 0.021
A134: 17th | B134: =$B$7*$H$134 -> 4.692 | C134: =$C$7*$H$134 -> 3.91 | D134: =$D$7*$H$134 -> 3.128 | E134: =$E$7*$H$134 -> 2.346 | F134: =$F$7*$H$134 -> 1.564 | G134: è | H134: 0.017
A135: 18th | B135: =$B$7*$H$135 -> 3.864 | C135: =$C$7*$H$135 -> 3.22 | D135: =$D$7*$H$135 -> 2.576 | E135: =$E$7*$H$135 -> 1.932 | F135: =$F$7*$H$135 -> 1.288 | G135: è | H135: 0.014
A136: 19th | B136: =$B$7*$H$136 -> 3.312 | C136: =$C$7*$H$136 -> 2.76 | D136: =$D$7*$H$136 -> 2.208 | E136: =$E$7*$H$136 -> 1.656 | F136: =$F$7*$H$136 -> 1.104 | G136: è | H136: 0.012
A137: 20th | B137: =$B$7*$H$137 -> 2.76 | C137: =$C$7*$H$137 -> 2.3 | D137: =$D$7*$H$137 -> 1.84 | E137: =$E$7*$H$137 -> 1.38 | F137: =$F$7*$H$137 -> 0.92 | G137: è | H137: 0.01
A138: Totals | B138: =SUM(B118:B137) -> 276 | C138: =SUM(C118:C137) -> 230 | D138: 184 | E138: 138 | F138: 92 | G138: =SUM(B138:F138) -> 920 | H138: =SUM(H118:H137) -> 1
A140: For 1501 or More riders 30 places
A141: Placings | B141: 1D | C141: 2D | D141: 3D | E141: 4D | F141: 5D
A142: 1st | B142: =$B$7*$H142 -> 33.12 | C142: =$C$7*$H142 -> 27.6 | D142: =$D$7*$H142 -> 22.08 | E142: =$E$7*$H142 -> 16.56 | F142: =$F$7*$H142 -> 11.04 | G142: è | H142: 0.12
A143: 2nd | B143: =$B$7*$H143 -> 26.22 | C143: 21.85 | D143: 17.48 | E143: 13.11 | F143: 8.74 | G143: è | H143: 0.095
A144: 3rd | B144: =$B$7*$H144 -> 20.148 | C144: 16.79 | D144: 13.432 | E144: 10.074 | F144: 6.716 | G144: è | H144: 0.073
A145: 4th | B145: =$B$7*$H145 -> 17.112 | C145: 14.26 | D145: 11.408 | E145: 8.556 | F145: 5.704 | G145: è | H145: 0.062
A146: 5th | B146: 13.8 | C146: 11.5 | D146: 9.2 | E146: 6.9 | F146: 4.6 | G146: è | H146: 0.05
A147: 6th | B147: 12.42 | C147: 10.35 | D147: 8.28 | E147: 6.21 | F147: 4.14 | G147: è | H147: 0.045
A148: 7th | B148: 11.868 | C148: 9.89 | D148: 7.912 | E148: 5.934 | F148: 3.956 | G148: è | H148: 0.043
A149: 8th | B149: 11.04 | C149: 9.2 | D149: 7.36 | E149: 5.52 | F149: 3.68 | G149: è | H149: 0.04
A150: 9th | B150: 10.212 | C150: 8.51 | D150: 6.808 | E150: 5.106 | F150: 3.404 | G150: è | H150: 0.037
A151: 10th | B151: 9.66 | C151: 8.05 | D151: 6.44 | E151: 4.83 | F151: 3.22 | G151: è | H151: 0.035
A152: 11th | B152: 9.108 | C152: 7.59 | D152: 6.072 | E152: 4.554 | F152: 3.036 | G152: è | H152: 0.033
A153: 12th | B153: 8.556 | C153: 7.13 | D153: 5.704 | E153: 4.278 | F153: 2.852 | G153: è | H153: 0.031
A154: 13th | B154: 8.004 | C154: 6.67 | D154: 5.336 | E154: 4.002 | F154: 2.668 | G154: è | H154: 0.029
A155: 14th | B155: 7.452 | C155: 6.21 | D155: 4.968 | E155: 3.726 | F155: 2.484 | G155: è | H155: 0.027
A156: 15th | B156: 6.9 | C156: 5.75 | D156: 4.6 | E156: 3.45 | F156: 2.3 | G156: è | H156: 0.025
A157: 16th | B157: 6.624 | C157: 5.52 | D157: 4.416 | E157: 3.312 | F157: 2.208 | G157: è | H157: 0.024
A158: 17th | B158: 6.348 | C158: 5.29 | D158: 4.232 | E158: 3.174 | F158: 2.116 | G158: è | H158: 0.023
A159: 18th | B159: 6.072 | C159: 5.06 | D159: 4.048 | E159: 3.036 | F159: 2.024 | G159: è | H159: 0.022
A160: 19th | B160: 5.796 | C160: 4.83 | D160: 3.864 | E160: 2.898 | F160: 1.932 | G160: è | H160: 0.021
A161: 20th | B161: 5.52 | C161: 4.6 | D161: 3.68 | E161: 2.76 | F161: 1.84 | G161: è | H161: 0.02
A162: 21st | B162: 5.244 | C162: 4.37 | D162: 3.496 | E162: 2.622 | F162: 1.748 | G162: è | H162: 0.019
A163: 22nd | B163: 4.968 | C163: 4.14 | D163: 3.312 | E163: 2.484 | F163: 1.656 | G163: è | H163: 0.018
A164: 23rd | B164: 4.692 | C164: 3.91 | D164: 3.128 | E164: 2.346 | F164: 1.564 | G164: è | H164: 0.017
A165: 24th | B165: 4.416 | C165: 3.68 | D165: 2.944 | E165: 2.208 | F165: 1.472 | G165: è | H165: 0.016
A166: 25th | B166: 4.14 | C166: 3.45 | D166: 2.76 | E166: 2.07 | F166: 1.38 | G166: è | H166: 0.015
A167: 26th | B167: 3.864 | C167: 3.22 | D167: 2.576 | E167: 1.932 | F167: 1.288 | G167: è | H167: 0.014
A168: 27th | B168: 3.588 | C168: 2.99 | D168: 2.392 | E168: 1.794 | F168: 1.196 | G168: è | H168: 0.013
A169: 28th | B169: 3.312 | C169: 2.76 | D169: 2.208 | E169: 1.656 | F169: 1.104 | G169: è | H169: 0.012
A170: 29th | B170: 3.036 | C170: 2.53 | D170: 2.024 | E170: 1.518 | F170: 1.012 | G170: è | H170: 0.011
A171: 30th | B171: 2.76 | C171: 2.3 | D171: 1.84 | E171: 1.38 | F171: 0.92 | G171: è | H171: 0.01
A172: Totals | B172: =SUM(B142:B171) -> 276 | C172: =SUM(C142:C171) -> 230 | D172: 184 | E172: 138 | F172: 92 | G172: =SUM(B172:F172) -> 920 | H172: =SUM(H142:H171) -> 1

Sheet DON'T TOUCH (hidden)
A2: Yes | C2: S | D2: 5 | E2: X
C3: A | D3: 10
C4: Y | D4: 15
C5: P | D5: BP
D6: SCR
